Workbook

Sheet Main
B10: 2018-10-10
B12: Sheet No. | C12: Template Name | D12: Summary
B13: 1 | C13: Future Intra | D13: For Intraday trading in F&O segment
B14: 2 | C14: Cash Intra | D14: For Intraday trading in cash market segment
B15: 3 | C15: Mid-cap Intra | D15: For Intraday trading in Mid-cap stocks
B16: 4 | C16: Bulk Deals | D16: Reveals Bulk Deals carried on NSE & BSE
B17: 5 | C17: Call Tracker

Sheet Future Intra
M5: Back to Main Page
A6: FOR INTRA DAY TRADING | L6: =Main!B10 -> 2018-10-10
A9: Sr.no | B9: Sector | C9: Scrip | D9: CLOSE RATE | E9: Pivot Point | F9: Supports | I9: Resistances
B10: Sector | D10: Point | E10: Point | F10: S1 | G10: S2 | H10: S3 | I10: R1 | J10: R2 | K10: R3 | L10: HIGH | M10: LOW | N10: OI | O10: % Change in OI
A11: 1 | B11: Index | C11: BANKNIFTY | D11: 24563.50 | E11: 24638.50 | F11: 24435.00 | G11: 24306.50 | H11: 24103.00 | I11: 24767.00 | J11: 24970.50 | K11: 25099.00 | L11: 24842 | M11: 24510 | N11: 1403640 | O11: -6.96%
A12: 2 | B12: Index | C12: NIFTY | D12: 10314.40 | E12: 10343.17 | F12: 10262.33 | G12: 10210.27 | H12: 10129.43 | I12: 10395.23 | J12: 10476.07 | K12: 10528.13 | L12: 10424 | M12: 10291.1 | N12: 21412200 | O12: -3.16%
A13: 3 | B13: Index | C13: NIFTYCPSE | D13: 2315.55 | E13: 771.85 | F13: 1543.70 | G13: 771.85 | H13: 1543.70 | I13: 1543.70 | J13: 771.85 | K13: 1543.70 | L13: 0 | M13: 0 | N13: 0 | O13: 0.00%
A14: 4 | B14: Index | C14: NIFTYINFRA | D14: 3177.55 | E14: 1059.18 | F14: 2118.37 | G14: 1059.18 | H14: 2118.37 | I14: 2118.37 | J14: 1059.18 | K14: 2118.37 | L14: 0 | M14: 0 | N14: 0 | O14: 0.00%
A15: 5 | B15: Index | C15: NIFTYIT | D15: 15405.00 | E15: 15365.67 | F15: 15232.33 | G15: 15059.67 | H15: 14926.33 | I15: 15538.33 | J15: 15671.67 | K15: 15844.33 | L15: 15499 | M15: 15193 | N15: 38300 | O15: 1.19%
A16: 6 | B16: Index | C16: NIFTYMID50 | D16: 4232.00 | E16: 4333.33 | F16: 4130.67 | G16: 4029.33 | H16: 3826.67 | I16: 4434.67 | J16: 4637.33 | K16: 4738.67 | L16: 4536 | M16: 4232 | N16: 725890 | O16: 0.00%
A17: 7 | B17: Index | C17: NIFTYPSE | D17: 3599.05 | E17: 1199.68 | F17: 2399.37 | G17: 1199.68 | H17: 2399.37 | I17: 2399.37 | J17: 1199.68 | K17: 2399.37 | L17: 0 | M17: 0 | N17: 0 | O17: 0.00%
A18: 8 | B18: Cement | C18: ACC | D18: 1467.40 | E18: 1470.77 | F18: 1444.03 | G18: 1420.67 | H18: 1393.93 | I18: 1494.13 | J18: 1520.87 | K18: 1544.23 | L18: 1497.5 | M18: 1447.4 | N18: 1306000 | O18: 3.13%
A19: 9 | B19: Others | C19: ADANIENT | D19: 136.60 | E19: 134.88 | F19: 131.37 | G19: 126.13 | H19: 122.62 | I19: 140.12 | J19: 143.63 | K19: 148.87 | L19: 138.4 | M19: 129.65 | N19: 40020000 | O19: 2.08%
A20: 10 | B20: Others | C20: ADANIPORTS | D20: 319.20 | E20: 315.87 | F20: 307.23 | G20: 295.27 | H20: 286.63 | I20: 327.83 | J20: 336.47 | K20: 348.43 | L20: 324.5 | M20: 303.9 | N20: 13242500 | O20: 7.47%
A21: 11 | B21: Power | C21: ADANIPOWER | D21: 24.10 | E21: 23.80 | F21: 23.05 | G21: 22.00 | H21: 21.25 | I21: 24.85 | J21: 25.60 | K21: 26.65 | L21: 24.55 | M21: 22.75 | N21: 165440000 | O21: 0.38%
A22: 12 | B22: Pharma | C22: AJANTPHARM | D22: 1010.80 | E22: 1008.32 | F22: 983.63 | G22: 956.47 | H22: 931.78 | I22: 1035.48 | J22: 1060.17 | K22: 1087.33 | L22: 1033 | M22: 981.15 | N22: 557000 | O22: 0.18%
A23: 13 | B23: Banking | C23: ALBK | D23: 33.70 | E23: 33.47 | F23: 32.83 | G23: 31.97 | H23: 31.33 | I23: 34.33 | J23: 34.97 | K23: 35.83 | L23: 34.1 | M23: 32.6 | N23: 18832000 | O23: -1.15%
A24: 14 | B24: Automobile | C24: AMARAJABAT | D24: 723.00 | E24: 722.37 | F24: 713.73 | G24: 704.47 | H24: 695.83 | I24: 731.63 | J24: 740.27 | K24: 749.53 | L24: 731 | M24: 713.1 | N24: 1181600 | O24: 6.84%
A25: 15 | B25: Cement | C25: AMBUJACEM | D25: 205.60 | E25: 207.20 | F25: 201.45 | G25: 197.30 | H25: 191.55 | I25: 211.35 | J25: 217.10 | K25: 221.25 | L25: 212.95 | M25: 203.05 | N25: 12730000 | O25: 1.72%
A26: 17 | B26: Others | C26: APOLLOHOSP | D26: 1092.45 | E26: 1087.77 | F26: 1066.58 | G26: 1040.72 | H26: 1019.53 | I26: 1113.63 | J26: 1134.82 | K26: 1160.68 | L26: 1108.95 | M26: 1061.9 | N26: 1049500 | O26: -3.05%
A27: 18 | B27: Automobile | C27: APOLLOTYRE | D27: 202.45 | E27: 203.95 | F27: 199.25 | G27: 196.05 | H27: 191.35 | I27: 207.15 | J27: 211.85 | K27: 215.05 | L27: 208.65 | M27: 200.75 | N27: 11535000 | O27: 1.96%
A28: 19 | B28: Textile | C28: ARVIND | D28: 301.05 | E28: 299.38 | F28: 291.12 | G28: 281.18 | H28: 272.92 | I28: 309.32 | J28: 317.58 | K28: 327.52 | L28: 307.65 | M28: 289.45 | N28: 7202000 | O28: -4.66%
A29: 20 | B29: Automobile | C29: ASHOKLEY | D29: 110.85 | E29: 110.05 | F29: 108.20 | G29: 105.55 | H29: 103.70 | I29: 112.70 | J29: 114.55 | K29: 117.20 | L29: 111.9 | M29: 107.4 | N29: 59784000 | O29: 0.60%
A30: 21 | B30: FMCG | C30: ASIANPAINT | D30: 1200.35 | E30: 1216.67 | F30: 1176.68 | G30: 1153.02 | H30: 1113.03 | I30: 1240.33 | J30: 1280.32 | K30: 1303.98 | L30: 1256.65 | M30: 1193 | N30: 5052000 | O30: -0.41%
A31: 22 | B31: Pharma | C31: AUROPHARMA | D31: 766.20 | E31: 758.95 | F31: 745.35 | G31: 724.50 | H31: 710.90 | I31: 779.80 | J31: 793.40 | K31: 814.25 | L31: 772.55 | M31: 738.1 | N31: 20111000 | O31: -3.83%
A32: 23 | B32: Banking | C32: AXISBANK | D32: 554.95 | E32: 557.87 | F32: 548.73 | G32: 542.52 | H32: 533.38 | I32: 564.08 | J32: 573.22 | K32: 579.43 | L32: 567 | M32: 551.65 | N32: 38286000 | O32: 0.86%
A33: 24 | B33: Automobile | C33: BAJAJ-AUTO | D33: 2554.50 | E33: 2561.73 | F33: 2533.57 | G33: 2512.63 | H33: 2484.47 | I33: 2582.67 | J33: 2610.83 | K33: 2631.77 | L33: 2589.9 | M33: 2540.8 | N33: 2577000 | O33: 0.39%
A34: 25 | B34: Others | C34: BAJAJFINSV | D34: 5448.15 | E34: 5447.48 | F34: 5300.97 | G34: 5153.78 | H34: 5007.27 | I34: 5594.67 | J34: 5741.18 | K34: 5888.37 | L34: 5594 | M34: 5300.3 | N34: 768125 | O34: 0.33%
A35: 26 | B35: Finance | C35: BAJFINANCE | D35: 2057.60 | E35: 2042.17 | F35: 1969.43 | G35: 1881.27 | H35: 1808.53 | I35: 2130.33 | J35: 2203.07 | K35: 2291.23 | L35: 2114.9 | M35: 1954 | N35: 7937500 | O35: 0.87%
A36: 27 | B36: Others | C36: BALKRISIND | D36: 985.50 | E36: 990.05 | F36: 970.90 | G36: 956.30 | H36: 937.15 | I36: 1004.65 | J36: 1023.80 | K36: 1038.40 | L36: 1009.2 | M36: 975.45 | N36: 2207200 | O36: 0.15%
A37: 29 | B37: Banking | C37: BANKBARODA | D37: 93.75 | E37: 95.43 | F37: 91.42 | G37: 89.08 | H37: 85.07 | I37: 97.77 | J37: 101.78 | K37: 104.12 | L37: 99.45 | M37: 93.1 | N37: 80556000 | O37: 4.33%
A38: 30 | B38: Banking | C38: BANKINDIA | D38: 75.50 | E38: 75.60 | F38: 73.40 | G38: 71.30 | H38: 69.10 | I38: 77.70 | J38: 79.90 | K38: 82.00 | L38: 77.8 | M38: 73.5 | N38: 18924000 | O38: -3.04%
A39: 31 | B39: FMCG | C39: BATAINDIA | D39: 868.20 | E39: 881.47 | F39: 850.93 | G39: 833.67 | H39: 803.13 | I39: 898.73 | J39: 929.27 | K39: 946.53 | L39: 912 | M39: 864.2 | N39: 1731400 | O39: -6.59%
A40: 32 | B40: Capital_Goods | C40: BEL | D40: 76.10 | E40: 76.65 | F40: 74.40 | G40: 72.70 | H40: 70.45 | I40: 78.35 | J40: 80.60 | K40: 82.30 | L40: 78.9 | M40: 74.95 | N40: 32694750 | O40: -1.33%
A41: 33 | B41: Infrastructure | C41: BEML | D41: 546.40 | E41: 550.90 | F41: 530.65 | G41: 514.90 | H41: 494.65 | I41: 566.65 | J41: 586.90 | K41: 602.65 | L41: 571.15 | M41: 535.15 | N41: 1540500 | O41: -0.90%
A42: 34 | B42: Others | C42: BERGEPAINT | D42: 268.35 | E42: 269.25 | F42: 263.60 | G42: 258.85 | H42: 253.20 | I42: 274.00 | J42: 279.65 | K42: 284.40 | L42: 274.9 | M42: 264.5 | N42: 2101000 | O42: 11.83%
A43: 35 | B43: Finance | C43: BHARATFIN | D43: 999.25 | E43: 997.17 | F43: 985.83 | G43: 972.42 | H43: 961.08 | I43: 1010.58 | J43: 1021.92 | K43: 1035.33 | L43: 1008.5 | M43: 983.75 | N43: 5127500 | O43: -0.20%
A44: 36 | B44: Automobile | C44: BHARATFORG | D44: 567.10 | E44: 564.33 | F44: 555.82 | G44: 544.53 | H44: 536.02 | I44: 575.62 | J44: 584.13 | K44: 595.42 | L44: 572.85 | M44: 553.05 | N44: 7437600 | O44: -0.53%
A45: 37 | B45: Telecom | C45: BHARTIARTL | D45: 289.65 | E45: 291.98 | F45: 286.02 | G45: 282.38 | H45: 276.42 | I45: 295.62 | J45: 301.58 | K45: 305.22 | L45: 297.95 | M45: 288.35 | N45: 51627300 | O45: 3.01%
A46: 38 | B46: Capital_Goods | C46: BHEL | D46: 70.20 | E46: 69.98 | F46: 68.22 | G46: 66.23 | H46: 64.47 | I46: 71.97 | J46: 73.73 | K46: 75.72 | L46: 71.75 | M46: 68 | N46: 38370000 | O46: 1.17%
A47: 39 | B47: Pharma | C47: BIOCON | D47: 589.20 | E47: 593.00 | F47: 576.20 | G47: 563.20 | H47: 546.40 | I47: 606.00 | J47: 622.80 | K47: 635.80 | L47: 609.8 | M47: 580 | N47: 7562700 | O47: -2.43%
A48: 40 | B48: Automobile | C48: BOSCHLTD | D48: 18510.60 | E48: 18482.50 | F48: 18194.10 | G48: 17877.60 | H48: 17589.20 | I48: 18799.00 | J48: 19087.40 | K48: 19403.90 | L48: 18770.9 | M48: 18166 | N48: 118920 | O48: -1.52%
A49: 41 | B49: Oil_Gas | C49: BPCL | D49: 257.05 | E49: 260.62 | F49: 251.98 | G49: 246.92 | H49: 238.28 | I49: 265.68 | J49: 274.32 | K49: 279.38 | L49: 269.25 | M49: 255.55 | N49: 15310800 | O49: 3.32%
A50: 42 | B50: FMCG | C50: BRITANNIA | D50: 5515.15 | E50: 5546.38 | F50: 5417.77 | G50: 5320.38 | H50: 5191.77 | I50: 5643.77 | J50: 5772.38 | K50: 5869.77 | L50: 5675 | M50: 5449 | N50: 1364000 | O50: 0.09%
A51: 43 | B51: Pharma | C51: CADILAHC | D51: 381.05 | E51: 379.67 | F51: 372.88 | G51: 364.72 | H51: 357.93 | I51: 387.83 | J51: 394.62 | K51: 402.78 | L51: 386.45 | M51: 371.5 | N51: 9195200 | O51: -2.08%
A52: 44 | B52: Banking | C52: CANBK | D52: 217.10 | E52: 216.53 | F52: 212.07 | G52: 207.03 | H52: 202.57 | I52: 221.57 | J52: 226.03 | K52: 231.07 | L52: 221 | M52: 211.5 | N52: 8870000 | O52: 2.00%
A53: 45 | B53: Others | C53: CANFINHOME | D53: 235.85 | E53: 235.00 | F53: 221.70 | G53: 207.55 | H53: 194.25 | I53: 249.15 | J53: 262.45 | K53: 276.60 | L53: 248.3 | M53: 220.85 | N53: 5418750 | O53: 5.71%
A54: 46 | B54: Finance | C54: CAPF | D54: 453.30 | E54: 451.75 | F54: 440.20 | G54: 427.10 | H54: 415.55 | I54: 464.85 | J54: 476.40 | K54: 489.50 | L54: 463.3 | M54: 438.65 | N54: 6343200 | O54: -0.20%
A55: 47 | B55: Oil_Gas | C55: CASTROLIND | D55: 136.30 | E55: 135.73 | F55: 134.22 | G55: 132.13 | H55: 130.62 | I55: 137.82 | J55: 139.33 | K55: 141.42 | L55: 137.25 | M55: 133.65 | N55: 9626400 | O55: 1.12%
A56: 48 | B56: Automobile | C56: CEATLTD | D56: 1062.75 | E56: 1065.65 | F56: 1036.30 | G56: 1009.85 | H56: 980.50 | I56: 1092.10 | J56: 1121.45 | K56: 1147.90 | L56: 1095 | M56: 1039.2 | N56: 1056300 | O56: 1.45%
A57: 49 | B57: Textile | C57: CENTURYTEX | D57: 742.20 | E57: 743.80 | F57: 723.90 | G57: 705.60 | H57: 685.70 | I57: 762.10 | J57: 782.00 | K57: 800.30 | L57: 763.7 | M57: 725.5 | N57: 6501550 | O57: -0.24%
A58: 50 | B58: Power | C58: CESC | D58: 837.55 | E58: 834.88 | F58: 818.02 | G58: 798.48 | H58: 781.62 | I58: 854.42 | J58: 871.28 | K58: 890.82 | L58: 851.75 | M58: 815.35 | N58: 6004350 | O58: 0.05%
A59: 51 | B59: Power | C59: CGPOWER | D59: 40.75 | E59: 41.08 | F59: 39.77 | G59: 38.78 | H59: 37.47 | I59: 42.07 | J59: 43.38 | K59: 44.37 | L59: 42.4 | M59: 40.1 | N59: 34368000 | O59: 0.17%
A60: 52 | B60: Others | C60: CHENNPETRO | D60: 226.75 | E60: 227.47 | F60: 220.33 | G60: 213.92 | H60: 206.78 | I60: 233.88 | J60: 241.02 | K60: 247.43 | L60: 234.6 | M60: 221.05 | N60: 1086000 | O60: 0.14%
A61: 53 | B61: Others | C61: CHOLAFIN | D61: 1069.50 | E61: 1068.50 | F61: 1036.00 | G61: 1002.50 | H61: 970.00 | I61: 1102.00 | J61: 1134.50 | K61: 1168.00 | L61: 1101 | M61: 1035 | N61: 999500 | O61: 9.84%
A62: 54 | B62: Pharma | C62: CIPLA | D62: 637.40 | E62: 635.18 | F62: 628.32 | G62: 619.23 | H62: 612.37 | I62: 644.27 | J62: 651.13 | K62: 660.22 | L62: 642.05 | M62: 626.1 | N62: 10565000 | O62: 0.22%
A63: 55 | B63: Others | C63: COALINDIA | D63: 273.85 | E63: 273.42 | F63: 269.13 | G63: 264.42 | H63: 260.13 | I63: 278.13 | J63: 282.42 | K63: 287.13 | L63: 277.7 | M63: 268.7 | N63: 18823200 | O63: 0.14%
A64: 56 | B64: FMCG | C64: COLPAL | D64: 1044.20 | E64: 1038.93 | F64: 1022.87 | G64: 1001.53 | H64: 985.47 | I64: 1060.27 | J64: 1076.33 | K64: 1097.67 | L64: 1055 | M64: 1017.6 | N64: 1588300 | O64: -1.09%
A65: 57 | B65: Others | C65: CONCOR | D65: 598.05 | E65: 592.07 | F65: 570.98 | G65: 543.92 | H65: 522.83 | I65: 619.13 | J65: 640.22 | K65: 667.28 | L65: 613.15 | M65: 565 | N65: 2898750 | O65: 1.62%
A66: 58 | B66: Capital_Goods | C66: CUMMINSIND | D66: 668.15 | E66: 665.10 | F66: 651.20 | G66: 634.25 | H66: 620.35 | I66: 682.05 | J66: 695.95 | K66: 712.90 | L66: 679 | M66: 648.15 | N66: 1190700 | O66: 0.18%
A67: 59 | B67: FMCG | C67: DABUR | D67: 394.45 | E67: 397.22 | F67: 382.43 | G67: 370.42 | H67: 355.63 | I67: 409.23 | J67: 424.02 | K67: 436.03 | L67: 412 | M67: 385.2 | N67: 16425000 | O67: 5.80%
A68: 60 | B68: Cement | C68: DALMIABHA | D68: 2059.65 | E68: 2062.63 | F68: 2013.32 | G68: 1966.98 | H68: 1917.67 | I68: 2108.97 | J68: 2158.28 | K68: 2204.62 | L68: 2111.95 | M68: 2016.3 | N68: 436800 | O68: 1.75%
A69: 61 | B69: Banking | C69: DCBBANK | D69: 142.50 | E69: 141.88 | F69: 138.87 | G69: 135.23 | H69: 132.22 | I69: 145.52 | J69: 148.53 | K69: 152.17 | L69: 144.9 | M69: 138.25 | N69: 5971500 | O69: -1.26%
A70: 62 | B70: Finance | C70: DHFL | D70: 243.00 | E70: 233.88 | F70: 206.32 | G70: 169.63 | H70: 142.07 | I70: 270.57 | J70: 298.13 | K70: 334.82 | L70: 261.45 | M70: 197.2 | N70: 12090000 | O70: 0.94%
A71: 63 | B71: Media | C71: DISHTV | D71: 54.25 | E71: 53.68 | F71: 52.57 | G71: 50.88 | H71: 49.77 | I71: 55.37 | J71: 56.48 | K71: 58.17 | L71: 54.8 | M71: 52 | N71: 36912000 | O71: -1.87%
A72: 64 | B72: Pharma | C72: DIVISLAB | D72: 1254.35 | E72: 1266.77 | F72: 1227.58 | G72: 1200.82 | H72: 1161.63 | I72: 1293.53 | J72: 1332.72 | K72: 1359.48 | L72: 1305.95 | M72: 1240 | N72: 2948800 | O72: 6.44%
A73: 65 | B73: Realty | C73: DLF | D73: 154.00 | E73: 154.23 | F73: 152.02 | G73: 150.03 | H73: 147.82 | I73: 156.22 | J73: 158.43 | K73: 160.42 | L73: 156.45 | M73: 152.25 | N73: 31090000 | O73: -1.57%
A74: 66 | B74: Pharma | C74: DRREDDY | D74: 2453.75 | E74: 2422.13 | F74: 2369.77 | G74: 2285.78 | H74: 2233.42 | I74: 2506.12 | J74: 2558.48 | K74: 2642.47 | L74: 2474.5 | M74: 2338.15 | N74: 4233250 | O74: -0.52%
A75: 67 | B75: Automobile | C75: EICHERMOT | D75: 21134.10 | E75: 21443.12 | F75: 20611.98 | G75: 20089.87 | H75: 19258.73 | I75: 21965.23 | J75: 22796.37 | K75: 23318.48 | L75: 22274.25 | M75: 20921 | N75: 310550 | O75: 3.77%
A76: 68 | B76: Infrastructure | C76: ENGINERSIN | D76: 102.15 | E76: 103.35 | F76: 98.95 | G76: 95.75 | H76: 91.35 | I76: 106.55 | J76: 110.95 | K76: 114.15 | L76: 107.75 | M76: 100.15 | N76: 8547000 | O76: -10.32%
A77: 69 | B77: Finance | C77: EQUITAS | D77: 113.95 | E77: 112.70 | F77: 109.40 | G77: 104.85 | H77: 101.55 | I77: 117.25 | J77: 120.55 | K77: 125.10 | L77: 116 | M77: 108.15 | N77: 14660000 | O77: -1.95%
A78: 70 | B78: Automobile | C78: ESCORTS | D78: 569.10 | E78: 566.37 | F78: 553.03 | G78: 536.97 | H78: 523.63 | I78: 582.43 | J78: 595.77 | K78: 611.83 | L78: 579.7 | M78: 550.3 | N78: 5434000 | O78: -1.93%
A79: 71 | B79: Automobile | C79: EXIDEIND | D79: 242.60 | E79: 245.55 | F79: 238.10 | G79: 233.60 | H79: 226.15 | I79: 250.05 | J79: 257.50 | K79: 262.00 | L79: 253 | M79: 241.05 | N79: 5524000 | O79: 5.02%
A80: 72 | B80: Banking | C80: FEDERALBNK | D80: 70.75 | E80: 70.18 | F80: 69.12 | G80: 67.48 | H80: 66.42 | I80: 71.82 | J80: 72.88 | K80: 74.52 | L80: 71.25 | M80: 68.55 | N80: 46541000 | O80: 4.29%
A81: 73 | B81: Oil_Gas | C81: GAIL | D81: 335.00 | E81: 338.50 | F81: 329.50 | G81: 324.00 | H81: 315.00 | I81: 344.00 | J81: 353.00 | K81: 358.50 | L81: 347.5 | M81: 333 | N81: 19354419 | O81: 1.57%
A82: 74 | B82: Pharma | C82: GLENMARK | D82: 592.60 | E82: 593.60 | F82: 581.30 | G82: 570.00 | H82: 557.70 | I82: 604.90 | J82: 617.20 | K82: 628.50 | L82: 605.9 | M82: 582.3 | N82: 3798000 | O82: -1.25%
A83: 75 | B83: Infrastructure | C83: GMRINFRA | D83: 15.75 | E83: 15.78 | F83: 15.42 | G83: 15.08 | H83: 14.72 | I83: 16.12 | J83: 16.48 | K83: 16.82 | L83: 16.15 | M83: 15.45 | N83: 185310000 | O83: -0.39%
A84: 76 | B84: Others | C84: GODFRYPHLP | D84: 682.40 | E84: 678.55 | F84: 663.85 | G84: 645.30 | H84: 630.60 | I84: 697.10 | J84: 711.80 | K84: 730.35 | L84: 693.25 | M84: 660 | N84: 578900 | O84: 2.22%
A85: 77 | B85: FMCG | C85: GODREJCP | D85: 671.30 | E85: 674.78 | F85: 643.62 | G85: 615.93 | H85: 584.77 | I85: 702.47 | J85: 733.63 | K85: 761.32 | L85: 705.95 | M85: 647.1 | N85: 4977600 | O85: 4.22%
A86: 78 | B86: FMCG | C86: GODREJIND | D86: 453.00 | E86: 465.28 | F86: 438.42 | G86: 423.83 | H86: 396.97 | I86: 479.87 | J86: 506.73 | K86: 521.32 | L86: 492.15 | M86: 450.7 | N86: 2080500 | O86: 3.35%
A87: 79 | B87: Pharma | C87: GRANULES | D87: 92.15 | E87: 91.95 | F87: 89.90 | G87: 87.65 | H87: 85.60 | I87: 94.20 | J87: 96.25 | K87: 98.50 | L87: 94 | M87: 89.7 | N87: 14100000 | O87: 1.26%
A88: 80 | B88: Cement | C88: GRASIM | D88: 904.30 | E88: 906.82 | F88: 876.78 | G88: 849.27 | H88: 819.23 | I88: 934.33 | J88: 964.37 | K88: 991.88 | L88: 936.85 | M88: 879.3 | N88: 3921750 | O88: 5.94%
A89: 81 | B89: Others | C89: GSFC | D89: 88.95 | E89: 88.85 | F89: 86.95 | G89: 84.95 | H89: 83.05 | I89: 90.85 | J89: 92.75 | K89: 94.75 | L89: 90.75 | M89: 86.85 | N89: 13914000 | O89: 0.75%
A90: 82 | B90: Others | C90: HAVELLS | D90: 566.20 | E90: 568.60 | F90: 553.40 | G90: 540.60 | H90: 525.40 | I90: 581.40 | J90: 596.60 | K90: 609.40 | L90: 583.8 | M90: 555.8 | N90: 4176000 | O90: -0.17%
A91: 83 | B91: Others | C91: HCC | D91: 11.35 | E91: 11.30 | F91: 11.00 | G91: 10.65 | H91: 10.35 | I91: 11.65 | J91: 11.95 | K91: 12.30 | L91: 11.6 | M91: 10.95 | N91: 34668000 | O91: -0.36%
A92: 84 | B92: Technology | C92: HCLTECH | D92: 1071.10 | E92: 1067.68 | F92: 1052.42 | G92: 1033.73 | H92: 1018.47 | I92: 1086.37 | J92: 1101.63 | K92: 1120.32 | L92: 1082.95 | M92: 1049 | N92: 7156800 | O92: 0.41%
A93: 85 | B93: Finance | C93: HDFC | D93: 1718.00 | E93: 1710.47 | F93: 1682.68 | G93: 1647.37 | H93: 1619.58 | I93: 1745.78 | J93: 1773.57 | K93: 1808.88 | L93: 1738.25 | M93: 1675.15 | N93: 25830500 | O93: -3.31%
A94: 86 | B94: Banking | C94: HDFCBANK | D94: 1944.05 | E94: 1950.00 | F94: 1929.15 | G94: 1914.25 | H94: 1893.40 | I94: 1964.90 | J94: 1985.75 | K94: 2000.65 | L94: 1970.85 | M94: 1935.1 | N94: 12406000 | O94: -1.47%
A95: 88 | B95: Automobile | C95: HEROMOTOCO | D95: 2883.90 | E95: 2891.45 | F95: 2857.85 | G95: 2831.80 | H95: 2798.20 | I95: 2917.50 | J95: 2951.10 | K95: 2977.15 | L95: 2925.05 | M95: 2865.4 | N95: 1373800 | O95: 3.78%
A96: 89 | B96: Technology | C96: HEXAWARE | D96: 392.75 | E96: 394.97 | F96: 378.98 | G96: 365.22 | H96: 349.23 | I96: 408.73 | J96: 424.72 | K96: 438.48 | L96: 410.95 | M96: 381.2 | N96: 5109000 | O96: 9.38%
A97: 90 | B97: Metals | C97: HINDALCO | D97: 224.20 | E97: 224.03 | F97: 219.67 | G97: 215.13 | H97: 210.77 | I97: 228.57 | J97: 232.93 | K97: 237.47 | L97: 228.4 | M97: 219.5 | N97: 36179500 | O97: -2.79%
A98: 91 | B98: Oil_Gas | C98: HINDPETRO | D98: 171.20 | E98: 174.45 | F98: 166.90 | G98: 162.60 | H98: 155.05 | I98: 178.75 | J98: 186.30 | K98: 190.60 | L98: 182 | M98: 170.15 | N98: 26896275 | O98: -1.98%
A99: 92 | B99: FMCG | C99: HINDUNILVR | D99: 1507.30 | E99: 1519.67 | F99: 1476.23 | G99: 1445.17 | H99: 1401.73 | I99: 1550.73 | J99: 1594.17 | K99: 1625.23 | L99: 1563.1 | M99: 1488.6 | N99: 9463200 | O99: 0.72%
A100: 93 | B100: Metals | C100: HINDZINC | D100: 273.85 | E100: 272.58 | F100: 269.77 | G100: 265.68 | H100: 262.87 | I100: 276.67 | J100: 279.48 | K100: 283.57 | L100: 275.4 | M100: 268.5 | N100: 8115200 | O100: 2.09%
A101: 94 | B101: Finance | C101: IBULHSGFIN | D101: 942.00 | E101: 945.25 | F101: 913.80 | G101: 885.60 | H101: 854.15 | I101: 973.45 | J101: 1004.90 | K101: 1033.10 | L101: 976.7 | M101: 917.05 | N101: 16131500 | O101: -1.86%
A102: 95 | B102: Banking | C102: ICICIBANK | D102: 306.45 | E102: 307.50 | F102: 302.60 | G102: 298.75 | H102: 293.85 | I102: 311.35 | J102: 316.25 | K102: 320.10 | L102: 312.4 | M102: 303.65 | N102: 100548250 | O102: 2.76%
A103: 96 | B103: Others | C103: ICICIPRULI | D103: 317.25 | E103: 316.37 | F103: 310.73 | G103: 304.22 | H103: 298.58 | I103: 322.88 | J103: 328.52 | K103: 335.03 | L103: 322 | M103: 309.85 | N103: 4217200 | O103: -2.26%
A104: 97 | B104: Banking | C104: IDBI | D104: 58.85 | E104: 58.72 | F104: 58.23 | G104: 57.62 | H104: 57.13 | I104: 59.33 | J104: 59.82 | K104: 60.43 | L104: 59.2 | M104: 58.1 | N104: 51260000 | O104: -3.12%
A105: 98 | B105: Telecom | C105: IDEA | D105: 34.55 | E105: 34.47 | F105: 33.63 | G105: 32.72 | H105: 31.88 | I105: 35.38 | J105: 36.22 | K105: 37.13 | L105: 35.3 | M105: 33.55 | N105: 147182000 | O105: -0.72%
A106: 99 | B106: Finance | C106: IDFC | D106: 36.95 | E106: 36.78 | F106: 35.87 | G106: 34.78 | H106: 33.87 | I106: 37.87 | J106: 38.78 | K106: 39.87 | L106: 37.7 | M106: 35.7 | N106: 114325200 | O106: -0.70%
A107: 100 | B107: Banking | C107: IDFCBANK | D107: 33.70 | E107: 33.60 | F107: 32.80 | G107: 31.90 | H107: 31.10 | I107: 34.50 | J107: 35.30 | K107: 36.20 | L107: 34.4 | M107: 32.7 | N107: 125862000 | O107: 1.12%
A108: 101 | B108: Finance | C108: IFCI | D108: 12.25 | E108: 12.12 | F108: 11.88 | G108: 11.52 | H108: 11.28 | I108: 12.48 | J108: 12.72 | K108: 13.08 | L108: 12.35 | M108: 11.75 | N108: 56950000 | O108: -1.04%
A109: 102 | B109: Oil_Gas | C109: IGL | D109: 224.75 | E109: 224.35 | F109: 221.05 | G109: 217.35 | H109: 214.05 | I109: 228.05 | J109: 231.35 | K109: 235.05 | L109: 227.65 | M109: 220.65 | N109: 4240500 | O109: -3.20%
A110: 103 | B110: Cement | C110: INDIACEM | D110: 92.95 | E110: 92.40 | F110: 90.15 | G110: 87.35 | H110: 85.10 | I110: 95.20 | J110: 97.45 | K110: 100.25 | L110: 94.65 | M110: 89.6 | N110: 17461500 | O110: -2.73%
A111: 104 | B111: Banking | C111: INDIANB | D111: 226.80 | E111: 228.77 | F111: 222.23 | G111: 217.67 | H111: 211.13 | I111: 233.33 | J111: 239.87 | K111: 244.43 | L111: 235.3 | M111: 224.2 | N111: 5034000 | O111: 4.01%
A112: 105 | B112: Others | C112: INDIGO | D112: 726.40 | E112: 736.73 | F112: 687.42 | G112: 648.43 | H112: 599.12 | I112: 775.72 | J112: 825.03 | K112: 864.02 | L112: 786.05 | M112: 697.75 | N112: 3601200 | O112: 9.75%
A113: 106 | B113: Banking | C113: INDUSINDBK | D113: 1610.30 | E113: 1607.37 | F113: 1590.93 | G113: 1571.57 | H113: 1555.13 | I113: 1626.73 | J113: 1643.17 | K113: 1662.53 | L113: 1623.8 | M113: 1588 | N113: 6574500 | O113: 0.78%
A114: 107 | B114: Technology | C114: INFIBEAM | D114: 58.15 | E114: 57.58 | F114: 54.72 | G114: 51.28 | H114: 48.42 | I114: 61.02 | J114: 63.88 | K114: 67.32 | L114: 60.45 | M114: 54.15 | N114: 25872000 | O114: -0.84%
A115: 108 | B115: Telecom | C115: INFRATEL | D115: 267.40 | E115: 268.13 | F115: 262.17 | G115: 256.93 | H115: 250.97 | I115: 273.37 | J115: 279.33 | K115: 284.57 | L115: 274.1 | M115: 262.9 | N115: 5910900 | O115: 1.52%
A116: 109 | B116: Technology | C116: INFY | D116: 718.35 | E116: 715.97 | F116: 708.03 | G116: 697.72 | H116: 689.78 | I116: 726.28 | J116: 734.22 | K116: 744.53 | L116: 723.9 | M116: 705.65 | N116: 27898800 | O116: 0.90%
A117: 110 | B117: Oil_Gas | C117: IOC | D117: 122.50 | E117: 123.18 | F117: 119.57 | G117: 116.63 | H117: 113.02 | I117: 126.12 | J117: 129.73 | K117: 132.67 | L117: 126.8 | M117: 120.25 | N117: 33294000 | O117: 4.07%
A118: 111 | B118: Infrastructure | C118: IRB | D118: 125.65 | E118: 125.05 | F118: 121.10 | G118: 116.55 | H118: 112.60 | I118: 129.60 | J118: 133.55 | K118: 138.10 | L118: 129 | M118: 120.5 | N118: 14115000 | O118: 1.80%
A119: 112 | B119: FMCG | C119: ITC | D119: 269.45 | E119: 271.48 | F119: 266.77 | G119: 264.08 | H119: 259.37 | I119: 274.17 | J119: 278.88 | K119: 281.57 | L119: 276.2 | M119: 268.8 | N119: 75669600 | O119: 3.96%
A120: 113 | B120: Others | C120: JETAIRWAYS | D120: 174.20 | E120: 173.08 | F120: 163.52 | G120: 152.83 | H120: 143.27 | I120: 183.77 | J120: 193.33 | K120: 204.02 | L120: 182.65 | M120: 162.4 | N120: 7094400 | O120: 5.99%
A121: 114 | B121: Metals | C121: JINDALSTEL | D121: 174.95 | E121: 174.43 | F121: 170.12 | G121: 165.28 | H121: 160.97 | I121: 179.27 | J121: 183.58 | K121: 188.42 | L121: 178.75 | M121: 169.6 | N121: 29718000 | O121: -4.45%
A122: 115 | B122: Others | C122: JISLJALEQS | D122: 63.30 | E122: 62.80 | F122: 61.15 | G122: 59.00 | H122: 57.35 | I122: 64.95 | J122: 66.60 | K122: 68.75 | L122: 64.45 | M122: 60.65 | N122: 37926000 | O122: -1.63%
A123: 116 | B123: Realty | C123: JPASSOCIAT | D123: 6.30 | E123: 6.25 | F123: 6.05 | G123: 5.80 | H123: 5.60 | I123: 6.50 | J123: 6.70 | K123: 6.95 | L123: 6.45 | M123: 6 | N123: 103564000 | O123: -0.23%
A124: 117 | B124: Metals | C124: JSWSTEEL | D124: 371.55 | E124: 372.33 | F124: 362.82 | G124: 354.08 | H124: 344.57 | I124: 381.07 | J124: 390.58 | K124: 399.32 | L124: 381.85 | M124: 363.6 | N124: 51741000 | O124: 0.91%
A125: 118 | B125: Others | C125: JUBLFOOD | D125: 1155.00 | E125: 1164.60 | F125: 1131.25 | G125: 1107.50 | H125: 1074.15 | I125: 1188.35 | J125: 1221.70 | K125: 1245.45 | L125: 1197.95 | M125: 1140.85 | N125: 3282000 | O125: -4.16%
A126: 119 | B126: Others | C126: JUSTDIAL | D126: 405.10 | E126: 421.02 | F126: 380.18 | G126: 355.27 | H126: 314.43 | I126: 445.93 | J126: 486.77 | K126: 511.68 | L126: 461.85 | M126: 396.1 | N126: 2745400 | O126: 15.63%
A127: 120 | B127: Others | C127: KAJARIACER | D127: 340.00 | E127: 338.63 | F127: 330.97 | G127: 321.93 | H127: 314.27 | I127: 347.67 | J127: 355.33 | K127: 364.37 | L127: 346.3 | M127: 329.6 | N127: 2290000 | O127: -4.74%
A128: 121 | B128: Banking | C128: KOTAKBANK | D128: 1108.10 | E128: 1108.75 | F128: 1088.25 | G128: 1068.40 | H128: 1047.90 | I128: 1128.60 | J128: 1149.10 | K128: 1168.95 | L128: 1129.25 | M128: 1088.9 | N128: 10310400 | O128: -6.17%
A129: 122 | B129: Technology | C129: KPIT | D129: 200.05 | E129: 198.55 | F129: 192.50 | G129: 184.95 | H129: 178.90 | I129: 206.10 | J129: 212.15 | K129: 219.70 | L129: 204.6 | M129: 191 | N129: 10282500 | O129: 1.87%
A130: 123 | B130: Others | C130: KSCL | D130: 481.15 | E130: 485.73 | F130: 465.67 | G130: 450.18 | H130: 430.12 | I130: 501.22 | J130: 521.28 | K130: 536.77 | L130: 505.8 | M130: 470.25 | N130: 1054500 | O130: -1.26%
A131: 124 | B131: Banking | C131: KTKBANK | D131: 97.95 | E131: 98.80 | F131: 95.90 | G131: 93.85 | H131: 90.95 | I131: 100.85 | J131: 103.75 | K131: 105.80 | L131: 101.7 | M131: 96.75 | N131: 16402500 | O131: 1.50%
A132: 125 | B132: Finance | C132: L&TFH | D132: 123.85 | E132: 123.48 | F132: 119.77 | G132: 115.68 | H132: 111.97 | I132: 127.57 | J132: 131.28 | K132: 135.37 | L132: 127.2 | M132: 119.4 | N132: 35136000 | O132: -2.85%
A133: 126 | B133: Finance | C133: LICHSGFIN | D133: 403.10 | E133: 405.53 | F133: 395.17 | G133: 387.23 | H133: 376.87 | I133: 413.47 | J133: 423.83 | K133: 431.77 | L133: 415.9 | M133: 397.6 | N133: 9911000 | O133: -1.05%
A134: 127 | B134: Capital_Goods | C134: LT | D134: 1212.50 | E134: 1215.90 | F134: 1203.40 | G134: 1194.30 | H134: 1181.80 | I134: 1225.00 | J134: 1237.50 | K134: 1246.60 | L134: 1228.4 | M134: 1206.8 | N134: 11499750 | O134: 2.00%
A135: 128 | B135: Pharma | C135: LUPIN | D135: 867.60 | E135: 864.88 | F135: 847.82 | G135: 828.03 | H135: 810.97 | I135: 884.67 | J135: 901.73 | K135: 921.52 | L135: 881.95 | M135: 845.1 | N135: 8837500 | O135: -4.19%
A136: 129 | B136: Automobile | C136: M&M | D136: 766.70 | E136: 771.20 | F136: 757.75 | G136: 748.80 | H136: 735.35 | I136: 780.15 | J136: 793.60 | K136: 802.55 | L136: 784.65 | M136: 762.25 | N136: 16180000 | O136: -2.81%
A137: 130 | B137: Finance | C137: M&MFIN | D137: 372.20 | E137: 372.47 | F137: 362.73 | G137: 353.27 | H137: 343.53 | I137: 381.93 | J137: 391.67 | K137: 401.13 | L137: 382.2 | M137: 363 | N137: 11493750 | O137: 1.22%
A138: 131 | B138: Others | C138: MANAPPURAM | D138: 69.55 | E138: 69.02 | F138: 66.93 | G138: 64.32 | H138: 62.23 | I138: 71.63 | J138: 73.72 | K138: 76.33 | L138: 71.1 | M138: 66.4 | N138: 20436000 | O138: -2.29%
A139: 132 | B139: FMCG | C139: MARICO | D139: 295.55 | E139: 299.75 | F139: 286.60 | G139: 277.65 | H139: 264.50 | I139: 308.70 | J139: 321.85 | K139: 330.80 | L139: 312.9 | M139: 290.8 | N139: 9009000 | O139: 0.58%
A140: 133 | B140: Automobile | C140: MARUTI | D140: 6720.05 | E140: 6790.47 | F140: 6619.78 | G140: 6519.52 | H140: 6348.83 | I140: 6890.73 | J140: 7061.42 | K140: 7161.68 | L140: 6961.15 | M140: 6690.2 | N140: 3172725 | O140: 0.50%
A141: 134 | B141: FMCG | C141: MCDOWELL-N | D141: 463.65 | E141: 457.95 | F141: 445.00 | G141: 426.35 | H141: 413.40 | I141: 476.60 | J141: 489.55 | K141: 508.20 | L141: 470.9 | M141: 439.3 | N141: 10896250 | O141: 2.61%
A142: 135 | B142: Others | C142: MCX | D142: 672.20 | E142: 677.83 | F142: 658.92 | G142: 645.63 | H142: 626.72 | I142: 691.12 | J142: 710.03 | K142: 723.32 | L142: 696.75 | M142: 664.55 | N142: 3884300 | O142: -3.07%
A143: 136 | B143: Finance | C143: MFSL | D143: 375.20 | E143: 372.70 | F143: 365.60 | G143: 356.00 | H143: 348.90 | I143: 382.30 | J143: 389.40 | K143: 399.00 | L143: 379.8 | M143: 363.1 | N143: 2281200 | O143: -1.96%
A144: 137 | B144: Others | C144: MGL | D144: 789.90 | E144: 788.30 | F144: 775.00 | G144: 760.10 | H144: 746.80 | I144: 803.20 | J144: 816.50 | K144: 831.40 | L144: 801.6 | M144: 773.4 | N144: 1872600 | O144: -2.77%
A145: 138 | B145: Technology | C145: MINDTREE | D145: 1009.60 | E145: 1006.90 | F145: 984.95 | G145: 960.30 | H145: 938.35 | I145: 1031.55 | J145: 1053.50 | K145: 1078.15 | L145: 1028.85 | M145: 982.25 | N145: 4233600 | O145: -1.01%
A146: 139 | B146: Automobile | C146: MOTHERSUMI | D146: 236.10 | E146: 236.63 | F146: 227.47 | G146: 218.83 | H146: 209.67 | I146: 245.27 | J146: 254.43 | K146: 263.07 | L146: 245.8 | M146: 228 | N146: 17278400 | O146: 1.05%
A147: 140 | B147: Automobile | C147: MRF | D147: 62127.60 | E147: 61952.28 | F147: 60975.32 | G147: 59823.03 | H147: 58846.07 | I147: 63104.57 | J147: 64081.53 | K147: 65233.82 | L147: 62929.25 | M147: 60800 | N147: 26050 | O147: -3.09%
A148: 141 | B148: Others | C148: MRPL | D148: 63.80 | E148: 63.37 | F148: 61.83 | G148: 59.87 | H148: 58.33 | I148: 65.33 | J148: 66.87 | K148: 68.83 | L148: 64.9 | M148: 61.4 | N148: 4648500 | O148: -6.09%
A149: 142 | B149: Finance | C149: MUTHOOTFIN | D149: 368.20 | E149: 368.37 | F149: 353.83 | G149: 339.47 | H149: 324.93 | I149: 382.73 | J149: 397.27 | K149: 411.63 | L149: 382.9 | M149: 354 | N149: 2293500 | O149: 1.19%
A150: 143 | B150: Others | C150: NATIONALUM | D150: 61.20 | E150: 61.53 | F150: 60.32 | G150: 59.43 | H150: 58.22 | I150: 62.42 | J150: 63.63 | K150: 64.52 | L150: 62.75 | M150: 60.65 | N150: 44008000 | O150: -1.87%
A151: 144 | B151: Others | C151: NBCC | D151: 52.95 | E151: 53.60 | F151: 51.55 | G151: 50.15 | H151: 48.10 | I151: 55.00 | J151: 57.05 | K151: 58.45 | L151: 55.65 | M151: 52.2 | N151: 20340000 | O151: 7.31%
A152: 145 | B152: Infrastructure | C152: NCC | D152: 70.05 | E152: 70.05 | F152: 68.10 | G152: 66.15 | H152: 64.20 | I152: 72.00 | J152: 73.95 | K152: 75.90 | L152: 72 | M152: 68.1 | N152: 44736000 | O152: 0.07%
A153: 146 | B153: Others | C153: NESTLEIND | D153: 9508.20 | E153: 9474.63 | F153: 9303.17 | G153: 9098.13 | H153: 8926.67 | I153: 9679.67 | J153: 9851.13 | K153: 10056.17 | L153: 9646.1 | M153: 9269.6 | N153: 359800 | O153: 0.81%
A154: 147 | B154: Power | C154: NHPC | D154: 22.60 | E154: 22.48 | F154: 22.32 | G154: 22.03 | H154: 21.87 | I154: 22.77 | J154: 22.93 | K154: 23.22 | L154: 22.65 | M154: 22.2 | N154: 21303000 | O154: -1.62%
A155: 148 | B155: Technology | C155: NIITTECH | D155: 1116.65 | E155: 1107.38 | F155: 1074.67 | G155: 1032.68 | H155: 999.97 | I155: 1149.37 | J155: 1182.08 | K155: 1224.07 | L155: 1140.1 | M155: 1065.4 | N155: 1344000 | O155: 1.07%
A156: 149 | B156: Metals | C156: NMDC | D156: 107.55 | E156: 108.03 | F156: 105.97 | G156: 104.38 | H156: 102.32 | I156: 109.62 | J156: 111.68 | K156: 113.27 | L156: 110.1 | M156: 106.45 | N156: 21054000 | O156: -1.24%
A157: 150 | B157: Power | C157: NTPC | D157: 162.25 | E157: 163.25 | F157: 160.65 | G157: 159.05 | H157: 156.45 | I157: 164.85 | J157: 167.45 | K157: 169.05 | L157: 165.85 | M157: 161.65 | N157: 36044000 | O157: 3.27%
A158: 151 | B158: Technology | C158: OFSS | D158: 3977.50 | E158: 3969.33 | F158: 3920.67 | G158: 3863.83 | H158: 3815.17 | I158: 4026.17 | J158: 4074.83 | K158: 4131.67 | L158: 4018 | M158: 3912.5 | N158: 323550 | O158: -0.74%
A159: 152 | B159: Oil_Gas | C159: OIL | D159: 193.35 | E159: 191.10 | F159: 186.90 | G159: 180.45 | H159: 176.25 | I159: 197.55 | J159: 201.75 | K159: 208.20 | L159: 195.3 | M159: 184.65 | N159: 3324222 | O159: 10.63%
A160: 153 | B160: Oil_Gas | C160: ONGC | D160: 147.20 | E160: 148.45 | F160: 144.85 | G160: 142.50 | H160: 138.90 | I160: 150.80 | J160: 154.40 | K160: 156.75 | L160: 152.05 | M160: 146.1 | N160: 46878750 | O160: 0.20%
A161: 154 | B161: Banking | C161: ORIENTBANK | D161: 60.25 | E161: 59.97 | F161: 58.48 | G161: 56.72 | H161: 55.23 | I161: 61.73 | J161: 63.22 | K161: 64.98 | L161: 61.45 | M161: 58.2 | N161: 12762000 | O161: -0.51%
A162: 155 | B162: Textile | C162: PAGEIND | D162: 29065.15 | E162: 29121.70 | F162: 28643.45 | G162: 28221.75 | H162: 27743.50 | I162: 29543.40 | J162: 30021.65 | K162: 30443.35 | L162: 29599.95 | M162: 28700 | N162: 125275 | O162: -0.08%
A163: 156 | B163: Others | C163: PCJEWELLER | D163: 56.80 | E163: 57.32 | F163: 54.78 | G163: 52.77 | H163: 50.23 | I163: 59.33 | J163: 61.87 | K163: 63.88 | L163: 59.85 | M163: 55.3 | N163: 8665500 | O163: 1.01%
A164: 157 | B164: Pharma | C164: PEL | D164: 2166.10 | E164: 2150.28 | F164: 2082.82 | G164: 1999.53 | H164: 1932.07 | I164: 2233.57 | J164: 2301.03 | K164: 2384.32 | L164: 2217.75 | M164: 2067 | N164: 3664468 | O164: 2.02%
A165: 158 | B165: Oil_Gas | C165: PETRONET | D165: 212.70 | E165: 213.42 | F165: 210.38 | G165: 208.07 | H165: 205.03 | I165: 215.73 | J165: 218.77 | K165: 221.08 | L165: 216.45 | M165: 211.1 | N165: 13722000 | O165: 0.95%
A166: 159 | B166: Finance | C166: PFC | D166: 74.30 | E166: 74.25 | F166: 72.70 | G166: 71.10 | H166: 69.55 | I166: 75.85 | J166: 77.40 | K166: 79.00 | L166: 75.8 | M166: 72.65 | N166: 84318000 | O166: -0.10%
A167: 160 | B167: FMCG | C167: PIDILITIND | D167: 917.35 | E167: 930.00 | F167: 880.05 | G167: 842.75 | H167: 792.80 | I167: 967.30 | J167: 1017.25 | K167: 1054.55 | L167: 979.95 | M167: 892.7 | N167: 3140000 | O167: -1.10%
A168: 161 | B168: Banking | C168: PNB | D168: 62.90 | E168: 62.88 | F168: 61.57 | G168: 60.23 | H168: 58.92 | I168: 64.22 | J168: 65.53 | K168: 66.87 | L168: 64.2 | M168: 61.55 | N168: 111199000 | O168: -0.89%
A169: 162 | B169: Power | C169: POWERGRID | D169: 187.15 | E169: 187.83 | F169: 185.42 | G169: 183.68 | H169: 181.27 | I169: 189.57 | J169: 191.98 | K169: 193.72 | L169: 190.25 | M169: 186.1 | N169: 41940000 | O169: -0.37%
A170: 163 | B170: Power | C170: PTC | D170: 68.35 | E170: 67.90 | F170: 66.60 | G170: 64.85 | H170: 63.55 | I170: 69.65 | J170: 70.95 | K170: 72.70 | L170: 69.2 | M170: 66.15 | N170: 9048000 | O170: -3.66%
A171: 164 | B171: Others | C171: PVR | D171: 1211.20 | E171: 1208.10 | F171: 1192.30 | G171: 1173.40 | H171: 1157.60 | I171: 1227.00 | J171: 1242.80 | K171: 1261.70 | L171: 1223.9 | M171: 1189.2 | N171: 1068400 | O171: -0.41%
A172: 165 | B172: Cement | C172: RAMCOCEM | D172: 599.85 | E172: 600.32 | F172: 587.68 | G172: 575.52 | H172: 562.88 | I172: 612.48 | J172: 625.12 | K172: 637.28 | L172: 612.95 | M172: 588.15 | N172: 872800 | O172: 5.61%
A173: 166 | B173: Others | C173: RAYMOND | D173: 603.55 | E173: 615.25 | F173: 584.55 | G173: 565.55 | H173: 534.85 | I173: 634.25 | J173: 664.95 | K173: 683.95 | L173: 645.95 | M173: 596.25 | N173: 4822400 | O173: 1.41%
A174: 167 | B174: Banking | C174: RBLBANK | D174: 498.45 | E174: 500.28 | F174: 494.17 | G174: 489.88 | H174: 483.77 | I174: 504.57 | J174: 510.68 | K174: 514.97 | L174: 506.4 | M174: 496 | N174: 4692000 | O174: 2.22%
A175: 168 | B175: Telecom | C175: RCOM | D175: 11.10 | E175: 11.03 | F175: 10.72 | G175: 10.33 | H175: 10.02 | I175: 11.42 | J175: 11.73 | K175: 12.12 | L175: 11.35 | M175: 10.65 | N175: 91420000 | O175: -1.69%
A176: 169 | B176: Power | C176: RECLTD | D176: 99.20 | E176: 99.60 | F176: 96.85 | G176: 94.50 | H176: 91.75 | I176: 101.95 | J176: 104.70 | K176: 107.05 | L176: 102.35 | M176: 97.25 | N176: 39108000 | O176: 1.38%
A177: 170 | B177: Finance | C177: RELCAPITAL | D177: 237.85 | E177: 236.23 | F177: 228.07 | G177: 218.28 | H177: 210.12 | I177: 246.02 | J177: 254.18 | K177: 263.97 | L177: 244.4 | M177: 226.45 | N177: 10482000 | O177: 0.65%
A178: 171 | B178: Oil_Gas | C178: RELIANCE | D178: 1092.80 | E178: 1101.27 | F178: 1076.78 | G178: 1060.77 | H178: 1036.28 | I178: 1117.28 | J178: 1141.77 | K178: 1157.78 | L178: 1125.75 | M178: 1085.25 | N178: 47805000 | O178: -0.05%
A179: 172 | B179: Power | C179: RELINFRA | D179: 295.60 | E179: 293.93 | F179: 284.07 | G179: 272.53 | H179: 262.67 | I179: 305.47 | J179: 315.33 | K179: 326.87 | L179: 303.8 | M179: 282.4 | N179: 8511100 | O179: 0.58%
A180: 173 | B180: Others | C180: REPCOHOME | D180: 369.90 | E180: 376.00 | F180: 358.75 | G180: 347.60 | H180: 330.35 | I180: 387.15 | J180: 404.40 | K180: 415.55 | L180: 393.25 | M180: 364.85 | N180: 521100 | O180: -7.36%
A181: 174 | B181: Power | C181: RPOWER | D181: 24.80 | E181: 24.53 | F181: 23.82 | G181: 22.83 | H181: 22.12 | I181: 25.52 | J181: 26.23 | K181: 27.22 | L181: 25.25 | M181: 23.55 | N181: 45422000 | O181: -1.30%
A182: 175 | B182: Metals | C182: SAIL | D182: 63.80 | E182: 64.17 | F182: 61.63 | G182: 59.47 | H182: 56.93 | I182: 66.33 | J182: 68.87 | K182: 71.03 | L182: 66.7 | M182: 62 | N182: 72936000 | O182: 0.73%
A183: 176 | B183: Banking | C183: SBIN | D183: 263.20 | E183: 264.30 | F183: 259.15 | G183: 255.10 | H183: 249.95 | I183: 268.35 | J183: 273.50 | K183: 277.55 | L183: 269.45 | M183: 260.25 | N183: 86931000 | O183: 0.54%
A184: 177 | B184: Cement | C184: SHREECEM | D184: 15809.90 | E184: 15961.97 | F184: 15623.93 | G184: 15437.97 | H184: 15099.93 | I184: 16147.93 | J184: 16485.97 | K184: 16671.93 | L184: 16300 | M184: 15776 | N184: 101600 | O184: 1.35%
A185: 178 | B185: Capital_Goods | C185: SIEMENS | D185: 890.75 | E185: 892.78 | F185: 845.97 | G185: 801.18 | H185: 754.37 | I185: 937.57 | J185: 984.38 | K185: 1029.17 | L185: 939.6 | M185: 848 | N185: 1315500 | O185: 0.08%
A186: 179 | B186: Banking | C186: SOUTHBANK | D186: 13.55 | E186: 13.52 | F186: 13.33 | G186: 13.12 | H186: 12.93 | I186: 13.73 | J186: 13.92 | K186: 14.13 | L186: 13.7 | M186: 13.3 | N186: 124079904 | O186: -0.72%
A187: 180 | B187: Others | C187: SREINFRA | D187: 32.65 | E187: 32.30 | F187: 31.30 | G187: 29.95 | H187: 28.95 | I187: 33.65 | J187: 34.65 | K187: 36.00 | L187: 33.3 | M187: 30.95 | N187: 13958000 | O187: -1.38%
A188: 181 | B188: Textile | C188: SRF | D188: 1690.75 | E188: 1682.47 | F188: 1646.93 | G188: 1603.12 | H188: 1567.58 | I188: 1726.28 | J188: 1761.82 | K188: 1805.63 | L188: 1718 | M188: 1638.65 | N188: 562000 | O188: -4.83%
A189: 182 | B189: Finance | C189: SRTRANSFIN | D189: 958.00 | E189: 961.67 | F189: 924.33 | G189: 890.67 | H189: 853.33 | I189: 995.33 | J189: 1032.67 | K189: 1066.33 | L189: 999 | M189: 928 | N189: 4519800 | O189: -0.20%
A190: 183 | B190: Pharma | C190: STAR | D190: 428.75 | E190: 422.48 | F190: 412.67 | G190: 396.58 | H190: 386.77 | I190: 438.57 | J190: 448.38 | K190: 464.47 | L190: 432.3 | M190: 406.4 | N190: 4633600 | O190: -0.57%
A191: 184 | B191: Pharma | C191: SUNPHARMA | D191: 610.35 | E191: 609.32 | F191: 600.13 | G191: 589.92 | H191: 580.73 | I191: 619.53 | J191: 628.72 | K191: 638.93 | L191: 618.5 | M191: 599.1 | N191: 31391800 | O191: 0.38%
A192: 185 | B192: Media | C192: SUNTV | D192: 612.50 | E192: 613.50 | F192: 598.15 | G192: 583.80 | H192: 568.45 | I192: 627.85 | J192: 643.20 | K192: 657.55 | L192: 628.85 | M192: 599.15 | N192: 6726000 | O192: -1.02%
A193: 186 | B193: Power | C193: SUZLON | D193: 5.35 | E193: 5.38 | F193: 5.27 | G193: 5.18 | H193: 5.07 | I193: 5.47 | J193: 5.58 | K193: 5.67 | L193: 5.5 | M193: 5.3 | N193: 315990000 | O193: 0.07%
A194: 187 | B194: Banking | C194: SYNDIBANK | D194: 29.95 | E194: 30.05 | F194: 29.45 | G194: 28.95 | H194: 28.35 | I194: 30.55 | J194: 31.15 | K194: 31.65 | L194: 30.65 | M194: 29.55 | N194: 25002000 | O194: -0.96%
A195: 188 | B195: Fertilisers | C195: TATACHEM | D195: 636.95 | E195: 635.67 | F195: 625.28 | G195: 613.62 | H195: 603.23 | I195: 647.33 | J195: 657.72 | K195: 669.38 | L195: 646.05 | M195: 624 | N195: 3014250 | O195: 2.79%
A196: 189 | B196: Telecom | C196: TATACOMM | D196: 475.50 | E196: 475.63 | F196: 468.07 | G196: 460.63 | H196: 453.07 | I196: 483.07 | J196: 490.63 | K196: 498.07 | L196: 483.2 | M196: 468.2 | N196: 2836800 | O196: -0.53%
A197: 190 | B197: Technology | C197: TATAELXSI | D197: 971.80 | E197: 975.02 | F197: 949.98 | G197: 928.17 | H197: 903.13 | I197: 996.83 | J197: 1021.87 | K197: 1043.68 | L197: 1000.05 | M197: 953.2 | N197: 2131200 | O197: -2.52%
A198: 191 | B198: FMCG | C198: TATAGLOBAL | D198: 216.85 | E198: 215.42 | F198: 211.08 | G198: 205.32 | H198: 200.98 | I198: 221.18 | J198: 225.52 | K198: 231.28 | L198: 219.75 | M198: 209.65 | N198: 10840500 | O198: -4.16%
A199: 192 | B199: Automobile | C199: TATAMOTORS | D199: 185.20 | E199: 187.72 | F199: 168.48 | G199: 151.77 | H199: 132.53 | I199: 204.43 | J199: 223.67 | K199: 240.38 | L199: 206.95 | M199: 171 | N199: 73537500 | O199: -2.82%
A200: 193 | B200: Automobile | C200: TATAMTRDVR | D200: 101.60 | E200: 103.15 | F200: 93.45 | G200: 85.30 | H200: 75.60 | I200: 111.30 | J200: 121.00 | K200: 129.15 | L200: 112.85 | M200: 95 | N200: 28114800 | O200: -6.66%
A201: 194 | B201: Power | C201: TATAPOWER | D201: 61.25 | E201: 61.53 | F201: 59.82 | G201: 58.38 | H201: 56.67 | I201: 62.97 | J201: 64.68 | K201: 66.12 | L201: 63.25 | M201: 60.1 | N201: 42777000 | O201: 0.59%
A202: 195 | B202: Metals | C202: TATASTEEL | D202: 573.80 | E202: 571.70 | F202: 557.40 | G202: 541.00 | H202: 526.70 | I202: 588.10 | J202: 602.40 | K202: 618.80 | L202: 586 | M202: 555.3 | N202: 31434247 | O202: -2.11%
A203: 196 | B203: Technology | C203: TCS | D203: 2098.65 | E203: 2089.78 | F203: 2066.87 | G203: 2035.08 | H203: 2012.17 | I203: 2121.57 | J203: 2144.48 | K203: 2176.27 | L203: 2112.7 | M203: 2058 | N203: 8386000 | O203: 1.69%
A204: 197 | B204: Technology | C204: TECHM | D204: 698.10 | E204: 699.20 | F204: 690.05 | G204: 682.00 | H204: 672.85 | I204: 707.25 | J204: 716.40 | K204: 724.45 | L204: 708.35 | M204: 691.15 | N204: 15679200 | O204: 0.89%
A205: 198 | B205: FMCG | C205: TITAN | D205: 749.10 | E205: 768.85 | F205: 716.25 | G205: 683.40 | H205: 630.80 | I205: 801.70 | J205: 854.30 | K205: 887.15 | L205: 821.45 | M205: 736 | N205: 15964500 | O205: 8.22%
A206: 199 | B206: Pharma | C206: TORNTPHARM | D206: 1598.95 | E206: 1595.10 | F206: 1566.85 | G206: 1534.75 | H206: 1506.50 | I206: 1627.20 | J206: 1655.45 | K206: 1687.55 | L206: 1623.35 | M206: 1563 | N206: 517000 | O206: 2.07%
... 33 more rows

Sheet Cash Intra
M5: Back to Main Page
A6: FOR INTRA DAY TRADING | K6: =Main!B10 -> 2018-10-10
A8: Sr.no | B8: Scrip | C8: CLOSE RATE | D8: Pivot Point | E8: Supports | H8: Resistances
C9: Point | E9: S1 | F9: S2 | G9: S3 | H9: R1 | I9: R2 | J9: R3 | K9: HIGH | L9: LOW | M9: Total Trade Quanity in Lakhs
A10: 1 | B10: Nifty 50 | C10: 10301.05 | D10: 10326.00 | E10: 10254.40 | F10: 10207.75 | G10: 10136.15 | H10: 10372.65 | I10: 10444.25 | J10: 10490.90 | K10: 10397.6 | L10: 10279.35
A11: 2 | B11: Nifty Bank | C11: 24527.65 | D11: 24584.15 | E11: 24408.40 | F11: 24289.15 | G11: 24113.40 | H11: 24703.40 | I11: 24879.15 | J11: 24998.40 | K11: 24759.9 | L11: 24464.9
A12: 3 | B12: Nifty CPSE | C12: 2044.05 | D12: 2051.13 | E12: 2022.87 | F12: 2001.68 | G12: 1973.42 | H12: 2072.32 | I12: 2100.58 | J12: 2121.77 | K12: 2079.4 | L12: 2029.95
A13: 4 | B13: Nifty Infra | C13: 2826.55 | D13: 2827.62 | E13: 2808.98 | F13: 2791.42 | G13: 2772.78 | H13: 2845.18 | I13: 2863.82 | J13: 2881.38 | K13: 2846.25 | L13: 2810.05
A14: 5 | B14: Nifty IT | C14: 15369.8 | D14: 15312.50 | E14: 15195.05 | F14: 15020.30 | G14: 14902.85 | H14: 15487.25 | I14: 15604.70 | J14: 15779.45 | K14: 15429.95 | L14: 15137.75
A15: 6 | B15: Nifty PSE | C15: 3206.1 | D15: 3221.38 | E15: 3184.72 | F15: 3163.33 | G15: 3126.67 | H15: 3242.77 | I15: 3279.43 | J15: 3300.82 | K15: 3258.05 | L15: 3200
A16: 7 | B16: Nifty Midcap 50 | C16: 4368.55 | D16: 4363.55 | E16: 4312.80 | F16: 4257.05 | G16: 4206.30 | H16: 4419.30 | I16: 4470.05 | J16: 4525.80 | K16: 4414.3 | L16: 4307.8
A17: 8 | B17: ABB | C17: 1354.5 | D17: 1362.38 | E17: 1336.32 | F17: 1318.13 | G17: 1292.07 | H17: 1380.57 | I17: 1406.63 | J17: 1424.82 | K17: 1388.45 | L17: 1344.2 | M17: 0.36623
A18: 9 | B18: ACC | C18: 1465.85 | D18: 1468.45 | E18: 1443.00 | F18: 1420.15 | G18: 1394.70 | H18: 1491.30 | I18: 1516.75 | J18: 1539.60 | K18: 1493.9 | L18: 1445.6 | M18: 5.22994
A19: 10 | B19: AIAENG | C19: 1527.9 | D19: 1540.70 | E19: 1487.20 | F19: 1446.50 | G19: 1393.00 | H19: 1581.40 | I19: 1634.90 | J19: 1675.60 | K19: 1594.2 | L19: 1500 | M19: 0.73642
A20: 11 | B20: AUBANK | C20: 569.6 | D20: 563.37 | E20: 551.73 | F20: 533.87 | G20: 522.23 | H20: 581.23 | I20: 592.87 | J20: 610.73 | K20: 575 | L20: 545.5 | M20: 1.34982
A21: 12 | B21: ADANIENT | C21: 135.9 | D21: 134.32 | E21: 130.93 | F21: 125.97 | G21: 122.58 | H21: 139.28 | I21: 142.67 | J21: 147.63 | K21: 137.7 | L21: 129.35 | M21: 71.86017
A22: 13 | B22: ADANIPORTS | C22: 318.75 | D22: 315.08 | E22: 306.17 | F22: 293.58 | G22: 284.67 | H22: 327.67 | I22: 336.58 | J22: 349.17 | K22: 324 | L22: 302.5 | M22: 57.71005
A23: 14 | B23: ADANIPOWER | C23: 23.95 | D23: 23.63 | E23: 22.97 | F23: 21.98 | G23: 21.32 | H23: 24.62 | I23: 25.28 | J23: 26.27 | K23: 24.3 | L23: 22.65 | M23: 204.06963
A24: 15 | B24: ABFRL | C24: 175.5 | D24: 174.33 | E24: 169.02 | F24: 162.53 | G24: 157.22 | H24: 180.82 | I24: 186.13 | J24: 192.62 | K24: 179.65 | L24: 167.85 | M24: 9.28713
A25: 16 | B25: AJANTPHARM | C25: 1005.8 | D25: 1005.97 | E25: 981.98 | F25: 958.17 | G25: 934.18 | H25: 1029.78 | I25: 1053.77 | J25: 1077.58 | K25: 1029.95 | L25: 982.15 | M25: 3.20108
A26: 17 | B26: ALKEM | C26: 1902.95 | D26: 1917.68 | E26: 1835.27 | F26: 1767.58 | G26: 1685.17 | H26: 1985.37 | I26: 2067.78 | J26: 2135.47 | K26: 2000.1 | L26: 1850 | M26: 0.33323
A27: 18 | B27: AMARAJABAT | C27: 734.1 | D27: 729.92 | E27: 721.83 | F27: 709.57 | G27: 701.48 | H27: 742.18 | I27: 750.27 | J27: 762.53 | K27: 738 | L27: 717.65 | M27: 5.13066
A28: 19 | B28: AMBUJACEM | C28: 204.7 | D28: 206.37 | E28: 200.78 | F28: 196.87 | G28: 191.28 | H28: 210.28 | I28: 215.87 | J28: 219.78 | K28: 211.95 | L28: 202.45 | M28: 17.90998
A29: 20 | B29: APOLLOHOSP | C29: 1098.7 | D29: 1091.37 | E29: 1072.63 | F29: 1046.57 | G29: 1027.83 | H29: 1117.43 | I29: 1136.17 | J29: 1162.23 | K29: 1110.1 | L29: 1065.3 | M29: 5.09541
A30: 21 | B30: APOLLOTYRE | C30: 201.4 | D30: 203.02 | E30: 198.03 | F30: 194.67 | G30: 189.68 | H30: 206.38 | I30: 211.37 | J30: 214.73 | K30: 208 | L30: 199.65 | M30: 34.82398
A31: 22 | B31: ARVIND | C31: 300.05 | D31: 298.63 | E31: 290.47 | F31: 280.88 | G31: 272.72 | H31: 308.22 | I31: 316.38 | J31: 325.97 | K31: 306.8 | L31: 289.05 | M31: 21.12741
A32: 23 | B32: ASHOKLEY | C32: 110.85 | D32: 109.93 | E32: 108.22 | F32: 105.58 | G32: 103.87 | H32: 112.57 | I32: 114.28 | J32: 116.92 | K32: 111.65 | L32: 107.3 | M32: 222.19546
A33: 24 | B33: ASIANPAINT | C33: 1201.4 | D33: 1216.10 | E33: 1176.30 | F33: 1151.20 | G33: 1111.40 | H33: 1241.20 | I33: 1281.00 | J33: 1306.10 | K33: 1255.9 | L33: 1191 | M33: 10.88738
A34: 25 | B34: AUROPHARMA | C34: 766.75 | D34: 758.47 | E34: 745.28 | F34: 723.82 | G34: 710.63 | H34: 779.93 | I34: 793.12 | J34: 814.58 | K34: 771.65 | L34: 737 | M34: 45.5597
A35: 26 | B35: DMART | C35: 1372.5 | D35: 1346.87 | E35: 1308.73 | F35: 1244.97 | G35: 1206.83 | H35: 1410.63 | I35: 1448.77 | J35: 1512.53 | K35: 1385 | L35: 1283.1 | M35: 6.86111
A36: 27 | B36: AXISBANK | C36: 552.85 | D36: 555.30 | E36: 546.70 | F36: 540.55 | G36: 531.95 | H36: 561.45 | I36: 570.05 | J36: 576.20 | K36: 563.9 | L36: 549.15 | M36: 80.53297
A37: 28 | B37: BAJAJ-AUTO | C37: 2548.85 | D37: 2556.40 | E37: 2522.75 | F37: 2496.65 | G37: 2463.00 | H37: 2582.50 | I37: 2616.15 | J37: 2642.25 | K37: 2590.05 | L37: 2530.3 | M37: 3.09578
A38: 29 | B38: BAJFINANCE | C38: 2060.85 | D38: 2041.45 | E38: 1967.05 | F38: 1873.25 | G38: 1798.85 | H38: 2135.25 | I38: 2209.65 | J38: 2303.45 | K38: 2115.85 | L38: 1947.65 | M38: 48.59016
A39: 30 | B39: BAJAJFINSV | C39: 5429.1 | D39: 5428.13 | E39: 5276.27 | F39: 5123.43 | G39: 4971.57 | H39: 5580.97 | I39: 5732.83 | J39: 5885.67 | K39: 5580 | L39: 5275.3 | M39: 2.1616
A40: 31 | B40: BALKRISIND | C40: 982.1 | D40: 986.35 | E40: 967.75 | F40: 953.40 | G40: 934.80 | H40: 1000.70 | I40: 1019.30 | J40: 1033.65 | K40: 1004.95 | L40: 972 | M40: 6.37268
A41: 32 | B41: BANKBARODA | C41: 93.25 | D41: 95.00 | E41: 90.90 | F41: 88.55 | G41: 84.45 | H41: 97.35 | I41: 101.45 | J41: 103.80 | K41: 99.1 | L41: 92.65 | M41: 240.6965
A42: 33 | B42: BANKINDIA | C42: 75.4 | D42: 75.32 | E42: 73.63 | F42: 71.87 | G42: 70.18 | H42: 77.08 | I42: 78.77 | J42: 80.53 | K42: 77 | L42: 73.55 | M42: 71.0332
A43: 34 | B43: BATAINDIA | C43: 865.85 | D43: 878.77 | E43: 847.58 | F43: 829.32 | G43: 798.13 | H43: 897.03 | I43: 928.22 | J43: 946.48 | K43: 909.95 | L43: 860.5 | M43: 16.09266
A44: 35 | B44: BERGEPAINT | C44: 272.7 | D44: 271.82 | E44: 267.73 | F44: 262.77 | G44: 258.68 | H44: 276.78 | I44: 280.87 | J44: 285.83 | K44: 275.9 | L44: 266.85 | M44: 7.9115
A45: 36 | B45: BEL | C45: 75.9 | D45: 76.48 | E45: 74.22 | F45: 72.53 | G45: 70.27 | H45: 78.17 | I45: 80.43 | J45: 82.12 | K45: 78.75 | L45: 74.8 | M45: 94.32031
A46: 37 | B46: BHARATFIN | C46: 996.45 | D46: 993.52 | E46: 984.03 | F46: 971.62 | G46: 962.13 | H46: 1005.93 | I46: 1015.42 | J46: 1027.83 | K46: 1003 | L46: 981.1 | M46: 7.15116
A47: 38 | B47: BHARATFORG | C47: 564.8 | D47: 562.17 | E47: 554.63 | F47: 544.47 | G47: 536.93 | H47: 572.33 | I47: 579.87 | J47: 590.03 | K47: 569.7 | L47: 552 | M47: 15.64823
A48: 39 | B48: BHEL | C48: 70.25 | D48: 69.95 | E48: 68.40 | F48: 66.55 | G48: 65.00 | H48: 71.80 | I48: 73.35 | J48: 75.20 | K48: 71.5 | L48: 68.1 | M48: 78.21977
A49: 40 | B49: BPCL | C49: 257.2 | D49: 260.17 | E49: 252.23 | F49: 247.27 | G49: 239.33 | H49: 265.13 | I49: 273.07 | J49: 278.03 | K49: 268.1 | L49: 255.2 | M49: 121.79626
A50: 41 | B50: BHARTIARTL | C50: 289 | D50: 290.97 | E50: 285.03 | F50: 281.07 | G50: 275.13 | H50: 294.93 | I50: 300.87 | J50: 304.83 | K50: 296.9 | L50: 287 | M50: 85.61269
A51: 42 | B51: INFRATEL | C51: 266.5 | D51: 267.45 | E51: 261.00 | F51: 255.50 | G51: 249.05 | H51: 272.95 | I51: 279.40 | J51: 284.90 | K51: 273.9 | L51: 261.95 | M51: 21.28482
A52: 43 | B52: BIOCON | C52: 587.15 | D52: 591.30 | E52: 574.60 | F52: 562.05 | G52: 545.35 | H52: 603.85 | I52: 620.55 | J52: 633.10 | K52: 608 | L52: 578.75 | M52: 18.76212
A53: 44 | B53: BOSCHLTD | C53: 18444.45 | D53: 18386.15 | E53: 18133.40 | F53: 17822.35 | G53: 17569.60 | H53: 18697.20 | I53: 18949.95 | J53: 19261.00 | K53: 18638.9 | L53: 18075.1 | M53: 0.11141
A54: 45 | B54: BRITANNIA | C54: 5511.25 | D54: 5545.43 | E54: 5411.97 | F54: 5312.68 | G54: 5179.22 | H54: 5644.72 | I54: 5778.18 | J54: 5877.47 | K54: 5678.9 | L54: 5446.15 | M54: 3.19083
A55: 46 | B55: CRISIL | C55: 1612.6 | D55: 1612.47 | E55: 1600.13 | F55: 1587.67 | G55: 1575.33 | H55: 1624.93 | I55: 1637.27 | J55: 1649.73 | K55: 1624.8 | L55: 1600 | M55: 0.08049
A56: 47 | B56: CADILAHC | C56: 380.95 | D56: 379.47 | E56: 372.98 | F56: 365.02 | G56: 358.53 | H56: 387.43 | I56: 393.92 | J56: 401.88 | K56: 385.95 | L56: 371.5 | M56: 16.1772
A57: 48 | B57: CANBK | C57: 216.2 | D57: 215.77 | E57: 211.63 | F57: 207.07 | G57: 202.93 | H57: 220.33 | I57: 224.47 | J57: 229.03 | K57: 219.9 | L57: 211.2 | M57: 64.54245
A58: 49 | B58: CASTROLIND | C58: 137.5 | D58: 137.12 | E58: 135.38 | F58: 133.27 | G58: 131.53 | H58: 139.23 | I58: 140.97 | J58: 143.08 | K58: 138.85 | L58: 135 | M58: 9.051
A59: 50 | B59: CENTRALBK | C59: 30.2 | D59: 30.58 | E59: 29.82 | F59: 29.43 | G59: 28.67 | H59: 30.97 | I59: 31.73 | J59: 32.12 | K59: 31.35 | L59: 30.2 | M59: 4.71981
A60: 51 | B60: CENTURYTEX | C60: 738.35 | D60: 740.00 | E60: 719.90 | F60: 701.45 | G60: 681.35 | H60: 758.45 | I60: 778.55 | J60: 797.00 | K60: 760.1 | L60: 721.55 | M60: 6.35939
A61: 52 | B61: CHOLAFIN | C61: 1064.55 | D61: 1067.07 | E61: 1037.13 | F61: 1009.72 | G61: 979.78 | H61: 1094.48 | I61: 1124.42 | J61: 1151.83 | K61: 1097 | L61: 1039.65 | M61: 7.8076
A62: 53 | B62: CIPLA | C62: 639.35 | D62: 635.90 | E62: 628.70 | F62: 618.05 | G62: 610.85 | H62: 646.55 | I62: 653.75 | J62: 664.40 | K62: 643.1 | L62: 625.25 | M62: 15.35781
A63: 54 | B63: COALINDIA | C63: 273.95 | D63: 273.38 | E63: 269.07 | F63: 264.18 | G63: 259.87 | H63: 278.27 | I63: 282.58 | J63: 287.47 | K63: 277.7 | L63: 268.5 | M63: 43.36163
A64: 55 | B64: COLPAL | C64: 1049.75 | D64: 1040.15 | E64: 1027.90 | F64: 1006.05 | G64: 993.80 | H64: 1062.00 | I64: 1074.25 | J64: 1096.10 | K64: 1052.4 | L64: 1018.3 | M64: 3.35911
A65: 56 | B65: CONCOR | C65: 598.45 | D65: 591.47 | E65: 568.23 | F65: 538.02 | G65: 514.78 | H65: 621.68 | I65: 644.92 | J65: 675.13 | K65: 614.7 | L65: 561.25 | M65: 14.87508
A66: 57 | B66: COROMANDEL | C66: 365.05 | D66: 368.12 | E66: 357.93 | F66: 350.82 | G66: 340.63 | H66: 375.23 | I66: 385.42 | J66: 392.53 | K66: 378.3 | L66: 361 | M66: 1.02709
A67: 58 | B67: CROMPTON | C67: 202.35 | D67: 203.50 | E67: 198.85 | F67: 195.35 | G67: 190.70 | H67: 207.00 | I67: 211.65 | J67: 215.15 | K67: 208.15 | L67: 200 | M67: 3.32771
A68: 59 | B68: CUMMINSIND | C68: 665.85 | D68: 662.77 | E68: 648.33 | F68: 630.82 | G68: 616.38 | H68: 680.28 | I68: 694.72 | J68: 712.23 | K68: 677.2 | L68: 645.25 | M68: 3.28557
A69: 60 | B69: DLF | C69: 153.5 | D69: 153.90 | E69: 152.00 | F69: 150.50 | G69: 148.60 | H69: 155.40 | I69: 157.30 | J69: 158.80 | K69: 155.8 | L69: 152.4 | M69: 93.31488
A70: 61 | B70: DABUR | C70: 392.4 | D70: 395.63 | E70: 380.57 | F70: 368.73 | G70: 353.67 | H70: 407.47 | I70: 422.53 | J70: 434.37 | K70: 410.7 | L70: 383.8 | M70: 57.37986
A71: 62 | B71: DALMIABHA | C71: 2076.55 | D71: 2074.85 | E71: 2021.75 | F71: 1966.95 | G71: 1913.85 | H71: 2129.65 | I71: 2182.75 | J71: 2237.55 | K71: 2127.95 | L71: 2020.05 | M71: 1.14419
A72: 63 | B72: DHFL | C72: 245.05 | D72: 231.97 | E72: 206.48 | F72: 167.92 | G72: 142.43 | H72: 270.53 | I72: 296.02 | J72: 334.58 | K72: 257.45 | L72: 193.4 | M72: 556.50755
A73: 64 | B73: DISHTV | C73: 54.1 | D73: 53.75 | E73: 52.40 | F73: 50.70 | G73: 49.35 | H73: 55.45 | I73: 56.80 | J73: 58.50 | K73: 55.1 | L73: 52.05 | M73: 48.23979
A74: 65 | B74: DIVISLAB | C74: 1248.05 | D74: 1260.23 | E74: 1223.27 | F74: 1198.48 | G74: 1161.52 | H74: 1285.02 | I74: 1321.98 | J74: 1346.77 | K74: 1297.2 | L74: 1235.45 | M74: 12.06742
A75: 66 | B75: LALPATHLAB | C75: 950.3 | D75: 952.37 | E75: 938.78 | F75: 927.27 | G75: 913.68 | H75: 963.88 | I75: 977.47 | J75: 988.98 | K75: 965.95 | L75: 940.85 | M75: 0.29545
A76: 67 | B76: DRREDDY | C76: 2454.15 | D76: 2424.37 | E76: 2371.73 | F76: 2289.32 | G76: 2236.68 | H76: 2506.78 | I76: 2559.42 | J76: 2641.83 | K76: 2477 | L76: 2341.95 | M76: 11.27674
A77: 68 | B77: EDELWEISS | C77: 148.95 | D77: 152.08 | E77: 141.87 | F77: 134.78 | G77: 124.57 | H77: 159.17 | I77: 169.38 | J77: 176.47 | K77: 162.3 | L77: 145 | M77: 77.18256
A78: 69 | B78: EICHERMOT | C78: 21085.7 | D78: 21356.05 | E78: 20530.95 | F78: 19976.20 | G78: 19151.10 | H78: 21910.80 | I78: 22735.90 | J78: 23290.65 | K78: 22181.15 | L78: 20801.3 | M78: 1.72743
A79: 70 | B79: EMAMILTD | C79: 422.35 | D79: 426.10 | E79: 396.20 | F79: 370.05 | G79: 340.15 | H79: 452.25 | I79: 482.15 | J79: 508.30 | K79: 456 | L79: 399.95 | M79: 12.63237
A80: 71 | B80: ENDURANCE | C80: 1189.1 | D80: 1192.75 | E80: 1165.50 | F80: 1141.90 | G80: 1114.65 | H80: 1216.35 | I80: 1243.60 | J80: 1267.20 | K80: 1220 | L80: 1169.15 | M80: 0.39137
A81: 72 | B81: ENGINERSIN | C81: 102.1 | D81: 103.23 | E81: 99.02 | F81: 95.93 | G81: 91.72 | H81: 106.32 | I81: 110.53 | J81: 113.62 | K81: 107.45 | L81: 100.15 | M81: 34.41146
A82: 73 | B82: EXIDEIND | C82: 242.45 | D82: 245.32 | E82: 237.83 | F82: 233.22 | G82: 225.73 | H82: 249.93 | I82: 257.42 | J82: 262.03 | K82: 252.8 | L82: 240.7 | M82: 20.5216
A83: 74 | B83: FEDERALBNK | C83: 70.75 | D83: 70.18 | E83: 69.07 | F83: 67.38 | G83: 66.27 | H83: 71.87 | I83: 72.98 | J83: 74.67 | K83: 71.3 | L83: 68.5 | M83: 160.73326
A84: 75 | B84: GAIL | C84: 333.5 | D84: 337.10 | E84: 327.80 | F84: 322.10 | G84: 312.80 | H84: 342.80 | I84: 352.10 | J84: 357.80 | K84: 346.4 | L84: 331.4 | M84: 52.50619
A85: 76 | B85: GMRINFRA | C85: 15.7 | D85: 15.80 | E85: 15.40 | F85: 15.10 | G85: 14.70 | H85: 16.10 | I85: 16.50 | J85: 16.80 | K85: 16.2 | L85: 15.5 | M85: 223.45808
A86: 77 | B86: GSKCONS | C86: 6666.55 | D86: 6601.17 | E86: 6467.38 | F86: 6268.22 | G86: 6134.43 | H86: 6800.33 | I86: 6934.12 | J86: 7133.28 | K86: 6734.95 | L86: 6402 | M86: 0.10392
A87: 78 | B87: GLAXO | C87: 1347.4 | D87: 1340.47 | E87: 1316.93 | F87: 1286.47 | G87: 1262.93 | H87: 1370.93 | I87: 1394.47 | J87: 1424.93 | K87: 1364 | L87: 1310 | M87: 0.21911
A88: 79 | B88: GLENMARK | C88: 590.15 | D88: 592.12 | E88: 579.63 | F88: 569.12 | G88: 556.63 | H88: 602.63 | I88: 615.12 | J88: 625.63 | K88: 604.6 | L88: 581.6 | M88: 7.33179
A89: 80 | B89: GODREJCP | C89: 669.1 | D89: 672.62 | E89: 640.23 | F89: 611.37 | G89: 578.98 | H89: 701.48 | I89: 733.87 | J89: 762.73 | K89: 705 | L89: 643.75 | M89: 26.86369
A90: 81 | B90: GODREJIND | C90: 451.6 | D90: 466.82 | E90: 433.78 | F90: 415.97 | G90: 382.93 | H90: 484.63 | I90: 517.67 | J90: 535.48 | K90: 499.85 | L90: 449 | M90: 8.23741
A91: 82 | B91: GRUH | C91: 265.5 | D91: 273.58 | E91: 255.17 | F91: 244.83 | G91: 226.42 | H91: 283.92 | I91: 302.33 | J91: 312.67 | K91: 292 | L91: 263.25 | M91: 4.95631
A92: 83 | B92: GPPL | C92: 100.05 | D92: 100.78 | E92: 99.02 | F92: 97.98 | G92: 96.22 | H92: 101.82 | I92: 103.58 | J92: 104.62 | K92: 102.55 | L92: 99.75 | M92: 1.16183
A93: 84 | B93: GSPL | C93: 173 | D93: 172.53 | E93: 170.57 | F93: 168.13 | G93: 166.17 | H93: 174.97 | I93: 176.93 | J93: 179.37 | K93: 174.5 | L93: 170.1 | M93: 8.17293
A94: 85 | B94: HCLTECH | C94: 1068.4 | D94: 1063.63 | E94: 1048.22 | F94: 1028.03 | G94: 1012.62 | H94: 1083.82 | I94: 1099.23 | J94: 1119.42 | K94: 1079.05 | L94: 1043.45 | M94: 13.47262
A95: 86 | B95: HDFCBANK | C95: 1940.6 | D95: 1945.20 | E95: 1925.40 | F95: 1910.20 | G95: 1890.40 | H95: 1960.40 | I95: 1980.20 | J95: 1995.40 | K95: 1965 | L95: 1930 | M95: 31.14841
A96: 87 | B96: HAVELLS | C96: 563.85 | D96: 566.37 | E96: 550.73 | F96: 537.62 | G96: 521.98 | H96: 579.48 | I96: 595.12 | J96: 608.23 | K96: 582 | L96: 553.25 | M96: 10.88023
A97: 88 | B97: HEROMOTOCO | C97: 2891.75 | D97: 2897.93 | E97: 2863.97 | F97: 2836.18 | G97: 2802.22 | H97: 2925.72 | I97: 2959.68 | J97: 2987.47 | K97: 2931.9 | L97: 2870.15 | M97: 6.99147
A98: 89 | B98: HEXAWARE | C98: 390.9 | D98: 393.45 | E98: 377.45 | F98: 364.00 | G98: 348.00 | H98: 406.90 | I98: 422.90 | J98: 436.35 | K98: 409.45 | L98: 380 | M98: 21.44938
A99: 90 | B99: HINDALCO | C99: 224.25 | D99: 223.80 | E99: 219.30 | F99: 214.35 | G99: 209.85 | H99: 228.75 | I99: 233.25 | J99: 238.20 | K99: 228.3 | L99: 218.85 | M99: 106.56797
A100: 91 | B100: HINDPETRO | C100: 171.25 | D100: 174.42 | E100: 166.83 | F100: 162.42 | G100: 154.83 | H100: 178.83 | I100: 186.42 | J100: 190.83 | K100: 182 | L100: 170 | M100: 112.9953
A101: 92 | B101: HINDUNILVR | C101: 1512.45 | D101: 1524.98 | E101: 1479.97 | F101: 1447.48 | G101: 1402.47 | H101: 1557.47 | I101: 1602.48 | J101: 1634.97 | K101: 1570 | L101: 1492.5 | M101: 15.62134
A102: 93 | B102: HINDZINC | C102: 273.45 | D102: 272.25 | E102: 269.50 | F102: 265.55 | G102: 262.80 | H102: 276.20 | I102: 278.95 | J102: 282.90 | K102: 275 | L102: 268.3 | M102: 6.88591
A103: 94 | B103: HUDCO | C103: 42.1 | D103: 42.17 | E103: 41.53 | F103: 40.97 | G103: 40.33 | H103: 42.73 | I103: 43.37 | J103: 43.93 | K103: 42.8 | L103: 41.6 | M103: 9.445
A104: 95 | B104: HDFC | C104: 1712.75 | D104: 1706.12 | E104: 1678.23 | F104: 1643.72 | G104: 1615.83 | H104: 1740.63 | I104: 1768.52 | J104: 1803.03 | K104: 1734 | L104: 1671.6 | M104: 30.8273
A105: 96 | B105: ITC | C105: 268.5 | D105: 270.58 | E105: 265.67 | F105: 262.83 | G105: 257.92 | H105: 273.42 | I105: 278.33 | J105: 281.17 | K105: 275.5 | L105: 267.75 | M105: 105.40674
A106: 97 | B106: ICICIBANK | C106: 306.25 | D106: 307.05 | E106: 302.20 | F106: 298.15 | G106: 293.30 | H106: 311.10 | I106: 315.95 | J106: 320.00 | K106: 311.9 | L106: 303 | M106: 148.52835
A107: 98 | B107: ICICIPRULI | C107: 316.95 | D107: 316.15 | E107: 310.80 | F107: 304.65 | G107: 299.30 | H107: 322.30 | I107: 327.65 | J107: 333.80 | K107: 321.5 | L107: 310 | M107: 9.88089
A108: 99 | B108: IDBI | C108: 58.8 | D108: 58.62 | E108: 58.18 | F108: 57.57 | G108: 57.13 | H108: 59.23 | I108: 59.67 | J108: 60.28 | K108: 59.05 | L108: 58 | M108: 87.94024
A109: 100 | B109: IDFCBANK | C109: 33.6 | D109: 33.55 | E109: 32.80 | F109: 32.00 | G109: 31.25 | H109: 34.35 | I109: 35.10 | J109: 35.90 | K109: 34.3 | L109: 32.75 | M109: 136.75803
A110: 101 | B110: IDFC | C110: 36.7 | D110: 36.65 | E110: 35.60 | F110: 34.50 | G110: 33.45 | H110: 37.75 | I110: 38.80 | J110: 39.90 | K110: 37.7 | L110: 35.55 | M110: 51.74363
A111: 102 | B111: IRB | C111: 125.1 | D111: 124.62 | E111: 120.73 | F111: 116.37 | G111: 112.48 | H111: 128.98 | I111: 132.87 | J111: 137.23 | K111: 128.5 | L111: 120.25 | M111: 23.12901
A112: 103 | B112: IDEA | C112: 34.45 | D112: 34.33 | E112: 33.57 | F112: 32.68 | G112: 31.92 | H112: 35.22 | I112: 35.98 | J112: 36.87 | K112: 35.1 | L112: 33.45 | M112: 194.2678
A113: 104 | B113: IBULHSGFIN | C113: 946.3 | D113: 949.23 | E113: 920.47 | F113: 894.63 | G113: 865.87 | H113: 975.07 | I113: 1003.83 | J113: 1029.67 | K113: 978 | L113: 923.4 | M113: 46.31794
A114: 105 | B114: INDIANB | C114: 225.7 | D114: 227.60 | E114: 221.20 | F114: 216.70 | G114: 210.30 | H114: 232.10 | I114: 238.50 | J114: 243.00 | K114: 234 | L114: 223.1 | M114: 15.0905
A115: 106 | B115: INDHOTEL | C115: 118.7 | D115: 116.60 | E115: 111.40 | F115: 104.10 | G115: 98.90 | H115: 123.90 | I115: 129.10 | J115: 136.40 | K115: 121.8 | L115: 109.3 | M115: 7.12705
A116: 107 | B116: IOC | C116: 122.65 | D116: 123.22 | E116: 119.73 | F116: 116.82 | G116: 113.33 | H116: 126.13 | I116: 129.62 | J116: 132.53 | K116: 126.7 | L116: 120.3 | M116: 112.60171
A117: 108 | B117: IGL | C117: 224.1 | D117: 223.77 | E117: 220.68 | F117: 217.27 | G117: 214.18 | H117: 227.18 | I117: 230.27 | J117: 233.68 | K117: 226.85 | L117: 220.35 | M117: 16.09275
A118: 109 | B118: INDUSINDBK | C118: 1607.9 | D118: 1605.68 | E118: 1592.32 | F118: 1576.73 | G118: 1563.37 | H118: 1621.27 | I118: 1634.63 | J118: 1650.22 | K118: 1619.05 | L118: 1590.1 | M118: 10.65187
A119: 110 | B119: NAUKRI | C119: 1437.7 | D119: 1427.18 | E119: 1373.02 | F119: 1308.33 | G119: 1254.17 | H119: 1491.87 | I119: 1546.03 | J119: 1610.72 | K119: 1481.35 | L119: 1362.5 | M119: 1.74243
A120: 111 | B120: INFY | C120: 717.75 | D120: 714.27 | E120: 706.13 | F120: 694.52 | G120: 686.38 | H120: 725.88 | I120: 734.02 | J120: 745.63 | K120: 722.4 | L120: 702.65 | M120: 67.77212
A121: 112 | B121: INDIGO | C121: 724.45 | D121: 734.48 | E121: 680.97 | F121: 637.48 | G121: 583.97 | H121: 777.97 | I121: 831.48 | J121: 874.97 | K121: 788 | L121: 691 | M121: 20.73604
A122: 113 | B122: IPCALAB | C122: 626.7 | D122: 627.23 | E122: 614.47 | F122: 602.23 | G122: 589.47 | H122: 639.47 | I122: 652.23 | J122: 664.47 | K122: 640 | L122: 615 | M122: 1.02926
A123: 114 | B123: JSWENERGY | C123: 58.85 | D123: 58.30 | E123: 56.85 | F123: 54.85 | G123: 53.40 | H123: 60.30 | I123: 61.75 | J123: 63.75 | K123: 59.75 | L123: 56.3 | M123: 14.20608
A124: 115 | B124: JSWSTEEL | C124: 371.4 | D124: 372.32 | E124: 362.83 | F124: 354.27 | G124: 344.78 | H124: 380.88 | I124: 390.37 | J124: 398.93 | K124: 381.8 | L124: 363.75 | M124: 75.72243
A125: 116 | B125: JINDALSTEL | C125: 175.1 | D125: 174.25 | E125: 170.20 | F125: 165.30 | G125: 161.25 | H125: 179.15 | I125: 183.20 | J125: 188.10 | K125: 178.3 | L125: 169.35 | M125: 99.75787
A126: 117 | B126: JUBLFOOD | C126: 1153.4 | D126: 1162.73 | E126: 1131.67 | F126: 1109.93 | G126: 1078.87 | H126: 1184.47 | I126: 1215.53 | J126: 1237.27 | K126: 1193.8 | L126: 1141 | M126: 12.77204
A127: 118 | B127: JUBILANT | C127: 650.95 | D127: 658.98 | E127: 634.52 | F127: 618.08 | G127: 593.62 | H127: 675.42 | I127: 699.88 | J127: 716.32 | K127: 683.45 | L127: 642.55 | M127: 2.26432
A128: 119 | B128: KARURVYSYA | C128: 77.75 | D128: 77.78 | E128: 77.17 | F128: 76.58 | G128: 75.97 | H128: 78.37 | I128: 78.98 | J128: 79.57 | K128: 78.4 | L128: 77.2 | M128: 43.80212
A129: 120 | B129: KOTAKBANK | C129: 1108.45 | D129: 1106.82 | E129: 1087.13 | F129: 1065.82 | G129: 1046.13 | H129: 1128.13 | I129: 1147.82 | J129: 1169.13 | K129: 1126.5 | L129: 1085.5 | M129: 31.14848
A130: 121 | B130: L&TFH | C130: 123.8 | D130: 123.27 | E130: 120.03 | F130: 116.27 | G130: 113.03 | H130: 127.03 | I130: 130.27 | J130: 134.03 | K130: 126.5 | L130: 119.5 | M130: 149.21399
A131: 122 | B131: LICHSGFIN | C131: 402.95 | D131: 405.03 | E131: 395.07 | F131: 387.18 | G131: 377.22 | H131: 412.92 | I131: 422.88 | J131: 430.77 | K131: 415 | L131: 397.15 | M131: 37.48428
A132: 123 | B132: LT | C132: 1221.05 | D132: 1224.18 | E132: 1212.32 | F132: 1203.58 | G132: 1191.72 | H132: 1232.92 | I132: 1244.78 | J132: 1253.52 | K132: 1236.05 | L132: 1215.45 | M132: 25.59815
A133: 124 | B133: LUPIN | C133: 868.9 | D133: 865.80 | E133: 849.10 | F133: 829.30 | G133: 812.60 | H133: 885.60 | I133: 902.30 | J133: 922.10 | K133: 882.5 | L133: 846 | M133: 26.76148
A134: 125 | B134: MRF | C134: 61997.3 | D134: 61785.77 | E134: 60871.53 | F134: 59745.77 | G134: 58831.53 | H134: 62911.53 | I134: 63825.77 | J134: 64951.53 | K134: 62700 | L134: 60660 | M134: 0.0498
A135: 126 | B135: MGL | C135: 792.15 | D135: 790.35 | E135: 776.80 | F135: 761.45 | G135: 747.90 | H135: 805.70 | I135: 819.25 | J135: 834.60 | K135: 803.9 | L135: 775 | M135: 3.46051
A136: 127 | B136: M&MFIN | C136: 370.85 | D136: 371.07 | E136: 361.48 | F136: 352.12 | G136: 342.53 | H136: 380.43 | I136: 390.02 | J136: 399.38 | K136: 380.65 | L136: 361.7 | M136: 20.97646
A137: 128 | B137: M&M | C137: 764.8 | D137: 769.18 | E137: 755.92 | F137: 747.03 | G137: 733.77 | H137: 778.07 | I137: 791.33 | J137: 800.22 | K137: 782.45 | L137: 760.3 | M137: 29.33355
A138: 129 | B138: MANAPPURAM | C138: 69.5 | D138: 68.93 | E138: 67.07 | F138: 64.63 | G138: 62.77 | H138: 71.37 | I138: 73.23 | J138: 75.67 | K138: 70.8 | L138: 66.5 | M138: 44.87674
A139: 130 | B139: MRPL | C139: 63.45 | D139: 63.32 | E139: 61.38 | F139: 59.32 | G139: 57.38 | H139: 65.38 | I139: 67.32 | J139: 69.38 | K139: 65.25 | L139: 61.25 | M139: 31.13487
A140: 131 | B140: MARICO | C140: 294.6 | D140: 299.80 | E140: 284.80 | F140: 275.00 | G140: 260.00 | H140: 309.60 | I140: 324.60 | J140: 334.40 | K140: 314.8 | L140: 290 | M140: 29.16992
A141: 132 | B141: MARUTI | C141: 6699.45 | D141: 6766.82 | E141: 6593.63 | F141: 6487.82 | G141: 6314.63 | H141: 6872.63 | I141: 7045.82 | J141: 7151.63 | K141: 6940 | L141: 6661 | M141: 10.79041
A142: 133 | B142: MFSL | C142: 373.2 | D142: 372.93 | E142: 366.12 | F142: 359.03 | G142: 352.22 | H142: 380.02 | I142: 386.83 | J142: 393.92 | K142: 379.75 | L142: 365.85 | M142: 12.29317
A143: 134 | B143: MINDTREE | C143: 1009.7 | D143: 1005.37 | E143: 983.73 | F143: 957.77 | G143: 936.13 | H143: 1031.33 | I143: 1052.97 | J143: 1078.93 | K143: 1027 | L143: 979.4 | M143: 10.24
A144: 135 | B144: MOTHERSUMI | C144: 235.35 | D144: 235.97 | E144: 227.38 | F144: 219.42 | G144: 210.83 | H144: 243.93 | I144: 252.52 | J144: 260.48 | K144: 244.55 | L144: 228 | M144: 52.82535
A145: 136 | B145: MPHASIS | C145: 1064.7 | D145: 1073.77 | E145: 1043.53 | F145: 1022.37 | G145: 992.13 | H145: 1094.93 | I145: 1125.17 | J145: 1146.33 | K145: 1104 | L145: 1052.6 | M145: 6.72251
A146: 137 | B146: MUTHOOTFIN | C146: 373.05 | D146: 371.35 | E146: 357.70 | F146: 342.35 | G146: 328.70 | H146: 386.70 | I146: 400.35 | J146: 415.70 | K146: 385 | L146: 356 | M146: 12.08718
A147: 138 | B147: NATCOPHARM | C147: 655.2 | D147: 654.35 | E147: 636.85 | F147: 618.50 | G147: 601.00 | H147: 672.70 | I147: 690.20 | J147: 708.55 | K147: 671.85 | L147: 636 | M147: 2.35224
A148: 139 | B148: NBCC | C148: 52.7 | D148: 53.55 | E148: 51.25 | F148: 49.80 | G148: 47.50 | H148: 55.00 | I148: 57.30 | J148: 58.75 | K148: 55.85 | L148: 52.1 | M148: 92.1455
A149: 140 | B149: NHPC | C149: 22.6 | D149: 22.48 | E149: 22.22 | F149: 21.83 | G149: 21.57 | H149: 22.87 | I149: 23.13 | J149: 23.52 | K149: 22.75 | L149: 22.1 | M149: 41.5049
A150: 141 | B150: NMDC | C150: 107.2 | D150: 107.85 | E150: 105.75 | F150: 104.30 | G150: 102.20 | H150: 109.30 | I150: 111.40 | J150: 112.85 | K150: 109.95 | L150: 106.4 | M150: 30.78763
A151: 142 | B151: NTPC | C151: 161.7 | D151: 162.53 | E151: 160.07 | F151: 158.43 | G151: 155.97 | H151: 164.17 | I151: 166.63 | J151: 168.27 | K151: 165 | L151: 160.9 | M151: 47.97049
A152: 143 | B152: NATIONALUM | C152: 61.2 | D152: 61.43 | E152: 60.27 | F152: 59.33 | G152: 58.17 | H152: 62.37 | I152: 63.53 | J152: 64.47 | K152: 62.6 | L152: 60.5 | M152: 67.90703
A153: 144 | B153: OBEROIRLTY | C153: 375.7 | D153: 375.55 | E153: 362.60 | F153: 349.50 | G153: 336.55 | H153: 388.65 | I153: 401.60 | J153: 414.70 | K153: 388.5 | L153: 362.45 | M153: 4.35713
A154: 145 | B154: ONGC | C154: 146.65 | D154: 148.00 | E154: 144.10 | F154: 141.55 | G154: 137.65 | H154: 150.55 | I154: 154.45 | J154: 157.00 | K154: 151.9 | L154: 145.45 | M154: 68.18577
A155: 146 | B155: OIL | C155: 194.55 | D155: 192.28 | E155: 187.27 | F155: 179.98 | G155: 174.97 | H155: 199.57 | I155: 204.58 | J155: 211.87 | K155: 197.3 | L155: 185 | M155: 23.87142
A156: 147 | B156: OFSS | C156: 3955.35 | D156: 3946.78 | E156: 3893.57 | F156: 3831.78 | G156: 3778.57 | H156: 4008.57 | I156: 4061.78 | J156: 4123.57 | K156: 4000 | L156: 3885 | M156: 0.2896
A157: 148 | B157: PCJEWELLER | C157: 56.7 | D157: 57.30 | E157: 54.85 | F157: 53.00 | G157: 50.55 | H157: 59.15 | I157: 61.60 | J157: 63.45 | K157: 59.75 | L157: 55.45 | M157: 88.9935
A158: 149 | B158: PIIND | C158: 719.15 | D158: 716.47 | E158: 702.93 | F158: 686.72 | G158: 673.18 | H158: 732.68 | I158: 746.22 | J158: 762.43 | K158: 730 | L158: 700.25 | M158: 0.42094
A159: 150 | B159: PNBHOUSING | C159: 879.9 | D159: 875.23 | E159: 855.92 | F159: 831.93 | G159: 812.62 | H159: 899.22 | I159: 918.53 | J159: 942.52 | K159: 894.55 | L159: 851.25 | M159: 1.73158
A160: 151 | B160: PAGEIND | C160: 29122.8 | D160: 29114.22 | E160: 28538.78 | F160: 27954.77 | G160: 27379.33 | H160: 29698.23 | I160: 30273.67 | J160: 30857.68 | K160: 29689.65 | L160: 28530.2 | M160: 0.35064
A161: 152 | B161: PETRONET | C161: 211.85 | D161: 212.55 | E161: 209.50 | F161: 207.15 | G161: 204.10 | H161: 214.90 | I161: 217.95 | J161: 220.30 | K161: 215.6 | L161: 210.2 | M161: 22.19923
A162: 153 | B162: PIDILITIND | C162: 914.25 | D162: 930.18 | E162: 879.07 | F162: 843.88 | G162: 792.77 | H162: 965.37 | I162: 1016.48 | J162: 1051.67 | K162: 981.3 | L162: 895 | M162: 8.44906
A163: 154 | B163: PEL | C163: 2164.25 | D163: 2145.02 | E163: 2082.53 | F163: 2000.82 | G163: 1938.33 | H163: 2226.73 | I163: 2289.22 | J163: 2370.93 | K163: 2207.5 | L163: 2063.3 | M163: 7.38311
A164: 155 | B164: PFC | C164: 74.15 | D164: 74.15 | E164: 72.55 | F164: 70.95 | G164: 69.35 | H164: 75.75 | I164: 77.35 | J164: 78.95 | K164: 75.75 | L164: 72.55 | M164: 57.61068
A165: 156 | B165: POWERGRID | C165: 186.55 | D165: 187.10 | E165: 184.75 | F165: 182.95 | G165: 180.60 | H165: 188.90 | I165: 191.25 | J165: 193.05 | K165: 189.45 | L165: 185.3 | M165: 31.23162
A166: 157 | B166: PRESTIGE | C166: 170.55 | D166: 170.42 | E166: 165.63 | F166: 160.72 | G166: 155.93 | H166: 175.33 | I166: 180.12 | J166: 185.03 | K166: 175.2 | L166: 165.5 | M166: 4.67958
A167: 158 | B167: PGHH | C167: 9023.6 | D167: 9010.20 | E167: 8935.40 | F167: 8847.20 | G167: 8772.40 | H167: 9098.40 | I167: 9173.20 | J167: 9261.40 | K167: 9085 | L167: 8922 | M167: 0.02833
A168: 159 | B168: PNB | C168: 62.65 | D168: 62.68 | E168: 61.47 | F168: 60.28 | G168: 59.07 | H168: 63.87 | I168: 65.08 | J168: 66.27 | K168: 63.9 | L168: 61.5 | M168: 247.7321
A169: 160 | B169: RBLBANK | C169: 499.75 | D169: 499.95 | E169: 494.90 | F169: 490.05 | G169: 485.00 | H169: 504.80 | I169: 509.85 | J169: 514.70 | K169: 505 | L169: 495.1 | M169: 10.89914
A170: 161 | B170: RAJESHEXPO | C170: 662.65 | D170: 672.18 | E170: 647.47 | F170: 632.28 | G170: 607.57 | H170: 687.37 | I170: 712.08 | J170: 727.27 | K170: 696.9 | L170: 657 | M170: 2.64838
A171: 162 | B171: RELCAPITAL | C171: 236.75 | D171: 235.42 | E171: 227.33 | F171: 217.92 | G171: 209.83 | H171: 244.83 | I171: 252.92 | J171: 262.33 | K171: 243.5 | L171: 226 | M171: 121.8393
A172: 163 | B172: RCOM | C172: 11.05 | D172: 10.98 | E172: 10.67 | F172: 10.28 | G172: 9.97 | H172: 11.37 | I172: 11.68 | J172: 12.07 | K172: 11.3 | L172: 10.6 | M172: 624.14174
A173: 164 | B173: RELIANCE | C173: 1090.05 | D173: 1098.18 | E173: 1073.07 | F173: 1056.08 | G173: 1030.97 | H173: 1115.17 | I173: 1140.28 | J173: 1157.27 | K173: 1123.3 | L173: 1081.2 | M173: 109.91196
A174: 165 | B174: RELINFRA | C174: 295.65 | D174: 292.78 | E174: 282.87 | F174: 270.08 | G174: 260.17 | H174: 305.57 | I174: 315.48 | J174: 328.27 | K174: 302.7 | L174: 280 | M174: 48.1421
A175: 166 | B175: RPOWER | C175: 24.65 | D175: 24.30 | E175: 23.45 | F175: 22.25 | G175: 21.40 | H175: 25.50 | I175: 26.35 | J175: 27.55 | K175: 25.15 | L175: 23.1 | M175: 99.68349
A176: 167 | B176: RECLTD | C176: 99.15 | D176: 99.58 | E176: 96.77 | F176: 94.38 | G176: 91.57 | H176: 101.97 | I176: 104.78 | J176: 107.17 | K176: 102.4 | L176: 97.2 | M176: 58.19789
A177: 168 | B177: SRF | C177: 1699.2 | D177: 1689.10 | E177: 1656.30 | F177: 1613.40 | G177: 1580.60 | H177: 1732.00 | I177: 1764.80 | J177: 1807.70 | K177: 1721.9 | L177: 1646.2 | M177: 3.71426
A178: 169 | B178: SHREECEM | C178: 15744.6 | D178: 15872.25 | E178: 15572.35 | F178: 15400.10 | G178: 15100.20 | H178: 16044.50 | I178: 16344.40 | J178: 16516.65 | K178: 16172.15 | L178: 15700 | M178: 0.08422
A179: 170 | B179: SRTRANSFIN | C179: 955.85 | D179: 958.88 | E179: 922.57 | F179: 889.28 | G179: 852.97 | H179: 992.17 | I179: 1028.48 | J179: 1061.77 | K179: 995.2 | L179: 925.6 | M179: 30.25273
A180: 171 | B180: SIEMENS | C180: 891.85 | D180: 895.00 | E180: 847.10 | F180: 802.35 | G180: 754.45 | H180: 939.75 | I180: 987.65 | J180: 1032.40 | K180: 942.9 | L180: 850.25 | M180: 8.23436
A181: 172 | B181: SBIN | C181: 262.95 | D181: 263.70 | E181: 259.25 | F181: 255.55 | G181: 251.10 | H181: 267.40 | I181: 271.85 | J181: 275.55 | K181: 268.15 | L181: 260 | M181: 160.10883
A182: 173 | B182: SAIL | C182: 63.55 | D182: 63.90 | E182: 61.45 | F182: 59.35 | G182: 56.90 | H182: 66.00 | I182: 68.45 | J182: 70.55 | K182: 66.35 | L182: 61.8 | M182: 224.23331
A183: 174 | B183: SPARC | C183: 301.1 | D183: 303.37 | E183: 295.73 | F183: 290.37 | G183: 282.73 | H183: 308.73 | I183: 316.37 | J183: 321.73 | K183: 311 | L183: 298 | M183: 2.3084
A184: 175 | B184: SUNPHARMA | C184: 609.75 | D184: 608.22 | E184: 599.13 | F184: 588.52 | G184: 579.43 | H184: 618.83 | I184: 627.92 | J184: 638.53 | K184: 617.3 | L184: 597.6 | M184: 45.16779
A185: 176 | B185: SUNTV | C185: 610.7 | D185: 612.58 | E185: 597.12 | F185: 583.53 | G185: 568.07 | H185: 626.17 | I185: 641.63 | J185: 655.22 | K185: 628.05 | L185: 599 | M185: 14.59709
A186: 177 | B186: SUZLON | C186: 5.35 | D186: 5.38 | E186: 5.27 | F186: 5.18 | G186: 5.07 | H186: 5.47 | I186: 5.58 | J186: 5.67 | K186: 5.5 | L186: 5.3 | M186: 199.08235
A187: 178 | B187: SYNDIBANK | C187: 29.8 | D187: 29.93 | E187: 29.37 | F187: 28.93 | G187: 28.37 | H187: 30.37 | I187: 30.93 | J187: 31.37 | K187: 30.5 | L187: 29.5 | M187: 29.33693
A188: 179 | B188: SYNGENE | C188: 574.4 | D188: 570.50 | E188: 560.00 | F188: 545.60 | G188: 535.10 | H188: 584.90 | I188: 595.40 | J188: 609.80 | K188: 581 | L188: 556.1 | M188: 1.34959
A189: 180 | B189: TV18BRDCST | C189: 33.4 | D189: 33.23 | E189: 32.07 | F189: 30.73 | G189: 29.57 | H189: 34.57 | I189: 35.73 | J189: 37.07 | K189: 34.4 | L189: 31.9 | M189: 71.29267
A190: 181 | B190: TVSMOTOR | C190: 494.7 | D190: 497.23 | E190: 486.57 | F190: 478.43 | G190: 467.77 | H190: 505.37 | I190: 516.03 | J190: 524.17 | K190: 507.9 | L190: 489.1 | M190: 12.13662
A191: 182 | B191: TATACHEM | C191: 635.75 | D191: 633.73 | E191: 624.02 | F191: 612.28 | G191: 602.57 | H191: 645.47 | I191: 655.18 | J191: 666.92 | K191: 643.45 | L191: 622 | M191: 3.71254
A192: 183 | B192: TATACOMM | C192: 476.6 | D192: 477.97 | E192: 465.68 | F192: 454.77 | G192: 442.48 | H192: 488.88 | I192: 501.17 | J192: 512.08 | K192: 490.25 | L192: 467.05 | M192: 3.83859
A193: 184 | B193: TCS | C193: 2091.8 | D193: 2084.22 | E193: 2060.78 | F193: 2029.77 | G193: 2006.33 | H193: 2115.23 | I193: 2138.67 | J193: 2169.68 | K193: 2107.65 | L193: 2053.2 | M193: 18.6713
A194: 185 | B194: TATAGLOBAL | C194: 216.5 | D194: 215.08 | E194: 211.02 | F194: 205.53 | G194: 201.47 | H194: 220.57 | I194: 224.63 | J194: 230.12 | K194: 219.15 | L194: 209.6 | M194: 18.44462
A195: 186 | B195: TATAMTRDVR | C195: 101.55 | D195: 103.07 | E195: 93.43 | F195: 85.32 | G195: 75.68 | H195: 111.18 | I195: 120.82 | J195: 128.93 | K195: 112.7 | L195: 94.95 | M195: 188.23915
A196: 187 | B196: TATAMOTORS | C196: 184.35 | D196: 186.88 | E196: 167.77 | F196: 151.18 | G196: 132.07 | H196: 203.47 | I196: 222.58 | J196: 239.17 | K196: 206 | L196: 170.3 | M196: 1427.60251
A197: 188 | B197: TATAPOWER | C197: 60.95 | D197: 61.05 | E197: 59.70 | F197: 58.45 | G197: 57.10 | H197: 62.30 | I197: 63.65 | J197: 64.90 | K197: 62.4 | L197: 59.8 | M197: 49.69265
A198: 189 | B198: TATASTEEL | C198: 572.5 | D198: 570.32 | E198: 556.73 | F198: 540.97 | G198: 527.38 | H198: 586.08 | I198: 599.67 | J198: 615.43 | K198: 583.9 | L198: 554.55 | M198: 77.34434
A199: 190 | B199: TECHM | C199: 696.1 | D199: 697.27 | E199: 689.53 | F199: 682.97 | G199: 675.23 | H199: 703.83 | I199: 711.57 | J199: 718.13 | K199: 705 | L199: 690.7 | M199: 27.29413
A200: 191 | B200: RAMCOCEM | C200: 602.55 | D200: 603.78 | E200: 589.57 | F200: 576.58 | G200: 562.37 | H200: 616.77 | I200: 630.98 | J200: 643.97 | K200: 618 | L200: 590.8 | M200: 2.51038
A201: 192 | B201: TITAN | C201: 749.5 | D201: 767.58 | E201: 714.22 | F201: 678.93 | G201: 625.57 | H201: 802.87 | I201: 856.23 | J201: 891.52 | K201: 820.95 | L201: 732.3 | M201: 86.83946
A202: 193 | B202: TORNTPHARM | C202: 1595.05 | D202: 1589.88 | E202: 1563.17 | F202: 1531.28 | G202: 1504.57 | H202: 1621.77 | I202: 1648.48 | J202: 1680.37 | K202: 1616.6 | L202: 1558 | M202: 1.27089
A203: 194 | B203: TORNTPOWER | C203: 227.45 | D203: 224.95 | E203: 219.50 | F203: 211.55 | G203: 206.10 | H203: 232.90 | I203: 238.35 | J203: 246.30 | K203: 230.4 | L203: 217 | M203: 10.02879
A204: 195 | B204: UPL | C204: 604.1 | D204: 606.10 | E204: 589.25 | F204: 574.40 | G204: 557.55 | H204: 620.95 | I204: 637.80 | J204: 652.65 | K204: 622.95 | L204: 591.25 | M204: 16.99809
A205: 196 | B205: ULTRACEMCO | C205: 3782 | D205: 3797.32 | E205: 3728.68 | F205: 3675.37 | G205: 3606.73 | H205: 3850.63 | I205: 3919.27 | J205: 3972.58 | K205: 3865.95 | L205: 3744 | M205: 2.15436
... 30 more rows

Sheet MidCap Intra
L5: Back To Main Page
A6: FOR INTRA DAY TRADING | K6: =Main!B10 -> 2018-10-10
A9: Sr.no | B9: Scrip | C9: CLOSE RATE | D9: Pivot Point | E9: Supports | H9: Resistances
C10: Point | E10: S1 | F10: S2 | G10: S3 | H10: R1 | I10: R2 | J10: R3 | K10: HIGH | L10: LOW | M10: Total Trade Quanity in Lakhs
A11: 1 | B11: 3MINDIA | C11: 21400.2 | D11: 21506.73 | E11: 21093.47 | F11: 20786.73 | G11: 20373.47 | H11: 21813.47 | I11: 22226.73 | J11: 22533.47 | K11: 21920 | L11: 21200 | M11: 0.01147
A12: 2 | B12: 8KMILES | C12: 140.8 | D12: 140.80 | E12: 140.80 | F12: 140.80 | G12: 140.80 | H12: 140.80 | I12: 140.80 | J12: 140.80 | K12: 140.8 | L12: 140.8 | M12: 0.1215
A13: 3 | B13: AARTIIND | C13: 1229.4 | D13: 1231.75 | E13: 1211.50 | F13: 1193.60 | G13: 1173.35 | H13: 1249.65 | I13: 1269.90 | J13: 1287.80 | K13: 1252 | L13: 1213.85 | M13: 0.34022
A14: 4 | B14: ABAN | C14: 74.15 | D14: 73.90 | E14: 72.10 | F14: 70.05 | G14: 68.25 | H14: 75.95 | I14: 77.75 | J14: 79.80 | K14: 75.7 | L14: 71.85 | M14: 8.53264
A15: 5 | B15: ABB | C15: 1354.5 | D15: 1362.38 | E15: 1336.32 | F15: 1318.13 | G15: 1292.07 | H15: 1380.57 | I15: 1406.63 | J15: 1424.82 | K15: 1388.45 | L15: 1344.2 | M15: 0.36623
A16: 6 | B16: ABCAPITAL | C16: 105 | D16: 105.58 | E16: 103.47 | F16: 101.93 | G16: 99.82 | H16: 107.12 | I16: 109.23 | J16: 110.77 | K16: 107.7 | L16: 104.05 | M16: 16.78879
A17: 7 | B17: ABFRL | C17: 175.5 | D17: 174.33 | E17: 169.02 | F17: 162.53 | G17: 157.22 | H17: 180.82 | I17: 186.13 | J17: 192.62 | K17: 179.65 | L17: 167.85 | M17: 9.28713
A18: 8 | B18: ACC | C18: 1465.85 | D18: 1468.45 | E18: 1443.00 | F18: 1420.15 | G18: 1394.70 | H18: 1491.30 | I18: 1516.75 | J18: 1539.60 | K18: 1493.9 | L18: 1445.6 | M18: 5.22994
A19: 9 | B19: ADANIPORTS | C19: 318.75 | D19: 315.08 | E19: 306.17 | F19: 293.58 | G19: 284.67 | H19: 327.67 | I19: 336.58 | J19: 349.17 | K19: 324 | L19: 302.5 | M19: 57.71005
A20: 10 | B20: ADANIPOWER | C20: 23.95 | D20: 23.63 | E20: 22.97 | F20: 21.98 | G20: 21.32 | H20: 24.62 | I20: 25.28 | J20: 26.27 | K20: 24.3 | L20: 22.65 | M20: 204.06963
A21: 11 | B21: ADANITRANS | C21: 148.45 | D21: 146.32 | E21: 143.13 | F21: 137.82 | G21: 134.63 | H21: 151.63 | I21: 154.82 | J21: 160.13 | K21: 149.5 | L21: 141 | M21: 0.42072
A22: 12 | B22: ADVENZYMES | C22: 169.65 | D22: 170.33 | E22: 164.67 | F22: 159.68 | G22: 154.02 | H22: 175.32 | I22: 180.98 | J22: 185.97 | K22: 176 | L22: 165.35 | M22: 3.09365
A23: 13 | B23: AEGISCHEM | C23: 175.85 | D23: 177.63 | E23: 171.77 | F23: 167.68 | G23: 161.82 | H23: 181.72 | I23: 187.58 | J23: 191.67 | K23: 183.5 | L23: 173.55 | M23: 0.91327
A24: 14 | B24: AIAENG | C24: 1527.9 | D24: 1540.70 | E24: 1487.20 | F24: 1446.50 | G24: 1393.00 | H24: 1581.40 | I24: 1634.90 | J24: 1675.60 | K24: 1594.2 | L24: 1500 | M24: 0.73642
A25: 15 | B25: AJANTPHARM | C25: 1005.8 | D25: 1005.97 | E25: 981.98 | F25: 958.17 | G25: 934.18 | H25: 1029.78 | I25: 1053.77 | J25: 1077.58 | K25: 1029.95 | L25: 982.15 | M25: 3.20108
A26: 16 | B26: AKZOINDIA | C26: 1570.6 | D26: 1578.22 | E26: 1542.53 | F26: 1514.47 | G26: 1478.78 | H26: 1606.28 | I26: 1641.97 | J26: 1670.03 | K26: 1613.9 | L26: 1550.15 | M26: 0.07069
A27: 17 | B27: ALBK | C27: 33.85 | D27: 33.82 | E27: 33.18 | F27: 32.52 | G27: 31.88 | H27: 34.48 | I27: 35.12 | J27: 35.78 | K27: 34.45 | L27: 33.15 | M27: 26.95783
A28: 18 | B28: ALKEM | C28: 1902.95 | D28: 1917.68 | E28: 1835.27 | F28: 1767.58 | G28: 1685.17 | H28: 1985.37 | I28: 2067.78 | J28: 2135.47 | K28: 2000.1 | L28: 1850 | M28: 0.33323
A29: 19 | B29: ALLCARGO | C29: 97.5 | D29: 98.47 | E29: 94.93 | F29: 92.37 | G29: 88.83 | H29: 101.03 | I29: 104.57 | J29: 107.13 | K29: 102 | L29: 95.9 | M29: 4.25529
A30: 20 | B30: AMARAJABAT | C30: 734.1 | D30: 729.92 | E30: 721.83 | F30: 709.57 | G30: 701.48 | H30: 742.18 | I30: 750.27 | J30: 762.53 | K30: 738 | L30: 717.65 | M30: 5.13066
A31: 21 | B31: AMBUJACEM | C31: 204.7 | D31: 206.37 | E31: 200.78 | F31: 196.87 | G31: 191.28 | H31: 210.28 | I31: 215.87 | J31: 219.78 | K31: 211.95 | L31: 202.45 | M31: 17.90998
A32: 22 | B32: ANDHRABANK | C32: 25.95 | D32: 26.15 | E32: 25.50 | F32: 25.05 | G32: 24.40 | H32: 26.60 | I32: 27.25 | J32: 27.70 | K32: 26.8 | L32: 25.7 | M32: 16.40553
A33: 23 | B33: APLAPOLLO | C33: 1195 | D33: 1199.87 | E33: 1155.73 | F33: 1116.47 | G33: 1072.33 | H33: 1239.13 | I33: 1283.27 | J33: 1322.53 | K33: 1244 | L33: 1160.6 | M33: 0.58631
A34: 24 | B34: APLLTD | C34: 570.55 | D34: 565.23 | E34: 555.47 | F34: 540.38 | G34: 530.62 | H34: 580.32 | I34: 590.08 | J34: 605.17 | K34: 575 | L34: 550.15 | M34: 0.55924
A35: 25 | B35: APOLLOHOSP | C35: 1098.7 | D35: 1091.37 | E35: 1072.63 | F35: 1046.57 | G35: 1027.83 | H35: 1117.43 | I35: 1136.17 | J35: 1162.23 | K35: 1110.1 | L35: 1065.3 | M35: 5.09541
A36: 26 | B36: APOLLOTYRE | C36: 201.4 | D36: 203.02 | E36: 198.03 | F36: 194.67 | G36: 189.68 | H36: 206.38 | I36: 211.37 | J36: 214.73 | K36: 208 | L36: 199.65 | M36: 34.82398
A37: 27 | B37: ARVIND | C37: 300.05 | D37: 298.63 | E37: 290.47 | F37: 280.88 | G37: 272.72 | H37: 308.22 | I37: 316.38 | J37: 325.97 | K37: 306.8 | L37: 289.05 | M37: 21.12741
A38: 28 | B38: ASAHIINDIA | C38: 295.1 | D38: 297.53 | E38: 290.72 | F38: 286.33 | G38: 279.52 | H38: 301.92 | I38: 308.73 | J38: 313.12 | K38: 304.35 | L38: 293.15 | M38: 0.35277
A39: 29 | B39: ASHOKA | C39: 106.55 | D39: 105.20 | E39: 98.40 | F39: 90.25 | G39: 83.45 | H39: 113.35 | I39: 120.15 | J39: 128.30 | K39: 112 | L39: 97.05 | M39: 3.38593
A40: 30 | B40: ASHOKLEY | C40: 110.85 | D40: 109.93 | E40: 108.22 | F40: 105.58 | G40: 103.87 | H40: 112.57 | I40: 114.28 | J40: 116.92 | K40: 111.65 | L40: 107.3 | M40: 222.19546
A41: 31 | B41: ASIANPAINT | C41: 1201.4 | D41: 1216.10 | E41: 1176.30 | F41: 1151.20 | G41: 1111.40 | H41: 1241.20 | I41: 1281.00 | J41: 1306.10 | K41: 1255.9 | L41: 1191 | M41: 10.88738
A42: 32 | B42: ASTRAL | C42: 849.4 | D42: 845.07 | E42: 829.38 | F42: 809.37 | G42: 793.68 | H42: 865.08 | I42: 880.77 | J42: 900.78 | K42: 860.75 | L42: 825.05 | M42: 0.53475
A43: 33 | B43: ATUL | C43: 3045.4 | D43: 3042.78 | E43: 2940.62 | F43: 2835.83 | G43: 2733.67 | H43: 3147.57 | I43: 3249.73 | J43: 3354.52 | K43: 3144.95 | L43: 2938 | M43: 0.25521
A44: 34 | B44: AUBANK | C44: 569.6 | D44: 563.37 | E44: 551.73 | F44: 533.87 | G44: 522.23 | H44: 581.23 | I44: 592.87 | J44: 610.73 | K44: 575 | L44: 545.5 | M44: 1.34982
A45: 35 | B45: AUROPHARMA | C45: 766.75 | D45: 758.47 | E45: 745.28 | F45: 723.82 | G45: 710.63 | H45: 779.93 | I45: 793.12 | J45: 814.58 | K45: 771.65 | L45: 737 | M45: 45.5597
A46: 36 | B46: AVANTIFEED | C46: 366.25 | D46: 371.23 | E46: 360.02 | F46: 353.78 | G46: 342.57 | H46: 377.47 | I46: 388.68 | J46: 394.92 | K46: 382.45 | L46: 365 | M46: 2.4834
A47: 37 | B47: AXISBANK | C47: 552.85 | D47: 555.30 | E47: 546.70 | F47: 540.55 | G47: 531.95 | H47: 561.45 | I47: 570.05 | J47: 576.20 | K47: 563.9 | L47: 549.15 | M47: 80.53297
A48: 38 | B48: BAJAJ-AUTO | C48: 2548.85 | D48: 2556.40 | E48: 2522.75 | F48: 2496.65 | G48: 2463.00 | H48: 2582.50 | I48: 2616.15 | J48: 2642.25 | K48: 2590.05 | L48: 2530.3 | M48: 3.09578
A49: 39 | B49: BAJAJCORP | C49: 386.65 | D49: 385.97 | E49: 381.68 | F49: 376.72 | G49: 372.43 | H49: 390.93 | I49: 395.22 | J49: 400.18 | K49: 390.25 | L49: 381 | M49: 0.08617
A50: 40 | B50: BAJAJELEC | C50: 495.1 | D50: 490.85 | E50: 481.80 | F50: 468.50 | G50: 459.45 | H50: 504.15 | I50: 513.20 | J50: 526.50 | K50: 499.9 | L50: 477.55 | M50: 2.24549
A51: 41 | B51: BAJAJFINSV | C51: 5429.1 | D51: 5428.13 | E51: 5276.27 | F51: 5123.43 | G51: 4971.57 | H51: 5580.97 | I51: 5732.83 | J51: 5885.67 | K51: 5580 | L51: 5275.3 | M51: 2.1616
A52: 42 | B52: BAJAJHIND | C52: 9.55 | D52: 9.42 | E52: 8.93 | F52: 8.32 | G52: 7.83 | H52: 10.03 | I52: 10.52 | J52: 11.13 | K52: 9.9 | L52: 8.8 | M52: 128.52823
A53: 43 | B53: BAJAJHLDNG | C53: 2512.05 | D53: 2530.17 | E53: 2464.33 | F53: 2416.62 | G53: 2350.78 | H53: 2577.88 | I53: 2643.72 | J53: 2691.43 | K53: 2596 | L53: 2482.45 | M53: 0.33174
A54: 44 | B54: BAJFINANCE | C54: 2060.85 | D54: 2041.45 | E54: 1967.05 | F54: 1873.25 | G54: 1798.85 | H54: 2135.25 | I54: 2209.65 | J54: 2303.45 | K54: 2115.85 | L54: 1947.65 | M54: 48.59016
A55: 45 | B55: BALKRISIND | C55: 982.1 | D55: 986.35 | E55: 967.75 | F55: 953.40 | G55: 934.80 | H55: 1000.70 | I55: 1019.30 | J55: 1033.65 | K55: 1004.95 | L55: 972 | M55: 6.37268
A56: 46 | B56: BALLARPUR | C56: 6.45 | D56: 6.50 | E56: 6.35 | F56: 6.25 | G56: 6.10 | H56: 6.60 | I56: 6.75 | J56: 6.85 | K56: 6.65 | L56: 6.4 | M56: 2.23779
A57: 47 | B57: BALMLAWRIE | C57: 182.4 | D57: 181.35 | E57: 178.70 | F57: 175.00 | G57: 172.35 | H57: 185.05 | I57: 187.70 | J57: 191.40 | K57: 184 | L57: 177.65 | M57: 0.38426
A58: 48 | B58: BALRAMCHIN | C58: 85 | D58: 84.02 | E58: 81.08 | F58: 77.17 | G58: 74.23 | H58: 87.93 | I58: 90.87 | J58: 94.78 | K58: 86.95 | L58: 80.1 | M58: 154.87193
A59: 49 | B59: BANKBARODA | C59: 93.25 | D59: 95.00 | E59: 90.90 | F59: 88.55 | G59: 84.45 | H59: 97.35 | I59: 101.45 | J59: 103.80 | K59: 99.1 | L59: 92.65 | M59: 240.6965
A60: 50 | B60: BANKINDIA | C60: 75.4 | D60: 75.32 | E60: 73.63 | F60: 71.87 | G60: 70.18 | H60: 77.08 | I60: 78.77 | J60: 80.53 | K60: 77 | L60: 73.55 | M60: 71.0332
A61: 51 | B61: BASF | C61: 1630.8 | D61: 1620.95 | E61: 1601.90 | F61: 1573.00 | G61: 1553.95 | H61: 1649.85 | I61: 1668.90 | J61: 1697.80 | K61: 1640 | L61: 1592.05 | M61: 0.03763
A62: 52 | B62: BATAINDIA | C62: 865.85 | D62: 878.77 | E62: 847.58 | F62: 829.32 | G62: 798.13 | H62: 897.03 | I62: 928.22 | J62: 946.48 | K62: 909.95 | L62: 860.5 | M62: 16.09266
A63: 53 | B63: BBTC | C63: 1237.5 | D63: 1250.95 | E63: 1207.90 | F63: 1178.30 | G63: 1135.25 | H63: 1280.55 | I63: 1323.60 | J63: 1353.20 | K63: 1294 | L63: 1221.35 | M63: 2.78828
A64: 54 | B64: BEL | C64: 75.9 | D64: 76.48 | E64: 74.22 | F64: 72.53 | G64: 70.27 | H64: 78.17 | I64: 80.43 | J64: 82.12 | K64: 78.75 | L64: 74.8 | M64: 94.32031
A65: 55 | B65: BEML | C65: 545.45 | D65: 549.17 | E65: 530.33 | F65: 515.22 | G65: 496.38 | H65: 564.28 | I65: 583.12 | J65: 598.23 | K65: 568 | L65: 534.05 | M65: 10.10681
A66: 56 | B66: BERGEPAINT | C66: 272.7 | D66: 271.82 | E66: 267.73 | F66: 262.77 | G66: 258.68 | H66: 276.78 | I66: 280.87 | J66: 285.83 | K66: 275.9 | L66: 266.85 | M66: 7.9115
A67: 57 | B67: BFUTILITIE | C67: 192.95 | D67: 194.40 | E67: 187.00 | F67: 181.05 | G67: 173.65 | H67: 200.35 | I67: 207.75 | J67: 213.70 | K67: 201.8 | L67: 188.45 | M67: 3.19599
A68: 58 | B68: BGRENERGY | C68: 51.25 | D68: 51.67 | E68: 49.68 | F68: 48.12 | G68: 46.13 | H68: 53.23 | I68: 55.22 | J68: 56.78 | K68: 53.65 | L68: 50.1 | M68: 0.62978
A69: 59 | B69: BHARATFIN | C69: 996.45 | D69: 993.52 | E69: 984.03 | F69: 971.62 | G69: 962.13 | H69: 1005.93 | I69: 1015.42 | J69: 1027.83 | K69: 1003 | L69: 981.1 | M69: 7.15116
A70: 60 | B70: BHARATFORG | C70: 564.8 | D70: 562.17 | E70: 554.63 | F70: 544.47 | G70: 536.93 | H70: 572.33 | I70: 579.87 | J70: 590.03 | K70: 569.7 | L70: 552 | M70: 15.64823
A71: 61 | B71: BHARTIARTL | C71: 289 | D71: 290.97 | E71: 285.03 | F71: 281.07 | G71: 275.13 | H71: 294.93 | I71: 300.87 | J71: 304.83 | K71: 296.9 | L71: 287 | M71: 85.61269
A72: 62 | B72: BHEL | C72: 70.25 | D72: 69.95 | E72: 68.40 | F72: 66.55 | G72: 65.00 | H72: 71.80 | I72: 73.35 | J72: 75.20 | K72: 71.5 | L72: 68.1 | M72: 78.21977
A73: 63 | B73: BHUSANSTL | C73: 27.55 | D73: 28.57 | E73: 26.23 | F73: 24.92 | G73: 22.58 | H73: 29.88 | I73: 32.22 | J73: 33.53 | K73: 30.9 | L73: 27.25 | M73: 13.99313
A74: 64 | B74: BIOCON | C74: 587.15 | D74: 591.30 | E74: 574.60 | F74: 562.05 | G74: 545.35 | H74: 603.85 | I74: 620.55 | J74: 633.10 | K74: 608 | L74: 578.75 | M74: 18.76212
A75: 65 | B75: BIRLACORPN | C75: 571.1 | D75: 582.72 | E75: 549.58 | F75: 528.07 | G75: 494.93 | H75: 604.23 | I75: 637.37 | J75: 658.88 | K75: 615.85 | L75: 561.2 | M75: 0.6041
A76: 66 | B76: BLISSGVS | C76: 164.45 | D76: 166.53 | E76: 158.47 | F76: 152.48 | G76: 144.42 | H76: 172.52 | I76: 180.58 | J76: 186.57 | K76: 174.6 | L76: 160.55 | M76: 1.57342
A77: 67 | B77: BLUEDART | C77: 2784.4 | D77: 2807.48 | E77: 2708.97 | F77: 2633.53 | G77: 2535.02 | H77: 2882.92 | I77: 2981.43 | J77: 3056.87 | K77: 2906 | L77: 2732.05 | M77: 0.03023
A78: 68 | B78: BLUESTARCO | C78: 549.9 | D78: 553.32 | E78: 539.78 | F78: 529.67 | G78: 516.13 | H78: 563.43 | I78: 576.97 | J78: 587.08 | K78: 566.85 | L78: 543.2 | M78: 0.29208
A79: 69 | B79: BOMDYEING | C79: 123.5 | D79: 123.50 | E79: 123.50 | F79: 123.50 | G79: 123.50 | H79: 123.50 | I79: 123.50 | J79: 123.50 | K79: 123.5 | L79: 123.5 | M79: 0.18072
A80: 70 | B80: BOSCHLTD | C80: 18444.45 | D80: 18386.15 | E80: 18133.40 | F80: 17822.35 | G80: 17569.60 | H80: 18697.20 | I80: 18949.95 | J80: 19261.00 | K80: 18638.9 | L80: 18075.1 | M80: 0.11141
A81: 71 | B81: BPCL | C81: 257.2 | D81: 260.17 | E81: 252.23 | F81: 247.27 | G81: 239.33 | H81: 265.13 | I81: 273.07 | J81: 278.03 | K81: 268.1 | L81: 255.2 | M81: 121.79626
A82: 72 | B82: BRFL | C82: 15.25 | D82: 15.30 | E82: 14.75 | F82: 14.25 | G82: 13.70 | H82: 15.80 | I82: 16.35 | J82: 16.85 | K82: 15.85 | L82: 14.8 | M82: 0.31981
A83: 73 | B83: BRIGADE | C83: 188.45 | D83: 187.92 | E83: 186.03 | F83: 183.62 | G83: 181.73 | H83: 190.33 | I83: 192.22 | J83: 194.63 | K83: 189.8 | L83: 185.5 | M83: 0.39539
A84: 74 | B84: BRITANNIA | C84: 5511.25 | D84: 5545.43 | E84: 5411.97 | F84: 5312.68 | G84: 5179.22 | H84: 5644.72 | I84: 5778.18 | J84: 5877.47 | K84: 5678.9 | L84: 5446.15 | M84: 3.19083
A85: 75 | B85: BSE | C85: 633.5 | D85: 641.45 | E85: 623.05 | F85: 612.60 | G85: 594.20 | H85: 651.90 | I85: 670.30 | J85: 680.75 | K85: 659.85 | L85: 631 | M85: 2.03029
A86: 77 | B86: CADILAHC | C86: 380.95 | D86: 379.47 | E86: 372.98 | F86: 365.02 | G86: 358.53 | H86: 387.43 | I86: 393.92 | J86: 401.88 | K86: 385.95 | L86: 371.5 | M86: 16.1772
A87: 78 | B87: CANBK | C87: 216.2 | D87: 215.77 | E87: 211.63 | F87: 207.07 | G87: 202.93 | H87: 220.33 | I87: 224.47 | J87: 229.03 | K87: 219.9 | L87: 211.2 | M87: 64.54245
A88: 79 | B88: CANFINHOME | C88: 234.25 | D88: 233.77 | E88: 220.53 | F88: 206.82 | G88: 193.58 | H88: 247.48 | I88: 260.72 | J88: 274.43 | K88: 247 | L88: 220.05 | M88: 27.66301
A89: 80 | B89: CAPF | C89: 451.05 | D89: 450.02 | E89: 438.28 | F89: 425.52 | G89: 413.78 | H89: 462.78 | I89: 474.52 | J89: 487.28 | K89: 461.75 | L89: 437.25 | M89: 7.2779
A90: 81 | B90: CAPLIPOINT | C90: 410.4 | D90: 412.20 | E90: 404.50 | F90: 398.60 | G90: 390.90 | H90: 418.10 | I90: 425.80 | J90: 431.70 | K90: 419.9 | L90: 406.3 | M90: 0.21898
A91: 82 | B91: CARBORUNIV | C91: 334.15 | D91: 333.53 | E91: 327.92 | F91: 321.68 | G91: 316.07 | H91: 339.77 | I91: 345.38 | J91: 351.62 | K91: 339.15 | L91: 327.3 | M91: 0.29499
A92: 83 | B92: CARERATING | C92: 1012.45 | D92: 1019.33 | E92: 993.12 | F92: 973.78 | G92: 947.57 | H92: 1038.67 | I92: 1064.88 | J92: 1084.22 | K92: 1045.55 | L92: 1000 | M92: 1.03529
A93: 84 | B93: CASTROLIND | C93: 137.5 | D93: 137.12 | E93: 135.38 | F93: 133.27 | G93: 131.53 | H93: 139.23 | I93: 140.97 | J93: 143.08 | K93: 138.85 | L93: 135 | M93: 9.051
A94: 85 | B94: CCL | C94: 245.2 | D94: 247.58 | E94: 242.47 | F94: 239.73 | G94: 234.62 | H94: 250.32 | I94: 255.43 | J94: 258.17 | K94: 252.7 | L94: 244.85 | M94: 0.33609
A95: 86 | B95: CDSL | C95: 230.05 | D95: 228.98 | E95: 226.97 | F95: 223.88 | G95: 221.87 | H95: 232.07 | I95: 234.08 | J95: 237.17 | K95: 231 | L95: 225.9 | M95: 1.24671
A96: 87 | B96: CEATLTD | C96: 1057.65 | D96: 1065.18 | E96: 1035.32 | F96: 1012.98 | G96: 983.12 | H96: 1087.52 | I96: 1117.38 | J96: 1139.72 | K96: 1095.05 | L96: 1042.85 | M96: 6.69845
A97: 88 | B97: CENTRALBK | C97: 30.2 | D97: 30.58 | E97: 29.82 | F97: 29.43 | G97: 28.67 | H97: 30.97 | I97: 31.73 | J97: 32.12 | K97: 31.35 | L97: 30.2 | M97: 4.71981
A98: 89 | B98: CENTURYPLY | C98: 159.35 | D98: 158.95 | E98: 155.75 | F98: 152.15 | G98: 148.95 | H98: 162.55 | I98: 165.75 | J98: 169.35 | K98: 162.15 | L98: 155.35 | M98: 3.32546
A99: 90 | B99: CENTURYTEX | C99: 738.35 | D99: 740.00 | E99: 719.90 | F99: 701.45 | G99: 681.35 | H99: 758.45 | I99: 778.55 | J99: 797.00 | K99: 760.1 | L99: 721.55 | M99: 6.35939
A100: 91 | B100: CERA | C100: 2459.05 | D100: 2459.15 | E100: 2444.65 | F100: 2430.25 | G100: 2415.75 | H100: 2473.55 | I100: 2488.05 | J100: 2502.45 | K100: 2473.65 | L100: 2444.75 | M100: 0.01995
A101: 92 | B101: CGPOWER | C101: 40.65 | D101: 40.85 | E101: 39.50 | F101: 38.35 | G101: 37.00 | H101: 42.00 | I101: 43.35 | J101: 44.50 | K101: 42.2 | L101: 39.7 | M101: 21.49162
A102: 93 | B102: CHAMBLFERT | C102: 137.45 | D102: 137.12 | E102: 135.73 | F102: 134.02 | G102: 132.63 | H102: 138.83 | I102: 140.22 | J102: 141.93 | K102: 138.5 | L102: 135.4 | M102: 9.68077
A103: 94 | B103: CHENNPETRO | C103: 225.95 | D103: 226.80 | E103: 219.80 | F103: 213.65 | G103: 206.65 | H103: 232.95 | I103: 239.95 | J103: 246.10 | K103: 233.8 | L103: 220.65 | M103: 8.66556
A104: 95 | B104: CHOLAFIN | C104: 1064.55 | D104: 1067.07 | E104: 1037.13 | F104: 1009.72 | G104: 979.78 | H104: 1094.48 | I104: 1124.42 | J104: 1151.83 | K104: 1097 | L104: 1039.65 | M104: 7.8076
A105: 96 | B105: CIPLA | C105: 639.35 | D105: 635.90 | E105: 628.70 | F105: 618.05 | G105: 610.85 | H105: 646.55 | I105: 653.75 | J105: 664.40 | K105: 643.1 | L105: 625.25 | M105: 15.35781
A106: 97 | B106: COALINDIA | C106: 273.95 | D106: 273.38 | E106: 269.07 | F106: 264.18 | G106: 259.87 | H106: 278.27 | I106: 282.58 | J106: 287.47 | K106: 277.7 | L106: 268.5 | M106: 43.36163
A107: 98 | B107: COCHINSHIP | C107: 358.45 | D107: 361.45 | E107: 353.05 | F107: 347.65 | G107: 339.25 | H107: 366.85 | I107: 375.25 | J107: 380.65 | K107: 369.85 | L107: 356.05 | M107: 0.95209
A108: 99 | B108: COFFEEDAY | C108: 249.55 | D108: 251.03 | E108: 243.77 | F108: 237.98 | G108: 230.72 | H108: 256.82 | I108: 264.08 | J108: 269.87 | K108: 258.3 | L108: 245.25 | M108: 2.06146
A109: 100 | B109: COLPAL | C109: 1049.75 | D109: 1040.15 | E109: 1027.90 | F109: 1006.05 | G109: 993.80 | H109: 1062.00 | I109: 1074.25 | J109: 1096.10 | K109: 1052.4 | L109: 1018.3 | M109: 3.35911
A110: 101 | B110: CONCOR | C110: 598.45 | D110: 591.47 | E110: 568.23 | F110: 538.02 | G110: 514.78 | H110: 621.68 | I110: 644.92 | J110: 675.13 | K110: 614.7 | L110: 561.25 | M110: 14.87508
A111: 102 | B111: COROMANDEL | C111: 365.05 | D111: 368.12 | E111: 357.93 | F111: 350.82 | G111: 340.63 | H111: 375.23 | I111: 385.42 | J111: 392.53 | K111: 378.3 | L111: 361 | M111: 1.02709
A112: 103 | B112: COX&KINGS | C112: 177.9 | D112: 176.70 | E112: 173.40 | F112: 168.90 | G112: 165.60 | H112: 181.20 | I112: 184.50 | J112: 189.00 | K112: 180 | L112: 172.2 | M112: 1.11745
A113: 104 | B113: CRISIL | C113: 1612.6 | D113: 1612.47 | E113: 1600.13 | F113: 1587.67 | G113: 1575.33 | H113: 1624.93 | I113: 1637.27 | J113: 1649.73 | K113: 1624.8 | L113: 1600 | M113: 0.08049
A114: 105 | B114: CROMPTON | C114: 202.35 | D114: 203.50 | E114: 198.85 | F114: 195.35 | G114: 190.70 | H114: 207.00 | I114: 211.65 | J114: 215.15 | K114: 208.15 | L114: 200 | M114: 3.32771
A115: 106 | B115: CUB | C115: 167.3 | D115: 166.40 | E115: 162.30 | F115: 157.30 | G115: 153.20 | H115: 171.40 | I115: 175.50 | J115: 180.50 | K115: 170.5 | L115: 161.4 | M115: 10.91872
A116: 107 | B116: CUMMINSIND | C116: 665.85 | D116: 662.77 | E116: 648.33 | F116: 630.82 | G116: 616.38 | H116: 680.28 | I116: 694.72 | J116: 712.23 | K116: 677.2 | L116: 645.25 | M116: 3.28557
A117: 108 | B117: CYIENT | C117: 677 | D117: 688.67 | E117: 659.33 | F117: 641.67 | G117: 612.33 | H117: 706.33 | I117: 735.67 | J117: 753.33 | K117: 718 | L117: 671 | M117: 1.17127
A118: 109 | B118: DABUR | C118: 392.4 | D118: 395.63 | E118: 380.57 | F118: 368.73 | G118: 353.67 | H118: 407.47 | I118: 422.53 | J118: 434.37 | K118: 410.7 | L118: 383.8 | M118: 57.37986
A119: 110 | B119: DBCORP | C119: 194 | D119: 197.00 | E119: 189.00 | F119: 184.00 | G119: 176.00 | H119: 202.00 | I119: 210.00 | J119: 215.00 | K119: 205 | L119: 192 | M119: 2.01237
A120: 111 | B120: DBL | C120: 512.65 | D120: 526.95 | E120: 485.80 | F120: 458.95 | G120: 417.80 | H120: 553.80 | I120: 594.95 | J120: 621.80 | K120: 568.1 | L120: 500.1 | M120: 4.49399
A121: 112 | B121: DBREALTY | C121: 19.6 | D121: 19.67 | E121: 18.98 | F121: 18.37 | G121: 17.68 | H121: 20.28 | I121: 20.97 | J121: 21.58 | K121: 20.35 | L121: 19.05 | M121: 2.154
A122: 113 | B122: DCAL | C122: 215.1 | D122: 217.63 | E122: 207.22 | F122: 199.33 | G122: 188.92 | H122: 225.52 | I122: 235.93 | J122: 243.82 | K122: 228.05 | L122: 209.75 | M122: 2.4429
A123: 114 | B123: DCBBANK | C123: 143.3 | D123: 143.08 | E123: 140.22 | F123: 137.13 | G123: 134.27 | H123: 146.17 | I123: 149.03 | J123: 152.12 | K123: 145.95 | L123: 140 | M123: 13.04821
A124: 115 | B124: DCMSHRIRAM | C124: 321.25 | D124: 326.22 | E124: 310.43 | F124: 299.62 | G124: 283.83 | H124: 337.03 | I124: 352.82 | J124: 363.63 | K124: 342 | L124: 315.4 | M124: 3.19207
A125: 116 | B125: DEEPAKFERT | C125: 184.7 | D125: 186.52 | E125: 181.38 | F125: 178.07 | G125: 172.93 | H125: 189.83 | I125: 194.97 | J125: 198.28 | K125: 191.65 | L125: 183.2 | M125: 0.7385
A126: 117 | B126: DELTACORP | C126: 208.8 | D126: 208.93 | E126: 206.27 | F126: 203.73 | G126: 201.07 | H126: 211.47 | I126: 214.13 | J126: 216.67 | K126: 211.6 | L126: 206.4 | M126: 11.19648
A127: 118 | B127: DEN | C127: 64 | D127: 63.57 | E127: 61.58 | F127: 59.17 | G127: 57.18 | H127: 65.98 | I127: 67.97 | J127: 70.38 | K127: 65.55 | L127: 61.15 | M127: 2.49814
A128: 119 | B128: DENABANK | C128: 14.6 | D128: 14.68 | E128: 14.47 | F128: 14.33 | G128: 14.12 | H128: 14.82 | I128: 15.03 | J128: 15.17 | K128: 14.9 | L128: 14.55 | M128: 5.18406
A129: 120 | B129: DHFL | C129: 245.05 | D129: 231.97 | E129: 206.48 | F129: 167.92 | G129: 142.43 | H129: 270.53 | I129: 296.02 | J129: 334.58 | K129: 257.45 | L129: 193.4 | M129: 556.50755
A130: 121 | B130: DISHTV | C130: 54.1 | D130: 53.75 | E130: 52.40 | F130: 50.70 | G130: 49.35 | H130: 55.45 | I130: 56.80 | J130: 58.50 | K130: 55.1 | L130: 52.05 | M130: 48.23979
A131: 122 | B131: DIVISLAB | C131: 1248.05 | D131: 1260.23 | E131: 1223.27 | F131: 1198.48 | G131: 1161.52 | H131: 1285.02 | I131: 1321.98 | J131: 1346.77 | K131: 1297.2 | L131: 1235.45 | M131: 12.06742
A132: 123 | B132: DIXON | C132: 2347 | D132: 2368.12 | E132: 2318.88 | F132: 2290.77 | G132: 2241.53 | H132: 2396.23 | I132: 2445.47 | J132: 2473.58 | K132: 2417.35 | L132: 2340 | M132: 0.06081
A133: 124 | B133: DLF | C133: 153.5 | D133: 153.90 | E133: 152.00 | F133: 150.50 | G133: 148.60 | H133: 155.40 | I133: 157.30 | J133: 158.80 | K133: 155.8 | L133: 152.4 | M133: 93.31488
A134: 125 | B134: DMART | C134: 1372.5 | D134: 1346.87 | E134: 1308.73 | F134: 1244.97 | G134: 1206.83 | H134: 1410.63 | I134: 1448.77 | J134: 1512.53 | K134: 1385 | L134: 1283.1 | M134: 6.86111
A135: 126 | B135: DREDGECORP | C135: 288.4 | D135: 293.87 | E135: 280.83 | F135: 273.27 | G135: 260.23 | H135: 301.43 | I135: 314.47 | J135: 322.03 | K135: 306.9 | L135: 286.3 | M135: 1.2207
A136: 127 | B136: DRREDDY | C136: 2454.15 | D136: 2424.37 | E136: 2371.73 | F136: 2289.32 | G136: 2236.68 | H136: 2506.78 | I136: 2559.42 | J136: 2641.83 | K136: 2477 | L136: 2341.95 | M136: 11.27674
A137: 128 | B137: ECLERX | C137: 1053.75 | D137: 1050.27 | E137: 1040.48 | F137: 1027.22 | G137: 1017.43 | H137: 1063.53 | I137: 1073.32 | J137: 1086.58 | K137: 1060.05 | L137: 1037 | M137: 0.05633
A138: 129 | B138: EDELWEISS | C138: 148.95 | D138: 152.08 | E138: 141.87 | F138: 134.78 | G138: 124.57 | H138: 159.17 | I138: 169.38 | J138: 176.47 | K138: 162.3 | L138: 145 | M138: 77.18256
A139: 130 | B139: EICHERMOT | C139: 21085.7 | D139: 21356.05 | E139: 20530.95 | F139: 19976.20 | G139: 19151.10 | H139: 21910.80 | I139: 22735.90 | J139: 23290.65 | K139: 22181.15 | L139: 20801.3 | M139: 1.72743
A140: 131 | B140: EIDPARRY | C140: 189.45 | D140: 188.83 | E140: 184.42 | F140: 179.38 | G140: 174.97 | H140: 193.87 | I140: 198.28 | J140: 203.32 | K140: 193.25 | L140: 183.8 | M140: 4.34784
A141: 132 | B141: EIHOTEL | C141: 142.75 | D141: 142.82 | E141: 140.23 | F141: 137.72 | G141: 135.13 | H141: 145.33 | I141: 147.92 | J141: 150.43 | K141: 145.4 | L141: 140.3 | M141: 0.40895
A142: 133 | B142: EMAMILTD | C142: 422.35 | D142: 426.10 | E142: 396.20 | F142: 370.05 | G142: 340.15 | H142: 452.25 | I142: 482.15 | J142: 508.30 | K142: 456 | L142: 399.95 | M142: 12.63237
A143: 134 | B143: ENDURANCE | C143: 1189.1 | D143: 1192.75 | E143: 1165.50 | F143: 1141.90 | G143: 1114.65 | H143: 1216.35 | I143: 1243.60 | J143: 1267.20 | K143: 1220 | L143: 1169.15 | M143: 0.39137
A144: 135 | B144: ENGINERSIN | C144: 102.1 | D144: 103.23 | E144: 99.02 | F144: 95.93 | G144: 91.72 | H144: 106.32 | I144: 110.53 | J144: 113.62 | K144: 107.45 | L144: 100.15 | M144: 34.41146
A145: 136 | B145: EQUITAS | C145: 114.1 | D145: 112.65 | E145: 109.50 | F145: 104.90 | G145: 101.75 | H145: 117.25 | I145: 120.40 | J145: 125.00 | K145: 115.8 | L145: 108.05 | M145: 26.56996
A146: 137 | B146: ERIS | C146: 671.35 | D146: 672.42 | E146: 660.93 | F146: 650.52 | G146: 639.03 | H146: 682.83 | I146: 694.32 | J146: 704.73 | K146: 683.9 | L146: 662 | M146: 1.6236
A147: 138 | B147: EROSMEDIA | C147: 75.65 | D147: 75.68 | E147: 74.17 | F147: 72.68 | G147: 71.17 | H147: 77.17 | I147: 78.68 | J147: 80.17 | K147: 77.2 | L147: 74.2 | M147: 3.41602
A148: 139 | B148: ESCORTS | C148: 567.8 | D148: 564.65 | E148: 551.60 | F148: 535.40 | G148: 522.35 | H148: 580.85 | I148: 593.90 | J148: 610.10 | K148: 577.7 | L148: 548.45 | M148: 18.13366
A149: 140 | B149: EVEREADY | C149: 192.15 | D149: 191.70 | E149: 186.50 | F149: 180.85 | G149: 175.65 | H149: 197.35 | I149: 202.55 | J149: 208.20 | K149: 196.9 | L149: 186.05 | M149: 0.37223
A150: 141 | B150: EXIDEIND | C150: 242.45 | D150: 245.32 | E150: 237.83 | F150: 233.22 | G150: 225.73 | H150: 249.93 | I150: 257.42 | J150: 262.03 | K150: 252.8 | L150: 240.7 | M150: 20.5216
A151: 142 | B151: FCONSUMER | C151: 35.55 | D151: 36.00 | E151: 34.55 | F151: 33.55 | G151: 32.10 | H151: 37.00 | I151: 38.45 | J151: 39.45 | K151: 37.45 | L151: 35 | M151: 31.3305
A152: 143 | B152: FEDERALBNK | C152: 70.75 | D152: 70.18 | E152: 69.07 | F152: 67.38 | G152: 66.27 | H152: 71.87 | I152: 72.98 | J152: 74.67 | K152: 71.3 | L152: 68.5 | M152: 160.73326
A153: 144 | B153: FINCABLES | C153: 463.65 | D153: 460.87 | E153: 452.78 | F153: 441.92 | G153: 433.83 | H153: 471.73 | I153: 479.82 | J153: 490.68 | K153: 468.95 | L153: 450 | M153: 0.52666
A154: 145 | B154: FINPIPE | C154: 501.8 | D154: 506.70 | E154: 494.40 | F154: 487.00 | G154: 474.70 | H154: 514.10 | I154: 526.40 | J154: 533.80 | K154: 519 | L154: 499.3 | M154: 0.52775
A155: 146 | B155: FLFL | C155: 391.6 | D155: 389.70 | E155: 381.40 | F155: 371.20 | G155: 362.90 | H155: 399.90 | I155: 408.20 | J155: 418.40 | K155: 398 | L155: 379.5 | M155: 0.17294
A156: 147 | B156: FSL | C156: 57.75 | D156: 56.93 | E156: 55.32 | F156: 52.88 | G156: 51.27 | H156: 59.37 | I156: 60.98 | J156: 63.42 | K156: 58.55 | L156: 54.5 | M156: 35.74325
A157: 148 | B157: GAIL | C157: 333.5 | D157: 337.10 | E157: 327.80 | F157: 322.10 | G157: 312.80 | H157: 342.80 | I157: 352.10 | J157: 357.80 | K157: 346.4 | L157: 331.4 | M157: 52.50619
A158: 149 | B158: GATI | C158: 72.65 | D158: 72.57 | E158: 70.38 | F158: 68.12 | G158: 65.93 | H158: 74.83 | I158: 77.02 | J158: 79.28 | K158: 74.75 | L158: 70.3 | M158: 6.32438
A159: 150 | B159: GDL | C159: 148.25 | D159: 150.37 | E159: 138.73 | F159: 129.22 | G159: 117.58 | H159: 159.88 | I159: 171.52 | J159: 181.03 | K159: 162 | L159: 140.85 | M159: 1.15399
A160: 151 | B160: GEPIL | C160: 727.05 | D160: 722.07 | E160: 710.13 | F160: 693.22 | G160: 681.28 | H160: 738.98 | I160: 750.92 | J160: 767.83 | K160: 734 | L160: 705.15 | M160: 0.36697
A161: 152 | B161: GESHIP | C161: 298.55 | D161: 293.43 | E161: 285.87 | F161: 273.18 | G161: 265.62 | H161: 306.12 | I161: 313.68 | J161: 326.37 | K161: 301 | L161: 280.75 | M161: 0.53394
A162: 153 | B162: GET&D | C162: 267.6 | D162: 264.30 | E162: 253.80 | F162: 240.00 | G162: 229.50 | H162: 278.10 | I162: 288.60 | J162: 302.40 | K162: 274.8 | L162: 250.5 | M162: 0.22965
A163: 154 | B163: GHCL | C163: 205.65 | D163: 207.80 | E163: 201.05 | F163: 196.45 | G163: 189.70 | H163: 212.40 | I163: 219.15 | J163: 223.75 | K163: 214.55 | L163: 203.2 | M163: 0.47545
A164: 155 | B164: GICRE | C164: 317.6 | D164: 317.53 | E164: 314.07 | F164: 310.53 | G164: 307.07 | H164: 321.07 | I164: 324.53 | J164: 328.07 | K164: 321 | L164: 314 | M164: 1.82095
A165: 156 | B165: GILLETTE | C165: 6406.2 | D165: 6404.97 | E165: 6327.28 | F165: 6248.37 | G165: 6170.68 | H165: 6483.88 | I165: 6561.57 | J165: 6640.48 | K165: 6482.65 | L165: 6326.05 | M165: 0.0412
A166: 157 | B166: GLAXO | C166: 1347.4 | D166: 1340.47 | E166: 1316.93 | F166: 1286.47 | G166: 1262.93 | H166: 1370.93 | I166: 1394.47 | J166: 1424.93 | K166: 1364 | L166: 1310 | M166: 0.21911
A167: 158 | B167: GLENMARK | C167: 590.15 | D167: 592.12 | E167: 579.63 | F167: 569.12 | G167: 556.63 | H167: 602.63 | I167: 615.12 | J167: 625.63 | K167: 604.6 | L167: 581.6 | M167: 7.33179
A168: 159 | B168: GMDCLTD | C168: 84.45 | D168: 84.98 | E168: 83.47 | F168: 82.48 | G168: 80.97 | H168: 85.97 | I168: 87.48 | J168: 88.47 | K168: 86.5 | L168: 84 | M168: 2.33302
A169: 160 | B169: GMRINFRA | C169: 15.7 | D169: 15.80 | E169: 15.40 | F169: 15.10 | G169: 14.70 | H169: 16.10 | I169: 16.50 | J169: 16.80 | K169: 16.2 | L169: 15.5 | M169: 223.45808
A170: 161 | B170: GNFC | C170: 321.9 | D170: 323.15 | E170: 316.95 | F170: 312.00 | G170: 305.80 | H170: 328.10 | I170: 334.30 | J170: 339.25 | K170: 329.35 | L170: 318.2 | M170: 3.90707
A171: 162 | B171: GODFRYPHLP | C171: 681.3 | D171: 678.70 | E171: 663.60 | F171: 645.90 | G171: 630.80 | H171: 696.40 | I171: 711.50 | J171: 729.20 | K171: 693.8 | L171: 661 | M171: 1.55999
A172: 163 | B172: GODREJAGRO | C172: 505.3 | D172: 504.45 | E172: 490.95 | F172: 476.60 | G172: 463.10 | H172: 518.80 | I172: 532.30 | J172: 546.65 | K172: 517.95 | L172: 490.1 | M172: 0.71538
A173: 164 | B173: GODREJCP | C173: 669.1 | D173: 672.62 | E173: 640.23 | F173: 611.37 | G173: 578.98 | H173: 701.48 | I173: 733.87 | J173: 762.73 | K173: 705 | L173: 643.75 | M173: 26.86369
A174: 165 | B174: GODREJIND | C174: 451.6 | D174: 466.82 | E174: 433.78 | F174: 415.97 | G174: 382.93 | H174: 484.63 | I174: 517.67 | J174: 535.48 | K174: 499.85 | L174: 449 | M174: 8.23741
A175: 166 | B175: GODREJPROP | C175: 467.4 | D175: 475.83 | E175: 451.97 | F175: 436.53 | G175: 412.67 | H175: 491.27 | I175: 515.13 | J175: 530.57 | K175: 499.7 | L175: 460.4 | M175: 5.71485
A176: 167 | B176: GPPL | C176: 100.05 | D176: 100.78 | E176: 99.02 | F176: 97.98 | G176: 96.22 | H176: 101.82 | I176: 103.58 | J176: 104.62 | K176: 102.55 | L176: 99.75 | M176: 1.16183
A177: 168 | B177: GRANULES | C177: 91.7 | D177: 91.88 | E177: 89.32 | F177: 86.93 | G177: 84.37 | H177: 94.27 | I177: 96.83 | J177: 99.22 | K177: 94.45 | L177: 89.5 | M177: 40.72006
A178: 169 | B178: GRAPHITE | C178: 790.4 | D178: 793.45 | E178: 778.50 | F178: 766.60 | G178: 751.65 | H178: 805.35 | I178: 820.30 | J178: 832.20 | K178: 808.4 | L178: 781.55 | M178: 4.49647
A179: 170 | B179: GRASIM | C179: 902.05 | D179: 903.90 | E179: 873.90 | F179: 845.75 | G179: 815.75 | H179: 932.05 | I179: 962.05 | J179: 990.20 | K179: 933.9 | L179: 875.75 | M179: 15.00498
A180: 171 | B180: GREAVESCOT | C180: 125.95 | D180: 125.08 | E180: 122.37 | F180: 118.78 | G180: 116.07 | H180: 128.67 | I180: 131.38 | J180: 134.97 | K180: 127.8 | L180: 121.5 | M180: 2.27918
A181: 172 | B181: GREENPLY | C181: 141.05 | D181: 140.83 | E181: 137.67 | F181: 134.28 | G181: 131.12 | H181: 144.22 | I181: 147.38 | J181: 150.77 | K181: 144 | L181: 137.45 | M181: 0.73274
A182: 173 | B182: GRUH | C182: 265.5 | D182: 273.58 | E182: 255.17 | F182: 244.83 | G182: 226.42 | H182: 283.92 | I182: 302.33 | J182: 312.67 | K182: 292 | L182: 263.25 | M182: 4.95631
A183: 174 | B183: GSFC | C183: 88.5 | D183: 88.50 | E183: 86.50 | F183: 84.50 | G183: 82.50 | H183: 90.50 | I183: 92.50 | J183: 94.50 | K183: 90.5 | L183: 86.5 | M183: 13.72285
A184: 175 | B184: GSKCONS | C184: 6666.55 | D184: 6601.17 | E184: 6467.38 | F184: 6268.22 | G184: 6134.43 | H184: 6800.33 | I184: 6934.12 | J184: 7133.28 | K184: 6734.95 | L184: 6402 | M184: 0.10392
A185: 176 | B185: GSPL | C185: 173 | D185: 172.53 | E185: 170.57 | F185: 168.13 | G185: 166.17 | H185: 174.97 | I185: 176.93 | J185: 179.37 | K185: 174.5 | L185: 170.1 | M185: 8.17293
A186: 177 | B186: GUJALKALI | C186: 579.8 | D186: 586.45 | E186: 570.90 | F186: 562.00 | G186: 546.45 | H186: 595.35 | I186: 610.90 | J186: 619.80 | K186: 602 | L186: 577.55 | M186: 0.36655
A187: 178 | B187: GUJFLUORO | C187: 770.15 | D187: 773.83 | E187: 762.67 | F187: 755.18 | G187: 744.02 | H187: 781.32 | I187: 792.48 | J187: 799.97 | K187: 785 | L187: 766.35 | M187: 0.14943
A188: 179 | B188: GUJGASLTD | C188: 601.3 | D188: 605.03 | E188: 594.07 | F188: 586.83 | G188: 575.87 | H188: 612.27 | I188: 623.23 | J188: 630.47 | K188: 616 | L188: 597.8 | M188: 0.07603
A189: 180 | B189: GULFOILLUB | C189: 722.85 | D189: 732.02 | E189: 712.08 | F189: 701.32 | G189: 681.38 | H189: 742.78 | I189: 762.72 | J189: 773.48 | K189: 751.95 | L189: 721.25 | M189: 0.07286
A190: 181 | B190: GVKPIL | C190: 6.95 | D190: 7.02 | E190: 6.73 | F190: 6.52 | G190: 6.23 | H190: 7.23 | I190: 7.52 | J190: 7.73 | K190: 7.3 | L190: 6.8 | M190: 19.24172
A191: 182 | B191: HATHWAY | C191: 25.05 | D191: 25.20 | E191: 23.95 | F191: 22.85 | G191: 21.60 | H191: 26.30 | I191: 27.55 | J191: 28.65 | K191: 26.45 | L191: 24.1 | M191: 11.4081
A192: 183 | B192: HATSUN | C192: 604.15 | D192: 611.63 | E192: 587.52 | F192: 570.88 | G192: 546.77 | H192: 628.27 | I192: 652.38 | J192: 669.02 | K192: 635.75 | L192: 595 | M192: 0.08039
A193: 184 | B193: HAVELLS | C193: 563.85 | D193: 566.37 | E193: 550.73 | F193: 537.62 | G193: 521.98 | H193: 579.48 | I193: 595.12 | J193: 608.23 | K193: 582 | L193: 553.25 | M193: 10.88023
A194: 185 | B194: HCC | C194: 11.25 | D194: 11.22 | E194: 10.93 | F194: 10.62 | G194: 10.33 | H194: 11.53 | I194: 11.82 | J194: 12.13 | K194: 11.5 | L194: 10.9 | M194: 55.6007
A195: 186 | B195: HCL-INSYS | C195: 22.05 | D195: 22.37 | E195: 21.33 | F195: 20.62 | G195: 19.58 | H195: 23.08 | I195: 24.12 | J195: 24.83 | K195: 23.4 | L195: 21.65 | M195: 9.02631
A196: 187 | B196: HCLTECH | C196: 1068.4 | D196: 1063.63 | E196: 1048.22 | F196: 1028.03 | G196: 1012.62 | H196: 1083.82 | I196: 1099.23 | J196: 1119.42 | K196: 1079.05 | L196: 1043.45 | M196: 13.47262
A197: 188 | B197: HDFC | C197: 1712.75 | D197: 1706.12 | E197: 1678.23 | F197: 1643.72 | G197: 1615.83 | H197: 1740.63 | I197: 1768.52 | J197: 1803.03 | K197: 1734 | L197: 1671.6 | M197: 30.8273
A198: 189 | B198: HDFCBANK | C198: 1940.6 | D198: 1945.20 | E198: 1925.40 | F198: 1910.20 | G198: 1890.40 | H198: 1960.40 | I198: 1980.20 | J198: 1995.40 | K198: 1965 | L198: 1930 | M198: 31.14841
A199: 190 | B199: HDIL | C199: 19.05 | D199: 19.02 | E199: 18.63 | F199: 18.22 | G199: 17.83 | H199: 19.43 | I199: 19.82 | J199: 20.23 | K199: 19.4 | L199: 18.6 | M199: 30.61241
A200: 191 | B200: HEG | C200: 3238.15 | D200: 3224.37 | E200: 3153.78 | F200: 3069.42 | G200: 2998.83 | H200: 3308.73 | I200: 3379.32 | J200: 3463.68 | K200: 3294.95 | L200: 3140 | M200: 1.95304
A201: 192 | B201: HEIDELBERG | C201: 139 | D201: 138.25 | E201: 136.70 | F201: 134.40 | G201: 132.85 | H201: 140.55 | I201: 142.10 | J201: 144.40 | K201: 139.8 | L201: 135.95 | M201: 0.81626
A202: 193 | B202: HERITGFOOD | C202: 488.2 | D202: 483.10 | E202: 456.20 | F202: 424.20 | G202: 397.30 | H202: 515.10 | I202: 542.00 | J202: 574.00 | K202: 510 | L202: 451.1 | M202: 0.22536
A203: 194 | B203: HEROMOTOCO | C203: 2891.75 | D203: 2897.93 | E203: 2863.97 | F203: 2836.18 | G203: 2802.22 | H203: 2925.72 | I203: 2959.68 | J203: 2987.47 | K203: 2931.9 | L203: 2870.15 | M203: 6.99147
A204: 195 | B204: HEXAWARE | C204: 390.9 | D204: 393.45 | E204: 377.45 | F204: 364.00 | G204: 348.00 | H204: 406.90 | I204: 422.90 | J204: 436.35 | K204: 409.45 | L204: 380 | M204: 21.44938
A205: 196 | B205: HFCL | C205: 18.8 | D205: 18.92 | E205: 18.38 | F205: 17.97 | G205: 17.43 | H205: 19.33 | I205: 19.87 | J205: 20.28 | K205: 19.45 | L205: 18.5 | M205: 31.96579
A206: 197 | B206: HIMATSEIDE | C206: 240.45 | D206: 236.37 | E206: 229.18 | F206: 217.92 | G206: 210.73 | H206: 247.63 | I206: 254.82 | J206: 266.08 | K206: 243.55 | L206: 225.1 | M206: 0.48782
... 304 more rows

Sheet Bulk Deals
E6: Back To Main Page
A7: Subject : | B7: BULK DEAL | D7: =Main!B10 -> 2018-10-10
A9: Date | B9: Scrip code | C9: Scrip Name | D9: Client Name | E9: Buy / Sell | F9: Quantity Traded | G9: Trade Price / Wt.Avg.trade price | H9: Exchange
A10: 2018-10-09 | B10: 540024 | C10: ASHARI | D10: ARCADIA SHARE & STOCK BROKERS PVT. LTD | E10: BUY | F10: 150,000 | G10: 28.97 | H10: BSE
A11: 2018-10-09 | B11: 540024 | C11: ASHARI | D11: VIJAY KUMAR AGGARWAL | E11: SELL | F11: 150,000 | G11: 29.02 | H11: BSE
A12: 2018-10-09 | B12: 541865 | C12: ASPL | D12: VIBRANT INVESTMENTS | E12: SELL | F12: 40,000 | G12: 27 | H12: BSE
A13: 2018-10-09 | B13: 541865 | C13: ASPL | D13: SAPNA MAHESH RUPANI | E13: BUY | F13: 40,000 | G13: 27 | H13: BSE
A14: 2018-10-09 | B14: 539009 | C14: GBLIL | D14: ROHNIL BORADIA | E14: BUY | F14: 26,394 | G14: 42.75 | H14: BSE
A15: 2018-10-09 | B15: 535667 | C15: IFINSEC | D15: RUDRAVEERYA DEVELOPERS LIMITED | E15: BUY | F15: 138,037 | G15: 54.87 | H15: BSE
A16: 2018-10-09 | B16: 531512 | C16: ORIENTTR | D16: DEEPA ANEJA | E16: SELL | F16: 80,000 | G16: 7.83 | H16: BSE
A17: 2018-10-09 | B17: 540715 | C17: SAGAR | D17: UNICON TIE UP PRIVATE LIMITED | E17: SELL | F17: 270,000 | G17: 16.5 | H17: BSE
A18: 2018-10-09 | B18: 540715 | C18: SAGAR | D18: SHERWOOD SECURITIES PVT LTD | E18: BUY | F18: 285,000 | G18: 16.54 | H18: BSE
A19: 2018-10-09 | B19: 539520 | C19: SHAILJA | D19: NEERAJ KUMAR SINGH | E19: SELL | F19: 16,762 | G19: 20.64 | H19: BSE
A20: 2018-10-09 | B20: 541967 | C20: SKYGOLD | D20: JHAVERI TRADING AND INVESTMENT PVT LTD | E20: BUY | F20: 33,600 | G20: 180.95 | H20: BSE
A21: 2018-10-09 | B21: 541700 | C21: TCNSBRANDS | D21: FIDELITY FUNDS - EMERGING MARKETS FUND | E21: BUY | F21: 350,000 | G21: 590 | H21: BSE
A22: 2018-10-09 | B22: AKSHOPTFBR | C22: Aksh Optifibre Limited | D22: ASHIKA GLOBAL SECURITIES PRIVATE LIMITED | E22: BUY | F22: 1,053,509 | G22: 23 | H22: NSE
A23: 2018-10-09 | B23: DHFL | C23: Dewan Housing Fin Corp | D23: ALPHAGREP COMMODITIES PRIVATE LIMITED | E23: BUY | F23: 2,059,375 | G23: 226.66 | H23: NSE
A24: 2018-10-09 | B24: DHFL | C24: Dewan Housing Fin Corp | D24: CROSSLAND TRADING CO | E24: BUY | F24: 1,758,436 | G24: 228.08 | H24: NSE
A25: 2018-10-09 | B25: DHFL | C25: Dewan Housing Fin Corp | D25: JASMINE CAPITAL INVESTMENTS PTE LTD | E25: BUY | F25: 3,685,000 | G25: 239.13 | H25: NSE
A26: 2018-10-09 | B26: DHFL | C26: Dewan Housing Fin Corp | D26: SHAASTRA SECURITIES TRADING PRIVATE LIMITED | E26: BUY | F26: 2,084,506 | G26: 219.32 | H26: NSE
A27: 2018-10-09 | B27: DHFL | C27: Dewan Housing Fin Corp | D27: SHARE INDIA SECURITIES LIMITED | E27: BUY | F27: 1,579,854 | G27: 226.98 | H27: NSE
A28: 2018-10-09 | B28: DHFL | C28: Dewan Housing Fin Corp | D28: VAIBHAV STOCK & DERIVATIVES BROKING PVT. LTD | E28: BUY | F28: 1,940,192 | G28: 230.44 | H28: NSE
A29: 2018-10-09 | B29: GOACARBON | C29: Goa Carbon Ltd | D29: N.K. SECURITIES | E29: BUY | F29: 59,924 | G29: 495.87 | H29: NSE
A30: 2018-10-09 | B30: GRETEX | C30: Gretex Industries Ltd. | D30: MEGHKUMAR MAHENDRAKUMAR SHAH | E30: BUY | F30: 30,000 | G30: 13.5 | H30: NSE
A31: 2018-10-09 | B31: GSS | C31: GSS Infotech Limited | D31: AGARWAL ARCHANA | E31: BUY | F31: 238,925 | G31: 96.35 | H31: NSE
A32: 2018-10-09 | B32: GSS | C32: GSS Infotech Limited | D32: NUPUR ANIL SHAH | E32: BUY | F32: 195,000 | G32: 95.44 | H32: NSE
A33: 2018-10-09 | B33: JETAIRWAYS | C33: Jet Airways (India) Ltd. | D33: ALPHAGREP SECURITIES PRIVATE LIMITED | E33: BUY | F33: 620,097 | G33: 175.11 | H33: NSE
A34: 2018-10-09 | B34: JETAIRWAYS | C34: Jet Airways (India) Ltd. | D34: SHAASTRA SECURITIES TRADING PRIVATE LIMITED | E34: BUY | F34: 738,604 | G34: 175.09 | H34: NSE
A35: 2018-10-09 | B35: JPASSOCIAT | C35: Jaiprakash Associates Lim | D35: SHAASTRA SECURITIES TRADING PRIVATE LIMITED | E35: BUY | F35: 12,278,620 | G35: 6.2 | H35: NSE
A36: 2018-10-09 | B36: JPASSOCIAT | C36: Jaiprakash Associates Lim | D36: SKYVEIL TRADE SOLUTIONS LLP | E36: BUY | F36: 14,278,374 | G36: 6.21 | H36: NSE
A37: 2018-10-09 | B37: JUSTDIAL | C37: Justdial Ltd. | D37: CROSSLAND TRADING CO | E37: BUY | F37: 501,935 | G37: 438.8 | H37: NSE
A38: 2018-10-09 | B38: JUSTDIAL | C38: Justdial Ltd. | D38: SHAASTRA SECURITIES TRADING PRIVATE LIMITED | E38: BUY | F38: 564,279 | G38: 439.97 | H38: NSE
A39: 2018-10-09 | B39: KSHITIJPOL | C39: Kshitij Polyline Limited | D39: KADAM NARESH RAMCHANDRA | E39: BUY | F39: 108,000 | G39: 34.69 | H39: NSE
A40: 2018-10-09 | B40: KSHITIJPOL | C40: Kshitij Polyline Limited | D40: PREETI YASHESH DEDHIA | E40: BUY | F40: 60,000 | G40: 34.31 | H40: NSE
A41: 2018-10-09 | B41: MUKTAARTS | C41: Mukta Arts Ltd | D41: NEON VINIMAY PRIVATE LIMITED | E41: BUY | F41: 153,500 | G41: 41.81 | H41: NSE
A42: 2018-10-09 | B42: PARIN | C42: Parin Furniture Limited | D42: GULSHAN KISHORECHAND BANSAL | E42: BUY | F42: 238,000 | G42: 63.91 | H42: NSE
A43: 2018-10-09 | B43: PARIN | C43: Parin Furniture Limited | D43: HARIYANI DHARMESH HARSHADRAY | E43: BUY | F43: 76,000 | G43: 63.98 | H43: NSE
A44: 2018-10-09 | B44: PARIN | C44: Parin Furniture Limited | D44: KEYA DHARMESH HARIYANI | E44: BUY | F44: 80,000 | G44: 64 | H44: NSE
A45: 2018-10-09 | B45: PARIN | C45: Parin Furniture Limited | D45: KISHORECHAND KAKARAM BANSAL | E45: BUY | F45: 112,000 | G45: 63.9 | H45: NSE
A46: 2018-10-09 | B46: PRIMESECU | C46: Prime Securities Limited | D46: GEETA CHETAN SHAH | E46: BUY | F46: 265,500 | G46: 31 | H46: NSE
A47: 2018-10-09 | B47: SANCO | C47: Sanco Industries Ltd. | D47: RAHUL MITTAL HUF | E47: BUY | F47: 91,039 | G47: 15.43 | H47: NSE
A48: 2018-10-09 | B48: AKSHOPTFBR | C48: Aksh Optifibre Limited | D48: IVORY CONSULTANTS PVT LTD. | E48: SELL | F48: 1,028,000 | G48: 23 | H48: NSE
A49: 2018-10-09 | B49: DHFL | C49: Dewan Housing Fin Corp | D49: ALPHAGREP COMMODITIES PRIVATE LIMITED | E49: SELL | F49: 2,059,552 | G49: 227.22 | H49: NSE
A50: 2018-10-09 | B50: DHFL | C50: Dewan Housing Fin Corp | D50: CROSSLAND TRADING CO | E50: SELL | F50: 1,758,436 | G50: 228.2 | H50: NSE
A51: 2018-10-09 | B51: DHFL | C51: Dewan Housing Fin Corp | D51: SHAASTRA SECURITIES TRADING PRIVATE LIMITED | E51: SELL | F51: 2,084,506 | G51: 219.23 | H51: NSE
A52: 2018-10-09 | B52: DHFL | C52: Dewan Housing Fin Corp | D52: SHARE INDIA SECURITIES LIMITED | E52: SELL | F52: 1,635,354 | G52: 228.52 | H52: NSE
A53: 2018-10-09 | B53: DHFL | C53: Dewan Housing Fin Corp | D53: VAIBHAV STOCK & DERIVATIVES BROKING PVT. LTD | E53: SELL | F53: 1,940,192 | G53: 230.54 | H53: NSE
A54: 2018-10-09 | B54: GOACARBON | C54: Goa Carbon Ltd | D54: N.K. SECURITIES | E54: SELL | F54: 59,962 | G54: 496.36 | H54: NSE
A55: 2018-10-09 | B55: GRETEX | C55: Gretex Industries Ltd. | D55: VISHWAMURTE TRAD INVEST PE LTD | E55: SELL | F55: 30,000 | G55: 13.5 | H55: NSE
A56: 2018-10-09 | B56: GSS | C56: GSS Infotech Limited | D56: AGARWAL ARCHANA | E56: SELL | F56: 210,038 | G56: 95.46 | H56: NSE
A57: 2018-10-09 | B57: GSS | C57: GSS Infotech Limited | D57: ASPIRE EMERGING FUND | E57: SELL | F57: 200,000 | G57: 97.05 | H57: NSE
A58: 2018-10-09 | B58: JETAIRWAYS | C58: Jet Airways (India) Ltd. | D58: ALPHAGREP SECURITIES PRIVATE LIMITED | E58: SELL | F58: 620,097 | G58: 175.16 | H58: NSE
A59: 2018-10-09 | B59: JETAIRWAYS | C59: Jet Airways (India) Ltd. | D59: SHAASTRA SECURITIES TRADING PRIVATE LIMITED | E59: SELL | F59: 738,604 | G59: 175.37 | H59: NSE
A60: 2018-10-09 | B60: JPASSOCIAT | C60: Jaiprakash Associates Lim | D60: SHAASTRA SECURITIES TRADING PRIVATE LIMITED | E60: SELL | F60: 12,278,620 | G60: 6.2 | H60: NSE
A61: 2018-10-09 | B61: JPASSOCIAT | C61: Jaiprakash Associates Lim | D61: SKYVEIL TRADE SOLUTIONS LLP | E61: SELL | F61: 10,198,374 | G61: 6.2 | H61: NSE
A62: 2018-10-09 | B62: JUSTDIAL | C62: Justdial Ltd. | D62: CROSSLAND TRADING CO | E62: SELL | F62: 501,935 | G62: 438.63 | H62: NSE
A63: 2018-10-09 | B63: JUSTDIAL | C63: Justdial Ltd. | D63: SHAASTRA SECURITIES TRADING PRIVATE LIMITED | E63: SELL | F63: 564,279 | G63: 440.4 | H63: NSE
A64: 2018-10-09 | B64: KSHITIJPOL | C64: Kshitij Polyline Limited | D64: . SHETH SANJAY RAJENDRAKUMAR HUF | E64: SELL | F64: 56,000 | G64: 34.75 | H64: NSE
A65: 2018-10-09 | B65: KSHITIJPOL | C65: Kshitij Polyline Limited | D65: AJITBHAI RAMANLAL SHAH | E65: SELL | F65: 76,000 | G65: 34.89 | H65: NSE
A66: 2018-10-09 | B66: KSHITIJPOL | C66: Kshitij Polyline Limited | D66: NARESHBHAI H PATEL | E66: SELL | F66: 52,000 | G66: 34.95 | H66: NSE
A67: 2018-10-09 | B67: KSHITIJPOL | C67: Kshitij Polyline Limited | D67: SUPER HANDLERS PVT LTD | E67: SELL | F67: 284,000 | G67: 34.71 | H67: NSE
A68: 2018-10-09 | B68: MUKTAARTS | C68: Mukta Arts Ltd | D68: NEON VINIMAY PRIVATE LIMITED | E68: SELL | F68: 143,400 | G68: 40.98 | H68: NSE
A69: 2018-10-09 | B69: PARIN | C69: Parin Furniture Limited | D69: VINOD LODHA | E69: SELL | F69: 82,000 | G69: 64 | H69: NSE
A70: 2018-10-09 | B70: PRIMESECU | C70: Prime Securities Limited | D70: MULTIPLIER SHARE AND STOCK ADVISORS PRIVATE LTD | E70: SELL | F70: 260000 | G70: 31 | H70: NSE
A71: 2018-10-09 | B71: TDPOWERSYS | C71: TD Power Systems Ltd. | D71: MSD INDIA FUND LTD | E71: SELL | F71: 236012 | G71: 96.79 | H71: NSE

Sheet Call Tracker (Equity & F&O)
M5: Back To Main Page
A6: Retail Research Technical Calls & Fundamental Performance Report for the month of October -2018
M7: =Main!B10 -> 2018-10-10
B8: Positional Call
A9: Sr.no | B9: Date | D9: Company | E9: Rec | F9: Rec Price | G9: Stop Loss*** | H9: Call Closed At | I9: Target | J9: Remark | K9: Profit / Loss per Share | L9: Gain / Loss % | M9: Status | N9: Closed Date | O9: NSE Closed Price
A10: 1 | B10: 2018-09-24 | D10: SUNPHARMA | E10: Buy | F10: 632.5 | G10: 610 | H10: 605 | I10: 670-680 | J10: Loss of Rs. 27.50/- | K10: =H10-F10 -> -27.5 | L10: =K10/F10 -> -4.35% | M10: Unsuccessful | N10: 2018-10-04 | R10: H
A11: 2 | B11: 2018-09-26 | D11: SBIN | E11: Buy | F11: 266 | G11: 249.7 | H11: 274.5 | I11: 285-295 | J11: Profit of Rs. 8.50/- | K11: =H11-F11 -> 8.5 | L11: =K11/F11 -> 3.20% | M11: Successful | N11: 2018-10-01 | R11: R
A12: 3 | B12: 2018-09-27 | D12: ITC | E12: Buy | F12: 291.5 | G12: 278 | H12: 301.5 | I12: 320 | J12: Profit of Rs. 10/- | K12: 10 | L12: =K12/F12 -> 3.43% | M12: Successful | N12: 2018-10-01 | R12: H
A13: 4 | B13: 2018-09-28 | D13: RBLBANK | E13: Buy | F13: 520 | G13: 499 | H13: 538 | I13: 570-580 | J13: Profit of Rs. 18/- | K13: 18 | L13: =K13/F13 -> 3.46% | M13: Successful | N13: 2018-10-03 | R13: H
A14: 5 | B14: 2018-09-28 | D14: PIDILITIND | E14: Buy | F14: 1049.5 | G14: 1017.7 | H14: 998 | I14: 1100-1120 | J14: Loss of Rs. 51.50/- | K14: -51.5 | L14: =K14/F14 -> -4.91% | M14: Unsuccessful | N14: 2018-10-03 | R14: R
A15: 6 | B15: 2018-10-01 | D15: M&MFIN | E15: Buy | F15: 400 | G15: 379 | H15: 414 | I15: 440 | J15: Profit of Rs. 14/- | K15: 14 | L15: =K15/F15 -> 3.50% | M15: Successful | N15: 2018-10-01 | R15: H
A16: 7 | B16: 2018-10-01 | D16: CONCOR | E16: Buy | F16: 634 | G16: 598.7 | H16: 659 | I16: 690-700 | J16: Profit of Rs. 25/- | K16: 25 | L16: 3.94% | M16: Successful | N16: 2018-10-01 | R16: R
A17: 8 | B17: 2018-10-03 | D17: SUDARSCHEM | E17: Buy | F17: 402 | G17: 384.4 | H17: 384.4 | I17: 430-440 | J17: Loss of Rs. 17.60/- | K17: =H17-F17 -> -17.6 | L17: -4.38% | M17: Unsuccessful | N17: 2018-10-04 | R17: R
A18: 9 | B18: 2018-10-03 | D18: CEATLTD | E18: Buy | F18: 1133 | G18: 1078 | H18: 1073 | I18: 1200-1220 | J18: Loss of Rs. 60/- | K18: =H18-F18 -> -60 | L18: =K18/F18 -> -5.30% | M18: Unsuccessful | N18: 2018-10-04 | R18: H
A19: 10 | B19: 2018-10-03 | D19: INDUSINDBK | E19: Buy | F19: 1655 | G19: 1597.7 | H19: 1570 | I19: 1760-1780 | J19: Loss of Rs. 85/- | K19: =H19-F19 -> -85 | L19: =K19/F19 -> -5.14% | M19: Unsuccessful | N19: 2018-10-04 | R19: R
A20: 11 | B20: 2018-10-04 | D20: RBLBANK | E20: Buy | F20: 512.55 | G20: 489 | H20: 492 | I20: 550-560 | J20: Loss of Rs. 20.55/- | K20: =H20-F20 -> -20.55 | L20: =K20/F20 -> -4.01% | M20: Unsuccessful | N20: 2018-10-05 | R20: H
A21: 12 | B21: 2018-10-05 | D21: ITC | E21: Buy | F21: 283 | G21: 274 | H21: 270 | I21: 300 | J21: Loss of Rs. 13/- | K21: =H21-F21 -> -13 | L21: =K21/F21 -> -4.59% | M21: Unsuccessful | N21: 2018-10-09 | R21: H
A22: 13 | B22: 2018-10-08 | D22: RBLBANK | E22: Buy | F22: 496-501 | G22: 479 | I22: 540-550 | J22: Open | O22: =VLOOKUP(D22,[1]EQ!$A$1:$M$1636,6,0) -> 499.75 | R22: H
A31: CLBS = Closing Basis *** | F31: Reinitiated $
A32: Dividend adjusted <> | F32: Revised stoploss #
A33: Part book {}
A34: Master Trade High Risk
A35: Sr.no | B35: Date | D35: Company | E35: Rec | F35: Rec Price | G35: Stop Loss | H35: Call Closed At | I35: Target | J35: Remark | K35: Profit / Loss per share | L35: Gain / Loss per Lot | M35: Lot | N35: Status | O35: Closed Date
A36: 1 | B36: 2018-09-28 | D36: HDFCBANK OCT FUT | E36: Buy | F36: 2020 | G36: 1980 | H36: 2051.5 | I36: 2100 | J36: Profit of Rs 19.50/- | K36: =H36-F36 -> 31.5 | L36: 9750 | M36: 500 | N36: Successful | O36: 2018-10-01 | R36: H
D37: HDFCBANK OCT 2060 CE | E37: Sell | F37: 23 | H37: 35 | K37: =F37-H37 -> -12
A38: 2 | B38: 2018-10-01 | D38: NIFTY OCT FUT | E38: Buy | F38: 10920 | G38: 10780 | H38: 11030 | I38: 11200 | J38: Profit of Rs 85/- | K38: =H38-F38 -> 110 | L38: 6375 | M38: 75 | N38: Successful | O38: 2018-10-01 | R38: H
D39: NIFTY OCT 11100 CE | E39: Sell | F39: 112.5 | H39: 137.5 | K39: =F39-H39 -> -25
A40: 3 | B40: 2018-10-03 | D40: NIFTY OCT FUT | E40: Buy | F40: 10952.5 | G40: 10850 | H40: 10780 | I40: 11150 | J40: Loss of Rs.172.5/- | K40: =H40-F40 -> -172.5 | L40: =M40*K40 -> -12937.5 | M40: 75 | N40: Unsuccessful | O40: 2018-10-04 | R40: H
A41: 4 | B41: 2018-10-03 | D41: MARUTI OCT FUT | E41: Buy | F41: 7310 | G41: 7117 | H41: 7010 | I41: 7650-7700 | J41: Loss of Rs.300/- | K41: =H41-F41 -> -300 | L41: =M41*K41 -> -22500 | M41: 75 | N41: Unsuccessful | O41: 2018-10-05 | R41: R
A42: 5 | B42: 2018-10-03 | D42: RELIANCE OCT FUT | E42: Buy | F42: 1222.5 | G42: 1195 | H42: 1195 | I42: 1270-1280 | J42: Loss of Rs.16/- | K42: =H42-F42 -> -27.5 | L42: =-16*M42 -> -16000 | M42: 1000 | N42: Unsuccessful | O42: 2018-10-04 | R42: H
D43: RELIANCE OCT 1260 CE | E43: Sell | F43: 26 | H43: 14.5 | K43: =F43-H43 -> 11.5
A44: 6 | B44: 2018-10-05 | D44: NIFTY OCT FUT | E44: Buy | F44: 10535 | G44: 10400 | H44: 10410 | I44: 10800 | J44: Loss of Rs.55/- | K44: =H44-F44 -> -125 | L44: =-55*75 -> -4125 | M44: 75 | N44: Unsuccessful | O44: 2018-10-05 | R44: H
D45: NIFTY OCT 10700 CE | E45: Sell | F45: 132.5 | H45: 62.5 | K45: =F45-H45 -> 70
A46: 7 | B46: 2018-10-08 | D46: RECLTD OCT FUT | E46: Buy | F46: 100.25 | G46: 97 | H46: 102.4 | I46: 106 | J46: Profit of Rs 1.8/- | K46: =H46-F46 -> 2.15 | L46: =1.8*6000 -> 10800 | M46: 6000 | N46: Unsuccessful | O46: 2018-10-08 | R46: N
D47: RECLTD OCT 10700 CE | E47: Sell | F47: 3.3 | H47: 3.65 | K47: =F47-H47 -> -0.35
A48: 8 | B48: 2018-10-08 | D48: INFRATEL OCT FUT | E48: Sell | F48: 265-266 | G48: 275 | I48: 250 | J48: Open | R48: H
D49: INFRATEL OCT 255 PE | E49: Sell | F49: 6.0-7.0
A50: 9 | B50: 2018-10-08 | D50: ONGC OCT FUT | E50: Sell | F50: 147-148 | G50: 153.5 | I50: 140 | J50: Open | R50: H
D51: ONGC OCT 140 PE | E51: Sell | F51: 4-4.5
A55: Master Trade Medium Risk
A56: Sr.no | B56: Date | D56: Company | E56: Rec | F56: Rec Price | G56: Stop Loss | H56: Call Closed At | I56: Target | J56: Remark | K56: Profit/ Loss per lot | L56: Gain / Loss per Lot | M56: Lot | N56: Status | O56: Closed Date
B69: Smart Delivery Trade
A70: Sr.no | B70: Date | D70: Company | E70: Rec | F70: Rec Price | G70: Stop Loss*** | H70: Call Closed At | I70: Target | J70: Remark | K70: Profit / Loss per Share | L70: Gain / Loss % | M70: Status | N70: Closed Date | O70: NSE Closed Price
A71: 1 | B71: 2018-09-27 | D71: COLPAL | E71: Buy | F71: 1094 | G71: 1058 | H71: 1050 | I71: 1140-1160 | J71: Loss of Rs. 44/- | K71: =H71-F71 -> -44 | L71: =K71/F71 -> -4.02% | M71: Unsuccessful | N71: 2018-10-08 | R71: H
A72: 2 | B72: 2018-10-03 | D72: BAJFINACE | E72: Buy | F72: 2210 | G72: 2140 | H72: 2275 | I72: 2300-2350 | J72: Profit of Rs. 65/- | K72: 65 | L72: =K72/F72 -> 2.94% | M72: Successful | N72: 2018-10-03 | R72: H
A73: 3 | B73: 2018-10-03 | D73: ADVENZYMES | E73: Buy | F73: 186 | G73: 179.7 | H73: 174.5 | I73: 197-200 | J73: Loss of Rs. 11.5/- | K73: -11.5 | L73: -6.18% | M73: Unsuccessful | N73: 2018-10-08 | R73: R
A74: 4 | B74: 2018-10-03 | D74: LT | E74: Buy | F74: 1249.5 | G74: 1195 | H74: 1277.5 | I74: 1330-1350 | J74: Profit of Rs. 28/- | K74: 28 | L74: =K74/F74 -> 2.24% | M74: Successful | N74: 2018-10-04 | R74: H
A75: 5 | B75: 2018-10-04 | D75: BAJFINANCE | E75: Buy | F75: 2180 | G75: 2135 | H75: 2135 | I75: 2250-2300 | J75: Loss of Rs. 45/- | K75: -45 | L75: =K75/F75 -> -2.06% | M75: Unsuccessful | N75: 2018-10-05 | R75: H
A76: 6 | B76: 2018-10-08 | D76: BAJFINANCE | E76: Buy | F76: 1980 | G76: 1935 | H76: 2047.5 | I76: 2100 | J76: Profit of Rs. 67/- | K76: 67.5 | L76: 3.41% | M76: Successful | N76: 2018-10-08 | R76: H
A77: 7 | B77: 2018-10-08 | D77: HDFCBANK | E77: Buy | F77: 1955-1965 | G77: 1890 | I77: 2150-2170 | J77: Open | O77: =VLOOKUP(D77,[1]EQ!$A$1:$M$1636,6,0) -> 1940.6 | R77: H
A78: 8 | B78: 2018-10-08 | D78: L&TFH | E78: Buy | F78: 122 | G78: 117 | H78: 117.5 | I78: 130-132 | J78: Loss of Rs. 4.5/- | K78: =H78-F78 -> -4.5 | L78: =K78/F78 -> -3.69% | M78: Unsuccessful | N78: 2018-10-08 | R78: H
A79: 9 | B79: 2018-10-08 | D79: JINDALSTEEL | E79: Sell | F79: 172 | G79: 178 | H79: 167.5 | I79: 160 | J79: Profit of Rs.4.5/- | K79: =F79-H79 -> 4.5 | L79: 2.62% | M79: Successful | N79: 2018-10-08 | R79: H
A80: 10 | B80: 2018-10-09 | D80: BAJFINACE | E80: Buy | F80: 1970 | G80: 1920 | H80: 2015 | I80: 2100 | J80: Profit of Rs. 45/- | K80: =H80-F80 -> 45 | L80: =K80/F80 -> 2.28% | M80: Successful | N80: 2018-10-09
A81: 11 | B81: 2018-10-09 | D81: BALKRISIND | E81: Buy | F81: 990-998 | G81: 957 | I81: 1050-1070 | J81: Open | O81: =VLOOKUP(D81,[1]EQ!$A$1:$M$1636,6,0) -> 982.1
A82: 12 | B82: 2018-10-09 | D82: JINDALSTEEL | E82: Sell | F82: 174 | G82: 182 | H82: 173.5 | I82: 160 | J82: Profit of Rs.0.5/- | K82: =F82-H82 -> 0.5 | L82: =K82/F82 -> 0.29% | M82: Neutral | N82: 2018-10-09
A88: CLBS = Closing Basis *** | F88: Reinitiated $
A89: Dividend adjusted <> | F89: Revised stoploss #
B92: Momentum Call
A93: Sr.no | B93: Date | D93: Company | E93: Rec | F93: Rec Price | G93: Stop Loss | H93: Call Closed At | I93: Target | J93: Remark | K93: Profit / Loss per Share/Lot | L93: Gain / Loss % | M93: Gain / Loss per Lot | N93: Lot | O93: Status | P93: Closed Date
A94: 1 | B94: 2018-10-01 | D94: INFRATEL OCT FUT | E94: Buy | F94: 268 | G94: 260 | H94: 260 | I94: 282 | J94: Loss of Rs.8/- | K94: =H94-F94 -> -8 | M94: =N94*K94 -> -13600 | N94: 1700 | O94: Unsuccessful | P94: 2018-10-03 | R94: N
A95: 2 | B95: 2018-10-03 | D95: TATASTEEL OCT FUT | E95: Buy | F95: 591.5 | G95: 579 | H95: 578 | I95: 610 | J95: Loss of Rs.13.5/- | K95: =H95-F95 -> -13.5 | M95: -14323.5 | N95: 1061 | O95: Unsuccessful | P95: 2018-10-04 | R95: N
A96: 3 | B96: 2018-10-03 | D96: UPL OCT FUT | E96: Buy | F96: 647 | G96: 636 | H96: 640 | I96: 665-670 | J96: Loss of Rs.7/- | K96: =H96-F96 -> -7 | M96: -8400 | N96: 1200 | O96: Unsuccessful | P96: 2018-10-04 | R96: N
A97: 4 | B97: 2018-10-08 | D97: INFRATEL OCT FUT | E97: Buy | F97: 256.5 | G97: 251 | H97: 262 | I97: 265-270 | J97: Profit of Rs.5.5/- | K97: =H97-F97 -> 5.5 | M97: 9350 | N97: 1700 | O97: Successful | P97: 2018-10-08 | R97: N
A98: 5 | B98: 2018-10-08 | D98: HDFC OCT FUT | E98: Sell | F98: 1672.5 | G98: 1702 | H98: 1659 | I98: 1620 | J98: Profit of Rs.13.5/- | K98: =F98-H98 -> 13.5 | M98: 6750 | N98: 500 | O98: Successful | P98: 2018-10-08
A99: 6 | B99: 2018-10-09 | D99: NIITTECH OCT FUT | E99: Buy | F99: 1132.5 | G99: 1115 | H99: 1115 | I99: 1160 | J99: Loss of Rs.17.50/- | K99: =H99-F99 -> -17.5 | M99: -13125 | N99: 750 | O99: Unsuccessful | P99: 2018-10-09
A100: 7 | B100: 2018-10-09 | D100: DIVISLAB OCT FUT | E100: Buy | F100: 1269 | G100: 1255 | H100: 1255 | I100: 1300 | J100: Loss of Rs.14/- | K100: =H100-F100 -> -14 | M100: -11200 | N100: 800 | O100: Unsuccessful | P100: 2018-10-09
A101: 8 | B101: 2018-10-09 | D101: APOLLOHOSP OCT FUT | E101: Buy | F101: 1087.5 | G101: 1058 | H101: 1106.5 | I101: 1150 | J101: Profit of Rs.19/- | K101: =H101-F101 -> 19 | M101: 9500 | N101: 500 | O101: Successful | P101: 2018-10-09
A102: 9 | B102: 2018-10-09 | D102: DIVISLAB OCT FUT | E102: Buy | F102: 1252.5 | G102: 1238 | H102: 1265 | I102: 1300 | J102: Profit of Rs.12.50/- | K102: =H102-F102 -> 12.5 | M102: 10000 | N102: 800 | O102: Successful | P102: 2018-10-09
A103: CLBS = Closing Basis ***
A104: Dividend adjusted <> | F104: Reinitiated $
F105: Revised stoploss #
B106: Quick Pick Intraday
A107: Sr.no | B107: Date | D107: Company | E107: Rec | F107: Rec Price | G107: Stop Loss*** | H107: Call Closed At | I107: Target | J107: Remark | K107: Profit / Loss per Share | L107: Status | M107: Closed Date
A121: Techno -Funda (positional)
A122: Sr.no | B122: Date | D122: Company | E122: Rec | F122: Rec Price | G122: Stop Loss*** | H122: Call Closed At | I122: Target | J122: Remark | K122: Profit / Loss per Share | L122: Gain / Loss % | M122: Status | N122: Closed Date | O122: NSE Closed Price
A125: CLBS = Closing Basis *** | F125: Reinitiated $
A126: Dividend adjusted <> | F126: Revised stoploss #
B131: Investment Idea
A132: Sr.no | B132: Date | D132: Company | E132: Rec | F132: Rec Price | G132: Point of Review | H132: Close Rate | I132: Target | J132: Remark | K132: Profit / Loss per Share | L132: Gain / Loss % | M132: Status | N132: Closed Date
A133: 1 | B133: 2013-11-01 | D133: L&T Finance Holding | E133: Accu | F133: 82.00 | G133: - | H133: 100 | I133: 100.00 | J133: Target Achieved | K133: =H133-F133 -> 18.00 | L133: =K133/F133 -> 21.95% | M133: Successful | N133: 2016-10-14
A134: 2 | B134: 2014-06-04 | D134: Finolex Inds | E134: Buy | F134: 257.00 | G134: - | H134: 300 | I134: 300.00 | J134: Target Achieved | K134: =H134-F134 -> 43.00 | L134: 16.73% | M134: Successful | N134: 2014-07-02
A135: =1+A134 -> 3 | B135: 2014-07-08 | D135: JK Cement | E135: Buy | F135: 393.00 | G135: - | H135: 468 | I135: 468.00 | J135: Target Achieved | K135: =H135-F135 -> 75.00 | L135: 19.08% | M135: Successful | N135: 2014-08-12
A136: 4 | B136: 2014-08-06 | D136: Finolex Cables | E136: Buy | F136: 205.00 | G136: - | H136: 275 | I136: 250.00 | J136: Target Achieved | K136: 70.00 | L136: 34.15% | M136: Successful | N136: 2014-11-19
A137: 5 | B137: 2014-09-04 | D137: Exide Inds | E137: Buy | F137: 162.00 | G137: - | H137: 190 | I137: 190.00 | J137: Target Achieved | K137: 28.00 | L137: 17.28% | M137: Successful | N137: 2015-01-02
A138: 6 | B138: 2014-09-04 | D138: Deepak Nitrite | E138: Buy | F138: 75.00 | G138: - | H138: 91.5 | I138: 95-100 | J138: Profit of Rs.16.50/- | K138: 16.50 | L138: 22.00% | M138: Successful | N138: 2014-11-11
A139: 7 | B139: 2014-10-01 | D139: Mercks | E139: Buy | F139: 850.00 | G139: - | H139: 982.5 | I139: 1050.00 | J139: Profit of Rs.132.50/- | K139: 132.50 | L139: 15.59% | M139: Successful | N139: 2015-02-04
A140: 8 | B140: 2014-10-01 | D140: Grindwell Norton | E140: Buy | F140: 475.00 | G140: - | H140: 515 | I140: 600.00 | J140: Profit of Rs.40/- | K140: 40.00 | L140: 8.42% | M140: Successful | N140: 2014-10-27
A141: 9 | B141: 2014-10-01 | D141: Snowman Logistics | E141: Buy | F141: 86.00 | G141: - | H141: 99 | I141: 140.00 | J141: Profit of Rs.13.00/- | K141: 13.00 | L141: 15.12% | M141: Successful | N141: 2014-10-27
A142: 10 | B142: 2014-10-14 | D142: Birla Corp | E142: Buy | F142: 496.60 | G142: - | H142: 621 | I142: 580.00 | J142: Target Achieved | K142: 124.40 | L142: 25.05% | M142: Successful | N142: 2016-08-23
A143: 11 | B143: 2014-10-14 | D143: Ultratech Cem | E143: Buy | F143: 2481.90 | G143: - | H143: 2840 | I143: 2870.00 | J143: Profit of Rs.358.10/- | K143: 358.10 | L143: 14.43% | M143: Successful | N143: 2015-01-13
A144: =1+A141 -> 10 | B144: 2014-10-16 | D144: Sintex Inds | E144: Buy | F144: 84.50 | G144: - | H144: 93 | I144: 110.00 | J144: Profit of Rs.8.50/- | K144: 8.50 | L144: 10.06% | M144: Successful | N144: 2014-10-27
A145: =1+A144 -> 11 | B145: 2014-10-16 | D145: HSIL | E145: Buy | F145: 401.00 | G145: - | H145: 428 | I145: 450.00 | J145: Profit of Rs.27.00/- | K145: 27.00 | L145: 6.73% | M145: Successful | N145: 2015-01-16
A146: 12 | B146: 2014-10-16 | D146: Eveready Inds | E146: Buy | F146: 101.00 | G146: - | H146: 112 | I146: 120.00 | J146: Profit of Rs.11.00/- | K146: 11.00 | L146: 10.89% | M146: Successful | N146: 2014-10-27
A147: 13 | B147: 2014-11-11 | D147: Pennar Inds | E147: Buy | F147: 59.00 | G147: - | H147: 76 | I147: 76.00 | J147: Target Achieved | K147: 17.00 | L147: 28.81% | M147: Successful | N147: 2017-10-24
A148: 14 | B148: 2014-11-11 | D148: Snowman Logistics | E148: Buy | F148: 99.00 | G148: - | H148: 120 | I148: 120.00 | J148: Profit of Rs.21/- | K148: 21.00 | L148: 21.21% | M148: Successful | N148: 2014-11-17
A149: 15 | B149: 2014-11-13 | D149: Dharamsi Morarji Chem | E149: Buy | F149: 22.00 | G149: - | H149: 33.55 | I149: 32.00 | J149: Profit of Rs 11.55/- | K149: 11.55 | L149: 52.50% | M149: Successful | N149: 2015-07-03
A150: 16 | B150: 2014-12-03 | D150: Tatachem | E150: Buy | F150: 440.00 | G150: - | H150: 520 | I150: 520.00 | J150: Profit of Rs 80.00/- | K150: 80.00 | L150: 18.18% | M150: Successful | N150: 2015-07-23
A151: 17 | B151: 2014-12-03 | D151: Advanta | E151: Buy | F151: 360.00 | G151: - | H151: 427 | I151: 425.00 | J151: Profit of Rs.67.00/- | K151: 67.00 | L151: 18.61% | M151: Successful | N151: 2015-02-23
A152: 18 | B152: 2015-01-08 | D152: GDL | E152: Buy | F152: 360.00 | G152: - | H152: 455 | I152: 420.00 | J152: Profit of Rs.95.00/- | K152: 95.00 | L152: 26.39% | M152: Successful | N152: 2015-01-20
A153: 19 | B153: 2015-01-08 | D153: NRB Bearing | E153: Buy | F153: 130.00 | H153: 175.5 | I153: 165.00 | J153: Profit of Rs 45.50/- | K153: 45.50 | L153: 35.00% | M153: Successful | N153: 2017-12-19
A154: 20 | B154: 2015-02-05 | D154: GSFC | E154: Accu | F154: 98.00 | H154: 120 | I154: 120.00 | J154: Target Achieved | K154: 22.00 | L154: 22.45% | M154: Successful | N154: 2017-01-18
A155: 21 | B155: 2015-02-05 | D155: Sundrmfast | E155: Accu | F155: 196.00 | H155: 262 | I155: 255.00 | J155: Target Achieved | K155: 66.00 | L155: 33.67% | M155: Successful | N155: 2016-08-17
A156: 22 | B156: 2015-03-04 | D156: GPPL | E156: Accu | F156: 230-240 | I156: 280-285 | J156: Open
A157: 23 | B157: 2015-03-04 | D157: ORIENTCEM | E157: Accu | F157: 185.00 | H157: 224 | I157: 220-225 | J157: Target Achieved | K157: 39.00 | L157: =K157/F157 -> 21.08% | M157: Successful | N157: 2016-10-04
A158: 24 | B158: 2015-03-27 | D158: PFS | E158: Accu | F158: 49-50 | I158: 67.00 | J158: Open
A159: 25 | B159: 2015-03-30 | D159: Walchandnagar Ind Ltd | E159: Accu | F159: 183.50 | H159: 219 | I159: 218.00 | J159: Profit of Rs.35.50/- | K159: 35.50 | L159: =K159/F159 -> 19.35% | M159: Successful | N159: 2015-04-09
A160: 26 | B160: 2015-04-20 | D160: Kalpataru Power Transmission Ltd | E160: Accu | F160: =(227+237)/2 -> 232.00 | H160: 298 | I160: 298.00 | J160: Target Achieved | K160: 66.00 | L160: 28.45% | M160: Successful | N160: 2017-03-29
A161: 27 | B161: 2015-05-04 | D161: Mastek Ltd | E161: Buy | F161: 385.00 | H161: =212.5+331 -> 543.5 | I161: 510.00 | J161: Profit of Rs 158.50/- | K161: 158.50 | L161: 41.17% | M161: Successful | N161: 2015-08-19
A162: 28 | B162: 2015-05-04 | D162: Suprajit Eng | E162: Buy | F162: 115.50 | H162: 146 | I162: 142.00 | J162: Profit of Rs 30.50/- | K162: 30.50 | L162: 26.41% | M162: Successful | N162: 2015-07-17
A163: 29 | B163: 2015-05-27 | D163: TCI | E163: Buy | F163: 237.50 | H163: 279.5 | I163: 278.00 | J163: Target Achieved | K163: 42.00 | L163: 17.68% | M163: Successful | N163: 2015-08-06
A164: 30 | B164: 2015-06-19 | D164: HSIL | E164: Accu | F164: 340.00 | H164: 448 | I164: 448.00 | J164: Target Achieved | K164: 108.00 | L164: 31.76% | M164: Successful | N164: 2017-10-10
A165: 31 | B165: 2015-07-06 | D165: Capital First | E165: Accu | F165: 390.00 | H165: 460 | I165: 460.00 | J165: Target Achieved | K165: 70.00 | L165: 17.95% | M165: Successful | N165: 2016-04-18
A166: 32 | B166: 2015-07-10 | D166: Dolphin OffShore | E166: Accu | F166: 122.5 | H166: 61.00 | I166: 172.00 | J166: Loss of Rs.61.50/- | K166: -61.50 | L166: -50.20% | M166: Unsuccessful | N166: 2018-08-21
A167: 33 | B167: 2015-08-03 | D167: Allcargo logistics | E167: Accu | F167: 297.50 | H167: 350 | I167: 360.00 | J167: Profit of Rs 52.50/- | K167: 52.50 | L167: =K167/F167 -> 17.65% | M167: Successful | N167: 2015-08-16
A168: 34 | B168: 2015-08-03 | D168: Camline Fine | E168: Accu | F168: 115.50 | H168: 149 | I168: 140.00 | J168: Profit of Rs 33.50/- | K168: 33.50 | L168: 29.00% | M168: Successful | N168: 2017-01-05
A169: 35 | B169: 2015-09-04 | D169: TCI | E169: Accu | F169: 226.00 | H169: 292 | I169: 292.00 | J169: Target Achieved | K169: 66.00 | L169: 29.20% | M169: Successful | N169: 2015-10-09
A170: 36 | B170: 2015-09-07 | D170: Kalpataru Power Transmission Ltd | E170: Accu | F170: 232.50 | H170: 312.5 | I170: 310.00 | J170: Target Achieved | K170: 80.00 | L170: 34.41% | M170: Successful | N170: 2017-03-29
A171: 37 | B171: 2015-09-21 | D171: LLOYD ELECTRIC & ENG LTD | E171: Accu | F171: 196.50 | H171: 238 | I171: 238.00 | J171: Target Achieved | K171: 41.50 | L171: 21.12% | M171: Successful | N171: 2015-10-14
A172: 38 | B172: 2015-09-24 | D172: L&T Finance Holding | E172: Accu | F172: 65.00 | H172: 82 | I172: 82.00 | J172: Target Achieved | K172: 17.00 | L172: 26.15% | M172: Successful | N172: 2016-07-27
A173: 39 | B173: 2015-10-14 | D173: KEC International ltd | E173: Accu | F173: 144.00 | H173: 182.5 | I173: 181.00 | J173: Target Achieved | K173: 38.50 | L173: 26.74% | M173: Successful | N173: 2017-03-23
A174: 40 | B174: 2015-10-14 | D174: Gruh Finance | E174: Accu | F174: 264.00 | H174: 311 | I174: 311.00 | J174: Target Achieved | K174: 47.00 | L174: 17.80% | M174: Successful | N174: 2016-08-22
A175: 41 | B175: 2015-11-10 | D175: Pidilitind | E175: Buy | F175: 549.50 | H175: 630 | I175: 630.00 | J175: Target Achieved | K175: 80.50 | L175: 14.65% | M175: Successful | N175: 2016-02-19
A176: 42 | B176: 2015-12-04 | D176: Zensar Technology | E176: Accu | F176: 1027.50 | H176: 1315 | I176: 1250.00 | J176: Target Achieved | K176: =H176-F176 -> 287.50 | L176: 27.98% | M176: Successful | N176: 2018-05-24
A177: 43 | B177: 2015-12-29 | D177: Vinati Organics Ltd | E177: Accu | F177: 465.00 | H177: 540 | I177: 540.00 | J177: Target Achieved | K177: 75.00 | L177: =K177/F177 -> 16.13% | M177: Successful | N177: 2016-06-09
A178: 44 | B178: 2016-01-11 | D178: GSFC | E178: Buy | F178: 81.00 | H178: 110 | I178: 110.00 | J178: Target Achieved | K178: 29.00 | L178: 35.80% | M178: Successful | N178: 2017-01-10
A179: 45 | B179: 2016-01-13 | D179: SSWL | E179: Buy | F179: 417.50 | H179: 547 | I179: 535.00 | J179: Target Achieved | K179: 129.50 | L179: 31.02% | M179: Successful | N179: 2016-07-27
A180: 46 | B180: 2016-02-08 | D180: Persistent System Ltd | E180: Accu | F180: 650.00 | H180: 800 | I180: 800.00 | J180: Target Achieved | K180: 150.00 | L180: 23.08% | M180: Successful | N180: 2018-02-23
A181: 47 | B181: 2016-03-04 | D181: UPL | E181: Accu | F181: 437.50 | H181: 504.5 | I181: 522.00 | J181: Profit of Rs.67/- | K181: 67.00 | L181: 15.31% | M181: Successful | N181: 2016-04-20
A182: 48 | B182: 2016-03-09 | D182: Ashoka Buildcon Ltd | E182: Accu | F182: 189.50 | H182: 218 | I182: 218.00 | J182: Target Achieved | K182: 28.50 | L182: 15.04% | M182: Successful | N182: 2017-10-26
A183: 49 | B183: 2016-04-11 | D183: PTC INDIA FIN SERV LTD | E183: Accu | F183: 36-37 | I183: 60.00 | J183: Open
A184: 50 | B184: 2016-04-12 | D184: CAMLINFINE $ | E184: Accu | F184: 93.00 | H184: 149 | I184: 140.00 | J184: Profit of Rs 56/- | K184: 56.00 | L184: =K184/F184 -> 60.22% | M184: Successful | N184: 2017-01-05
A185: 51 | B185: 2016-04-12 | D185: Greaves Cotton Ltd. | E185: Accu | F185: 130.00 | H185: 150 | I185: 150-155 | J185: Target Achieved | K185: 20.00 | L185: 15.38% | M185: Successful | N185: 2016-07-13
A186: 52 | B186: 2016-04-13 | D186: DHFL | E186: Accu | F186: 196.00 | H186: 299 | I186: 299.00 | J186: Target Achieved | K186: 103.00 | L186: 52.55% | M186: Successful | N186: 2016-09-07
A187: 53 | B187: 2016-04-13 | D187: Magma | E187: Accu | F187: 88.00 | H187: 103 | I187: 103.00 | J187: Target Achieved | K187: 15.00 | L187: 17.05% | M187: Successful | N187: 2016-06-09
A188: 54 | B188: 2016-05-02 | D188: KEC International ltd $ | E188: Accu | F188: 127.50 | H188: 148 | I188: 148-150 | J188: Target Achieved | K188: 20.50 | L188: 16.08% | M188: Successful | N188: 2016-07-13
A189: 55 | B189: 2016-05-03 | D189: Mindtree | E189: Accu | F189: 675.00 | H189: 815 | I189: 790-800 | J189: Target Achieved | K189: 140.00 | L189: 20.74% | M189: Successful | N189: 2018-02-23
A190: 56 | B190: 2016-06-01 | D190: Atulauto | E190: Accu | F190: 495-505 | I190: 565-570 | J190: Open
A191: 57 | B191: 2016-06-06 | D191: TRITURBINE | E191: Accu | F191: 110.00 | H191: 126.5 | I191: 125.00 | J191: Profit of Rs.16.50/- | K191: 16.50 | L191: =K191/F191 -> 15.00% | M191: Successful | N191: 2016-07-01
A192: 58 | B192: 2016-06-17 | D192: Pennar Industries Ltd | E192: Accu | F192: 44.00 | H192: 69.5 | I192: 69.50 | J192: Profit of Rs.25.50/- | K192: 25.50 | L192: =K192/F192 -> 57.95% | M192: Successful | N192: 2017-08-30
A193: 59 | B193: 2016-06-28 | D193: EVEREADY INDS. IND. LTD. | E193: Accu | F193: 262.50 | H193: 340 | I193: 333.00 | J193: Profit of Rs.77.50/- | K193: 77.50 | L193: =K193/F193 -> 29.52% | M193: Successful | N193: 2017-10-09
A194: 60 | B194: 2016-06-28 | D194: FIEM INDUSTRIES LIMITED | E194: Accu | F194: 840.00 | H194: 1230 | I194: 1230.00 | J194: Target Achieved | K194: 390.00 | L194: =K194/F194 -> 46.43% | M194: Successful | N194: 2016-10-06
A195: 61 | B195: 2016-07-05 | D195: Bajaj Corp Ltd | E195: Accu | F195: 395 | H195: 468.50 | I195: 510.00 | J195: Part profit of Rs.73.50/- | K195: 73.50 | L195: =K195/F195 -> 19% | M195: Successful | N195: 2017-08-30
A196: 62 | B196: 2016-08-02 | D196: GPPL $ | E196: Buy | F196: 167-172 | I196: 198-200 | J196: Open
A197: 63 | B197: 2016-08-04 | D197: WONDERLA HOLIDAYS LTD | E197: Accu | F197: 395-405 | I197: 475.00 | J197: Open
A198: 64 | B198: 2016-08-11 | D198: CAMLINFINE | E198: Accu | F198: 86.50 | H198: 130 | I198: 130.00 | J198: Profit of Rs.43.50/- | K198: =H198-F198 -> 43.50 | L198: =K198/F198 -> 50.29% | M198: Successful | N198: 2017-12-22
A199: 65 | B199: 2016-08-18 | D199: GRANULES | E199: Accu | F199: 133.5 | H199: 126.50 | I199: 178.00 | J199: Exit | K199: -7.00 | L199: -5.24% | M199: Unsuccessful | N199: 2016-09-02
A200: 66 | B200: 2016-08-31 | D200: VA TECH WABAG | E200: Accu | F200: 560.00 | H200: 725 | I200: 725.00 | J200: Target Achieved | K200: 165.00 | L200: 29.46% | M200: Successful | N200: 2016-03-27
A201: 67 | B201: 2016-09-01 | D201: SKIPPER LIMITED | E201: Accu | F201: 160.50 | H201: 210 | I201: 210.00 | J201: Target Achieved | K201: 49.50 | L201: 30.84% | M201: Successful | N201: 2017-05-16
A202: 68 | B202: 2016-10-03 | D202: IFB Industries | E202: Accu | F202: 430.00 | H202: 596 | I202: 575.00 | J202: Profit of Rs.166/- | K202: 166.00 | L202: 38.60% | M202: Successful | N202: 2017-02-03
A203: 69 | B203: 2016-10-14 | D203: ASIANTILES | E203: Accu | F203: 280.00 | H203: 345 | I203: 345.00 | J203: Target Achieved | K203: 65.00 | L203: 23.21% | M203: Successful | N203: 2017-03-20
A204: 70 | B204: 2016-10-14 | D204: DEEPIND | E204: Accu | F204: 245.00 | H204: 325.5 | I204: 330.00 | J204: Profit of Rs.80.5/- | K204: 80.50 | L204: 32.86% | M204: Successful | N204: 2017-02-03
A205: 71 | B205: 2016-10-17 | D205: DCBBANK | E205: Accu | F205: 125.00 | H205: 160 | I205: 160.00 | J205: Target Achieved | K205: 35.00 | L205: 28.00% | M205: Successful | N205: 2017-03-09
A206: 72 | B206: 2016-10-17 | D206: ORIENTREF | E206: Accu | F206: 114.00 | H206: 145 | I206: 145.00 | J206: Target Achieved | K206: 31.00 | L206: =K206/F206 -> 27.19% | M206: Successful | N206: 2017-05-04
A207: 73 | B207: 2016-10-17 | D207: GANECOS | E207: Accu | F207: 212.00 | H207: 280 | I207: 276.00 | J207: Profit of Rs.68/- | K207: 68.00 | L207: =K207/F207 -> 32.08% | M207: Successful | N207: 2017-05-03
A208: 74 | B208: 2016-11-04 | D208: NBCC | E208: Accu | F208: 155.00 | H208: 210 | I208: 210.00 | J208: Profit of Rs.55/- | K208: 55.00 | L208: =K208/F208 -> 35.48% | M208: Successful | N208: 2017-07-28
A209: 75 | B209: 2016-12-06 | D209: PRECAM | E209: Accu | F209: 150.5 | H209: 72.50 | I209: 174.00 | J209: Loss of Rs.78/- | K209: -78.00 | L209: =K209/F209 -> -51.83% | M209: Unsuccessful | N209: 2018-08-21
A210: 76 | B210: 2016-12-08 | D210: INFRATEL | E210: Accu | F210: 380.00 | H210: 478 | I210: 468.00 | J210: Target Achieved | K210: 98.00 | L210: =K210/F210 -> 25.79% | M210: Successful | N210: 2017-10-17
A211: 77 | B211: 2016-12-30 | D211: GODREJPROP | E211: Accu | F211: 305.00 | H211: 375 | I211: 375.00 | J211: Target Achieved | K211: 70.00 | L211: 22.95% | M211: Successful | N211: 2017-02-02
A212: 78 | B212: 2017-01-04 | D212: DEEPAKNTR | E212: Accu | F212: 99.50 | H212: 158 | I212: 158.00 | J212: Target Achieved | K212: 58.50 | L212: 58.79% | M212: Successful | N212: 2017-06-12
A213: 79 | B213: 2017-02-20 | D213: SUBROS | E213: Accu | F213: 202.50 | H213: 234 | I213: 234.00 | J213: Target Achieved | K213: 31.50 | L213: 15.56% | M213: Successful | N213: 2017-04-11
A214: 80 | B214: 2017-02-20 | D214: RECLTD | E214: Accu | F214: 140.50 | H214: 220 | I214: 220.00 | J214: Target Achieved | K214: 79.50 | L214: 56.58% | M214: Successful | N214: 2017-05-09
A215: 81 | B215: 2017-03-24 | D215: VRLLOG | E215: Accu | F215: 300.50 | H215: 417.5 | I215: 420.00 | J215: Profit of Rs.117/- | K215: 117.00 | L215: 38.94% | M215: Successful | N215: 2017-12-01
A216: 82 | B216: 2017-03-24 | D216: FIEMIND | E216: Accu | F216: 850.00 | H216: 1042.5 | I216: 1023.00 | J216: Profit of Rs 192.50/- | K216: 192.50 | L216: 22.65% | M216: Successful | N216: 2017-04-05
A217: 83 | B217: 2017-04-05 | D217: RATNAMANI | E217: Accu | F217: 785.00 | H217: 930 | I217: 920.00 | J217: Profit of Rs.145/- | K217: 145.00 | L217: 18.47% | M217: Successful | N217: 2017-08-29
A218: 84 | B218: 2017-04-06 | D218: ZEEMEDIA | E218: Accu | F218: 39-41 | I218: 60.00 | J218: Open
A219: 85 | B219: 2017-04-12 | D219: DABUR | E219: Accu | F219: 289.50 | H219: 354 | I219: 360.00 | J219: Profit of Rs.64.5/- | K219: 64.50 | L219: =K219/F219 -> 22.28% | M219: Successful | N219: 2017-11-01
A220: 86 | B220: 2017-04-20 | D220: KPRMILL | E220: Accu | F220: 700.00 | H220: 840 | I220: 840.00 | J220: Profit of Rs.140/- | K220: 140.00 | L220: =K220/F220 -> 20.00% | M220: Successful | N220: 2017-06-07
A221: 87 | B221: 2017-05-22 | D221: GREAVESCOT | E221: Accu | F221: 153-158 | I221: 190.00 | J221: Open
A222: 88 | B222: 2017-06-01 | D222: ESSELPACK | E222: Accu | F222: 260 | H222: 311.00 | I222: 340.00 | J222: Part profit of Rs.51/- | K222: =H222-F222 -> 51.00 | L222: =K222/F222 -> 20% | M222: Successful | N222: 2017-11-17
A223: 89 | B223: 2017-06-15 | D223: KEI | E223: Accu | F223: 214.50 | H223: 262 | I223: 262.00 | J223: Profit of Rs.47.5/- | K223: =H223-F223 -> 47.50 | L223: 22.14% | M223: Successful | N223: 2017-08-30
A224: 90 | B224: 2017-07-17 | D224: MAYURUNIQ | E224: Accu | F224: 370.00 | H224: 447.5 | I224: 450.00 | J224: Target Achieved | K224: 77.50 | L224: 20.95% | M224: Successful | N224: 2017-10-27
A225: 91 | B225: 2017-07-27 | D225: RAMCOCEM | E225: Accu | F225: 657.50 | H225: 825 | I225: 820.00 | J225: Target Achieved | K225: 167.50 | L225: 25.48% | M225: Successful | N225: 2017-12-21
A226: 92 | B226: 2017-08-17 | D226: FINPIPE | E226: Accu | F226: 605.00 | H226: 750 | I226: 750.00 | J226: Profit of Rs.145/- | K226: 145.00 | L226: 23.97% | M226: Successful | N226: 2017-10-19
A227: 93 | B227: 2017-09-01 | D227: SHK | E227: Accu | F227: 255 | H227: 307.50 | I227: 320.00 | J227: Part profit of Rs.52.5/- | K227: 52.50 | L227: 21% | M227: Successful | N227: 2017-12-29
A228: 94 | B228: 2017-09-19 | D228: SKIPPER | E228: Accu | F228: 215.00 | H228: 258 | I228: 258.00 | J228: Target Achieved | K228: 43.00 | L228: 20.00% | M228: Successful | N228: 2017-11-01
A229: 95 | B229: 2017-09-20 | D229: CAMLINFINE | E229: Accu | F229: 75.00 | H229: 90 | I229: 90.00 | J229: Profit of Rs.15.00/- | K229: 15.00 | L229: 20.00% | M229: Successful | N229: 2017-10-11
A230: 96 | B230: 2017-10-03 | D230: GNA | E230: Accu | F230: 315.00 | H230: 392 | I230: 384.00 | J230: Profit of Rs.77/- | K230: 77.00 | L230: 24.44% | M230: Successful | N230: 2017-10-09
A231: 97 | B231: 2017-10-05 | D231: NOCIL | E231: Accu | F231: 145.00 | H231: 179 | I231: 180.00 | J231: Profit of Rs.34/- | K231: 34.00 | L231: 23.45% | M231: Successful | N231: 2017-10-17
A232: 98 | B232: 2017-10-06 | D232: CENTURYPLY | E232: Accu | F232: 256.00 | H232: 323 | I232: 320.00 | J232: Target Achieved | K232: 67.00 | L232: 26.17% | M232: Successful | N232: 2017-11-28
A233: 99 | B233: 2017-10-09 | D233: RECLTD | E233: Accu | F233: 152.5 | H233: 183.50 | I233: 210.00 | J233: Part Profit of Rs.31/- | K233: 31.00 | L233: 20% | M233: Successful | N233: 2017-11-03
A234: 100 | B234: 2017-10-09 | D234: EIHOTEL | E234: Accu | F234: 137.50 | H234: 184 | I234: 183.00 | J234: Profit of Rs.46.5/- | K234: 46.50 | L234: 33.82% | M234: Successful | N234: 2018-01-08
A235: 101 | B235: 2017-10-10 | D235: BOROSIL | E235: Accu | F235: 895.00 | H235: 1122.5 | I235: 1078.00 | J235: Profit of Rs.227.5/- | K235: 227.50 | L235: 25.42% | M235: Successful | N235: 2018-01-17
A236: 102 | B236: 2017-10-10 | D236: NRBBEARING | E236: Accu | F236: 125.50 | H236: 158 | I236: 155.00 | J236: Profit of Rs.32.5/- | K236: 32.50 | L236: 25.90% | M236: Successful | N236: 2017-11-28
A237: 103 | B237: 2017-10-12 | D237: CYIENT | E237: Accu | F237: 525.00 | H237: 629 | I237: 629.00 | J237: Target Achieved | K237: 104.00 | L237: 19.81% | M237: Successful | N237: 2018-01-19
A238: 104 | B238: 2017-11-07 | D238: HATSUN | E238: Accu | F238: 740.00 | H238: 892.5 | I238: 900.00 | J238: Profit of Rs.152.5/- | K238: 152.50 | L238: 20.61% | M238: Successful | N238: 2017-11-13
A239: 105 | B239: 2017-12-04 | D239: SANGHIIND | E239: Accu | F239: 118.50 | H239: 143.5 | I239: 145.00 | J239: Profit of Rs.25/- | K239: 25.00 | L239: 21.10% | M239: Successful | N239: 2017-12-28
A240: 106 | B240: 2017-12-05 | D240: ALLCARGO | E240: Accu | F240: 177.5 | H240: 215.00 | I240: 230.00 | J240: Part Profit of Rs.37.5/- | K240: 37.50 | L240: 21% | M240: Successful | N240: 2017-12-27
A241: 107 | B241: 2017-12-21 | D241: KAJARIACER | E241: Accu | F241: 710-720 | I241: 872.00 | J241: Open
A242: 108 | B242: 2017-12-29 | D242: GNA | E242: Accu | F242: 435.00 | H242: 542.5 | I242: 539.00 | J242: Target Achieved | K242: =H242-F242 -> 107.50 | L242: =K242/F242 -> 24.71% | M242: Successful | N242: 2018-04-16
A243: 109 | B243: 2017-12-29 | D243: ZENSARTECH | E243: Accu | F243: 885.00 | H243: 1090 | I243: 1084.00 | J243: Target Achieved | K243: 205.00 | L243: =K243/F243 -> 23.16% | M243: Successful | N243: 2018-04-23
A244: 110 | B244: 2018-02-07 | D244: GREAVESCOT | E244: Accu | F244: 130-132 | I244: 190.00 | J244: Open
A245: 111 | B245: 2018-02-27 | D245: MOLDTKPAC | E245: Accu | F245: 320-330 | I245: 398.00 | J245: Open
A246: 112 | B246: 2018-03-05 | D246: LICHSGFIN | E246: Accu | F246: 505-515 | I246: 672.00 | J246: Open
A247: 113 | B247: 2018-04-02 | D247: EVERESTIND | E247: Accu | F247: 492.5 | H247: 589.00 | I247: 613.00 | J247: Part Profit of Rs.37.5/- | K247: =H247-F247 -> 96.50 | L247: =K247/F247 -> 20% | M247: Successful | N247: 2018-08-21
A248: 114 | B248: 2018-04-04 | D248: GPPL | E248: Accu | F248: 140-143 | I248: 180.00 | J248: Open
A249: 115 | B249: 2018-04-19 | D249: MANPASAND | E249: Accu | F249: 430 | H249: 220.00 | I249: 537.00 | J249: Loss of Rs.210/- | K249: =H249-F249 -> -210.00 | L249: =K249/F249 -> -48.84% | M249: Unsuccessful | N249: 2018-06-01
A250: 116 | B250: 2018-04-30 | D250: HEIDELBERG | E250: Accu | F250: 154-158 | I250: 196.00 | J250: Open
A251: 117 | B251: 2018-05-17 | D251: PHILIPCARB | E251: Accu | F251: 230-240 | I251: 348.00 | J251: Open
A252: 118 | B252: 2018-06-07 | D252: KEC | E252: Accu | F252: 340-345 | I252: 439.00 | J252: Open
A253: 119 | B253: 2018-07-04 | D253: ASHOKLEY | E253: Accu | F253: 125-130 | I253: 170.00 | J253: Open
... 16 more rows

Sheet Sheet2 (hidden)
A1: SYMBOL | B1: SERIES | C1: OPEN | D1: HIGH | E1: LOW | F1: CLOSE | G1: LAST | H1: PREVCLOSE | I1: TOTTRDQTY | J1: TOTTRDVAL | K1: TIMESTAMP | L1: TOTALTRADES | M1: ISIN | N1: ISIN
A2: 20MICRONS | B2: EQ | C2: 40 | D2: 40.95 | E2: 39.2 | F2: 39.55 | G2: 40 | H2: 40 | I2: 20490 | J2: 815455.4 | K2: 2018-10-09 | L2: 275 | M2: INE144J01027
A3: 21STCENMGM | B3: EQ | C3: 25.75 | D3: 25.75 | E3: 25.75 | F3: 25.75 | G3: 25.75 | H3: 26.25 | I3: 475 | J3: 12231.25 | K3: 2018-10-09 | L3: 9 | M3: INE253B01015
A4: 3IINFOTECH | B4: EQ | C4: 3.25 | D4: 3.75 | E4: 3.25 | F4: 3.5 | G4: 3.55 | H4: 3.25 | I4: 4863462 | J4: 17077928.95 | K4: 2018-10-09 | L4: 1827 | M4: INE748C01020
A5: 3MINDIA | B5: EQ | C5: 21749 | D5: 21920 | E5: 21200 | F5: 21400.2 | G5: 21555 | H5: 21792.5 | I5: 1147 | J5: 24696884.1 | K5: 2018-10-09 | L5: 712 | M5: INE470A01017
A6: 5PAISA | B6: EQ | C6: 209.7 | D6: 214.65 | E6: 201 | F6: 203.3 | G6: 202 | H6: 208.85 | I6: 6509 | J6: 1343711.85 | K6: 2018-10-09 | L6: 228 | M6: INE618L01018
A7: 63MOONS | B7: EQ | C7: 63.95 | D7: 65.5 | E7: 62.8 | F7: 64.45 | G7: 64.55 | H7: 62.8 | I7: 120170 | J7: 7701883.55 | K7: 2018-10-09 | L7: 1433 | M7: INE111B01023
A8: 8KMILES | B8: BE | C8: 140.8 | D8: 140.8 | E8: 140.8 | F8: 140.8 | G8: 140.8 | H8: 148.2 | I8: 12150 | J8: 1710720 | K8: 2018-10-09 | L8: 241 | M8: INE650K01021
A9: A2ZINFRA | B9: EQ | C9: 9.3 | D9: 9.65 | E9: 9 | F9: 9.65 | G9: 9.65 | H9: 9.2 | I9: 784549 | J9: 7499737.3 | K9: 2018-10-09 | L9: 1032 | M9: INE619I01012
A10: AARTIDRUGS | B10: EQ | C10: 557.3 | D10: 571.95 | E10: 555 | F10: 560.55 | G10: 562 | H10: 553.95 | I10: 17106 | J10: 9640805.65 | K10: 2018-10-09 | L10: 1682 | M10: INE767A01016
A11: AARTIIND | B11: EQ | C11: 1252 | D11: 1252 | E11: 1213.85 | F11: 1229.4 | G11: 1226 | H11: 1245.1 | I11: 34022 | J11: 41766708.55 | K11: 2018-10-09 | L11: 6130 | M11: INE769A01020
A12: AARVEEDEN | B12: EQ | C12: 23.65 | D12: 24.2 | E12: 23.1 | F12: 23.1 | G12: 23.1 | H12: 23.8 | I12: 6781 | J12: 157767.35 | K12: 2018-10-09 | L12: 72 | M12: INE273D01019
A13: AAVAS | B13: EQ | C13: 762 | D13: 785 | E13: 731 | F13: 767.7 | G13: 779 | H13: 774.35 | I13: 293295 | J13: 222365131.4 | K13: 2018-10-09 | L13: 18708 | M13: INE216P01012
A14: ABAN | B14: EQ | C14: 73.4 | D14: 75.7 | E14: 71.85 | F14: 74.15 | G14: 73.8 | H14: 73.2 | I14: 853264 | J14: 63105074.55 | K14: 2018-10-09 | L14: 9931 | M14: INE421A01028
A15: ABB | B15: EQ | C15: 1384.9 | D15: 1388.45 | E15: 1344.2 | F15: 1354.5 | G15: 1353.6 | H15: 1378.6 | I15: 36623 | J15: 49879603.95 | K15: 2018-10-09 | L15: 2579 | M15: INE117A01022
A16: ABBOTINDIA | B16: EQ | C16: 7254 | D16: 7290.05 | E16: 7125 | F16: 7162.4 | G16: 7185 | H16: 7249.8 | I16: 4461 | J16: 32115293.05 | K16: 2018-10-09 | L16: 530 | M16: INE358A01014
A17: ABCAPITAL | B17: EQ | C17: 105.1 | D17: 107.7 | E17: 104.05 | F17: 105 | G17: 104.4 | H17: 104.95 | I17: 1678879 | J17: 176920680.7 | K17: 2018-10-09 | L17: 18057 | M17: INE674K01013
A18: ABFRL | B18: EQ | C18: 177.25 | D18: 179.65 | E18: 167.85 | F18: 175.5 | G18: 175.25 | H18: 177.3 | I18: 928713 | J18: 161348223.8 | K18: 2018-10-09 | L18: 13616 | M18: INE647O01011
A19: ACC | B19: EQ | C19: 1486 | D19: 1493.9 | E19: 1445.6 | F19: 1465.85 | G19: 1462 | H19: 1474.65 | I19: 522994 | J19: 767932701.5 | K19: 2018-10-09 | L19: 28509 | M19: INE012A01025
A20: ACCELYA | B20: EQ | C20: 1005.05 | D20: 1020.05 | E20: 975 | F20: 980.65 | G20: 980 | H20: 1005.05 | I20: 2503 | J20: 2476063.3 | K20: 2018-10-09 | L20: 437 | M20: INE793A01012
A21: ACE | B21: EQ | C21: 84.6 | D21: 84.6 | E21: 78.4 | F21: 79.45 | G21: 79.45 | H21: 82.45 | I21: 160345 | J21: 12837278.85 | K21: 2018-10-09 | L21: 3560 | M21: INE731H01025
A22: ADANIENT | B22: EQ | C22: 136 | D22: 137.7 | E22: 129.35 | F22: 135.9 | G22: 135.5 | H22: 133.15 | I22: 7186017 | J22: 963942737.5 | K22: 2018-10-09 | L22: 50673 | M22: INE423A01024
A23: ADANIGREEN | B23: EQ | C23: 30.4 | D23: 32.1 | E23: 30.4 | F23: 30.4 | G23: 30.4 | H23: 32 | I23: 1129990 | J23: 34859257.7 | K23: 2018-10-09 | L23: 3947 | M23: INE364U01010
A24: ADANIPORTS | B24: EQ | C24: 304 | D24: 324 | E24: 302.5 | F24: 318.75 | G24: 317.15 | H24: 304.35 | I24: 5771005 | J24: 1816229013 | K24: 2018-10-09 | L24: 65664 | M24: INE742F01042
A25: ADANIPOWER | B25: EQ | C25: 23.7 | D25: 24.3 | E25: 22.65 | F25: 23.95 | G25: 24 | H25: 23.5 | I25: 20406963 | J25: 481202268.7 | K25: 2018-10-09 | L25: 25126 | M25: INE814H01011
A26: ADANITRANS | B26: BE | C26: 145 | D26: 149.5 | E26: 141 | F26: 148.45 | G26: 148.1 | H26: 147.95 | I26: 42072 | J26: 6155557.35 | K26: 2018-10-09 | L26: 659 | M26: INE931S01010
A27: ADFFOODS | B27: EQ | C27: 197.9 | D27: 204.5 | E27: 193 | F27: 201.3 | G27: 200.7 | H27: 194.9 | I27: 39990 | J27: 7943169.7 | K27: 2018-10-09 | L27: 1268 | M27: INE982B01019
A28: ADHUNIK | B28: BE | C28: 3 | D28: 3 | E28: 2.8 | F28: 3 | G28: 3 | H28: 2.9 | I28: 19747 | J28: 58901.65 | K28: 2018-10-09 | L28: 34 | M28: INE400H01019
A29: ADHUNIKIND | B29: EQ | C29: 58.85 | D29: 58.9 | E29: 50.1 | F29: 54.7 | G29: 52 | H29: 57.45 | I29: 39920 | J29: 2230274.9 | K29: 2018-10-09 | L29: 219 | M29: INE452L01012
A30: ADLABS | B30: EQ | C30: 17 | D30: 17.35 | E30: 15.95 | F30: 16.15 | G30: 16.3 | H30: 16.6 | I30: 99403 | J30: 1627891.05 | K30: 2018-10-09 | L30: 577 | M30: INE172N01012
A31: ADORWELD | B31: EQ | C31: 294 | D31: 299.25 | E31: 290 | F31: 293.6 | G31: 290.1 | H31: 292.65 | I31: 5072 | J31: 1491382.5 | K31: 2018-10-09 | L31: 233 | M31: INE045A01017
A32: ADROITINFO | B32: BE | C32: 21.85 | D32: 23.95 | E32: 21.85 | F32: 23.85 | G32: 23.85 | H32: 23 | I32: 357 | J32: 8076.05 | K32: 2018-10-09 | L32: 10 | M32: INE737B01033
A33: ADSL | B33: EQ | C33: 12.15 | D33: 12.75 | E33: 12.15 | F33: 12.3 | G33: 12.3 | H33: 12.5 | I33: 3539 | J33: 43693.7 | K33: 2018-10-09 | L33: 24 | M33: INE102I01027
A34: ADVANIHOTR | B34: EQ | C34: 48 | D34: 49.55 | E34: 47.6 | F34: 47.95 | G34: 47.7 | H34: 48 | I34: 23773 | J34: 1151674.95 | K34: 2018-10-09 | L34: 76 | M34: INE199C01026
A35: ADVENZYMES | B35: EQ | C35: 170.8 | D35: 176 | E35: 165.35 | F35: 169.65 | G35: 168.25 | H35: 170.9 | I35: 309365 | J35: 53189139.35 | K35: 2018-10-09 | L35: 4230 | M35: INE837H01020
A36: AEGISCHEM | B36: EQ | C36: 182.3 | D36: 183.5 | E36: 173.55 | F36: 175.85 | G36: 176.4 | H36: 181.8 | I36: 91327 | J36: 16330958.95 | K36: 2018-10-09 | L36: 5068 | M36: INE208C01025
A37: AFL | B37: EQ | C37: 51 | D37: 53 | E37: 49.55 | F37: 51.05 | G37: 51.1 | H37: 52.15 | I37: 27994 | J37: 1415826.25 | K37: 2018-10-09 | L37: 252 | M37: INE020G01017
A38: AGARIND | B38: EQ | C38: 200 | D38: 200 | E38: 181 | F38: 192.05 | G38: 190.1 | H38: 193 | I38: 3996 | J38: 759936.55 | K38: 2018-10-09 | L38: 94 | M38: INE204E01012
A39: AGCNET | B39: EQ | C39: 67.5 | D39: 71.5 | E39: 67.5 | F39: 69.3 | G39: 68.8 | H39: 67.2 | I39: 5363 | J39: 369559.5 | K39: 2018-10-09 | L39: 75 | M39: INE676A01019
A40: AGLSL | B40: EQ | C40: 65.05 | D40: 68.85 | E40: 65.05 | F40: 65.65 | G40: 65.65 | H40: 66.6 | I40: 1172 | J40: 77815.5 | K40: 2018-10-09 | L40: 18 | M40: INE517U01013
A41: AGRITECH | B41: EQ | C41: 59.8 | D41: 59.8 | E41: 56.6 | F41: 57.8 | G41: 57.2 | H41: 58.25 | I41: 4404 | J41: 256986.1 | K41: 2018-10-09 | L41: 138 | M41: INE449G01018
A42: AHLEAST | B42: EQ | C42: 249 | D42: 249 | E42: 234 | F42: 236.25 | G42: 236.1 | H42: 237 | I42: 531 | J42: 127300.7 | K42: 2018-10-09 | L42: 18 | M42: INE926K01017
A43: AHLUCONT | B43: EQ | C43: 277.5 | D43: 296.9 | E43: 274.45 | F43: 292.25 | G43: 285.2 | H43: 281.1 | I43: 3417 | J43: 981015.3 | K43: 2018-10-09 | L43: 141 | M43: INE758C01029
A44: AHLWEST | B44: EQ | C44: 285 | D44: 290 | E44: 270 | F44: 276.8 | G44: 270 | H44: 279.8 | I44: 771 | J44: 217346.2 | K44: 2018-10-09 | L44: 14 | M44: INE915K01010
A45: AIAENG | B45: EQ | C45: 1584 | D45: 1594.2 | E45: 1500 | F45: 1527.9 | G45: 1500 | H45: 1584.65 | I45: 73642 | J45: 113916668.9 | K45: 2018-10-09 | L45: 7020 | M45: INE212H01026
A46: AIFL | B46: EQ | C46: 179.95 | D46: 179.95 | E46: 179.95 | F46: 179.95 | G46: 179.95 | H46: 189.4 | I46: 827 | J46: 148818.65 | K46: 2018-10-09 | L46: 24 | M46: INE428O01016
A47: AIONJSW | B47: BE | C47: 45.5 | D47: 45.5 | E47: 45.5 | F47: 45.5 | G47: 45.5 | H47: 43.35 | I47: 42474 | J47: 1932567 | K47: 2018-10-09 | L47: 90 | M47: INE743C01021
A48: AJANTPHARM | B48: EQ | C48: 1000 | D48: 1029.95 | E48: 982.15 | F48: 1005.8 | G48: 1010.6 | H48: 1001 | I48: 320108 | J48: 323082925.4 | K48: 2018-10-09 | L48: 13002 | M48: INE031B01049
A49: AJMERA | B49: EQ | C49: 147.65 | D49: 152.05 | E49: 146 | F49: 147.5 | G49: 146.6 | H49: 146.4 | I49: 49413 | J49: 7356080.9 | K49: 2018-10-09 | L49: 782 | M49: INE298G01027
A50: AKSHARCHEM | B50: EQ | C50: 451.3 | D50: 455.5 | E50: 440 | F50: 443.1 | G50: 441.5 | H50: 460.25 | I50: 3524 | J50: 1572780.25 | K50: 2018-10-09 | L50: 259 | M50: INE542B01011
A51: AKSHOPTFBR | B51: EQ | C51: 23.45 | D51: 23.95 | E51: 22.8 | F51: 23.6 | G51: 23.5 | H51: 23.1 | I51: 2802450 | J51: 65224361.65 | K51: 2018-10-09 | L51: 5118 | M51: INE523B01011
A52: AKZOINDIA | B52: EQ | C52: 1569.75 | D52: 1613.9 | E52: 1550.15 | F52: 1570.6 | G52: 1565 | H52: 1593.4 | I52: 7069 | J52: 11122339.35 | K52: 2018-10-09 | L52: 436 | M52: INE133A01011
A53: ALANKIT | B53: EQ | C53: 18.95 | D53: 18.95 | E53: 18.25 | F53: 18.6 | G53: 18.5 | H53: 18.55 | I53: 300788 | J53: 5590000.8 | K53: 2018-10-09 | L53: 498 | M53: INE914E01040
A54: ALBERTDAVD | B54: EQ | C54: 562.2 | D54: 563.5 | E54: 519.65 | F54: 525.25 | G54: 523 | H54: 546.95 | I54: 19396 | J54: 10286071.4 | K54: 2018-10-09 | L54: 1023 | M54: INE155C01010
A55: ALBK | B55: EQ | C55: 34.25 | D55: 34.45 | E55: 33.15 | F55: 33.85 | G55: 33.8 | H55: 34.05 | I55: 2695783 | J55: 91168823 | K55: 2018-10-09 | L55: 6297 | M55: INE428A01015
A56: ALCHEM | B56: BE | C56: 4.75 | D56: 4.75 | E56: 4.55 | F56: 4.55 | G56: 4.55 | H56: 4.75 | I56: 3502 | J56: 16047.25 | K56: 2018-10-09 | L56: 20 | M56: INE964B01033
A57: ALEMBICLTD | B57: EQ | C57: 40.75 | D57: 41.35 | E57: 39.3 | F57: 40.5 | G57: 40.5 | H57: 40.85 | I57: 278148 | J57: 11189329.4 | K57: 2018-10-09 | L57: 2291 | M57: INE426A01027
A58: ALICON | B58: EQ | C58: 598 | D58: 606 | E58: 581.1 | F58: 588.95 | G58: 594 | H58: 595.65 | I58: 1467 | J58: 868701.15 | K58: 2018-10-09 | L58: 206 | M58: INE062D01024
A59: ALKALI | B59: EQ | C59: 54 | D59: 54.95 | E59: 51.15 | F59: 53.5 | G59: 54.8 | H59: 53.9 | I59: 6226 | J59: 328169.9 | K59: 2018-10-09 | L59: 140 | M59: INE773I01017
A60: ALKEM | B60: EQ | C60: 1990 | D60: 2000.1 | E60: 1850 | F60: 1902.95 | G60: 1950 | H60: 1968.6 | I60: 33323 | J60: 65306608.8 | K60: 2018-10-09 | L60: 5080 | M60: INE540L01014
A61: ALKYLAMINE | B61: EQ | C61: 552 | D61: 557.2 | E61: 535 | F61: 541.3 | G61: 535 | H61: 547.7 | I61: 2865 | J61: 1562136.25 | K61: 2018-10-09 | L61: 143 | M61: INE150B01021
A62: ALLCARGO | B62: EQ | C62: 96.25 | D62: 102 | E62: 95.9 | F62: 97.5 | G62: 97.85 | H62: 96.25 | I62: 425529 | J62: 41772050.85 | K62: 2018-10-09 | L62: 2757 | M62: INE418H01029
A63: ALLSEC | B63: EQ | C63: 220.1 | D63: 242 | E63: 216.5 | F63: 235.5 | G63: 242 | H63: 214.3 | I63: 20639 | J63: 4764829.25 | K63: 2018-10-09 | L63: 1446 | M63: INE835G01018
A64: ALMONDZ | B64: BE | C64: 26 | D64: 26.9 | E64: 25.6 | F64: 25.6 | G64: 25.6 | H64: 26.9 | I64: 3576 | J64: 91823.4 | K64: 2018-10-09 | L64: 15 | M64: INE326B01027
A65: ALOKTEXT | B65: BE | C65: 3.85 | D65: 3.9 | E65: 3.65 | F65: 3.75 | G65: 3.8 | H65: 3.8 | I65: 1957054 | J65: 7378054.35 | K65: 2018-10-09 | L65: 1017 | M65: INE270A01011
A66: ALPA | B66: EQ | C66: 26 | D66: 26 | E66: 23.35 | F66: 23.7 | G66: 23.95 | H66: 25 | I66: 28770 | J66: 696499.65 | K66: 2018-10-09 | L66: 173 | M66: INE385I01010
A67: ALPHAGEO | B67: EQ | C67: 472 | D67: 495.1 | E67: 469.15 | F67: 483.2 | G67: 481 | H67: 466.85 | I67: 10830 | J67: 5219163.7 | K67: 2018-10-09 | L67: 1260 | M67: INE137C01018
A68: ALPSINDUS | B68: BE | C68: 2.8 | D68: 2.8 | E68: 2.7 | F68: 2.7 | G68: 2.7 | H68: 2.8 | I68: 466 | J68: 1262.2 | K68: 2018-10-09 | L68: 8 | M68: INE093B01015
A69: AMARAJABAT | B69: EQ | C69: 733.8 | D69: 738 | E69: 717.65 | F69: 734.1 | G69: 731 | H69: 729.45 | I69: 513066 | J69: 373027916.4 | K69: 2018-10-09 | L69: 18150 | M69: INE885A01032
A70: AMBER | B70: EQ | C70: 889.5 | D70: 896.45 | E70: 846.05 | F70: 875.1 | G70: 875 | H70: 885.95 | I70: 7215 | J70: 6256649.55 | K70: 2018-10-09 | L70: 1411 | M70: INE371P01015
A71: AMBIKCO | B71: EQ | C71: 1095 | D71: 1117.35 | E71: 1070 | F71: 1087.4 | G71: 1076.05 | H71: 1094.75 | I71: 7372 | J71: 7981455.65 | K71: 2018-10-09 | L71: 596 | M71: INE540G01014
A72: AMBUJACEM | B72: EQ | C72: 210 | D72: 211.95 | E72: 202.45 | F72: 204.7 | G72: 204.5 | H72: 208.1 | I72: 1790998 | J72: 368851453 | K72: 2018-10-09 | L72: 38665 | M72: INE079A01024
A73: AMDIND | B73: EQ | C73: 19.05 | D73: 19.05 | E73: 17.7 | F73: 19 | G73: 18.9 | H73: 19.35 | I73: 10583 | J73: 194816.35 | K73: 2018-10-09 | L73: 59 | M73: INE005I01014
A74: AMJLAND | B74: EQ | C74: 19.5 | D74: 22.7 | E74: 19.3 | F74: 22.5 | G74: 22.7 | H74: 18.95 | I74: 81960 | J74: 1775429.8 | K74: 2018-10-09 | L74: 234 | M74: INE606A01024
A75: AMRUTANJAN | B75: EQ | C75: 257.9 | D75: 257.9 | E75: 250 | F75: 250.25 | G75: 250 | H75: 249.55 | I75: 7638 | J75: 1914532.15 | K75: 2018-10-09 | L75: 398 | M75: INE098F01031
A76: ANANTRAJ | B76: EQ | C76: 34.9 | D76: 35.8 | E76: 34 | F76: 34.6 | G76: 34.3 | H76: 34.1 | I76: 775972 | J76: 26852901.8 | K76: 2018-10-09 | L76: 4503 | M76: INE242C01024
A77: ANDHRABANK | B77: EQ | C77: 26.75 | D77: 26.8 | E77: 25.7 | F77: 25.95 | G77: 25.7 | H77: 26.6 | I77: 1640553 | J77: 42984333.25 | K77: 2018-10-09 | L77: 3578 | M77: INE434A01013
A78: ANDHRACEMT | B78: EQ | C78: 5.9 | D78: 6.05 | E78: 5.9 | F78: 6 | G78: 5.95 | H78: 5.95 | I78: 95286 | J78: 568928.9 | K78: 2018-10-09 | L78: 139 | M78: INE666E01012
A79: ANDHRSUGAR | B79: EQ | C79: 325.2 | D79: 347 | E79: 305.9 | F79: 308.8 | G79: 307.25 | H79: 319.8 | I79: 254055 | J79: 81587598.15 | K79: 2018-10-09 | L79: 10360 | M79: INE715B01013
A80: ANGIND | B80: BE | C80: 2.05 | D80: 2.05 | E80: 2.05 | F80: 2.05 | G80: 2.05 | H80: 2.15 | I80: 421 | J80: 863.05 | K80: 2018-10-09 | L80: 5 | M80: INE017D01010
A81: ANIKINDS | B81: EQ | C81: 22.55 | D81: 26 | E81: 22.5 | F81: 25.4 | G81: 25.5 | H81: 24 | I81: 11030 | J81: 258305.75 | K81: 2018-10-09 | L81: 54 | M81: INE087B01017
A82: ANKITMETAL | B82: BE | C82: 0.45 | D82: 0.55 | E82: 0.45 | F82: 0.45 | G82: 0.45 | H82: 0.5 | I82: 52118 | J82: 24722.7 | K82: 2018-10-09 | L82: 36 | M82: INE106I01010
A83: ANSALAPI | B83: EQ | C83: 10.8 | D83: 10.8 | E83: 9.85 | F83: 9.9 | G83: 9.85 | H83: 10.3 | I83: 104555 | J83: 1051742.95 | K83: 2018-10-09 | L83: 300 | M83: INE436A01026
A84: ANSALHSG | B84: EQ | C84: 10.1 | D84: 10.3 | E84: 9.75 | F84: 9.85 | G84: 9.9 | H84: 9.95 | I84: 45823 | J84: 458484.35 | K84: 2018-10-09 | L84: 253 | M84: INE880B01015
A85: ANTGRAPHIC | B85: BE | C85: 0.45 | D85: 0.5 | E85: 0.45 | F85: 0.5 | G85: 0.5 | H85: 0.5 | I85: 22955 | J85: 10343.35 | K85: 2018-10-09 | L85: 17 | M85: INE414B01021
A86: APARINDS | B86: EQ | C86: 575 | D86: 583.9 | E86: 560.75 | F86: 571.2 | G86: 571.1 | H86: 568.45 | I86: 4309 | J86: 2436417.65 | K86: 2018-10-09 | L86: 372 | M86: INE372A01015
A87: APCL | B87: EQ | C87: 110 | D87: 114 | E87: 109 | F87: 113.95 | G87: 114 | H87: 109.05 | I87: 1899 | J87: 210197.35 | K87: 2018-10-09 | L87: 41 | M87: INE071F01012
A88: APCOTEXIND | B88: EQ | C88: 511 | D88: 519.35 | E88: 501.2 | F88: 507.35 | G88: 501.2 | H88: 518.7 | I88: 2540 | J88: 1293340.7 | K88: 2018-10-09 | L88: 249 | M88: INE116A01024
A89: APEX | B89: EQ | C89: 374 | D89: 374 | E89: 361.15 | F89: 365.8 | G89: 364 | H89: 364.55 | I89: 45619 | J89: 16624071.65 | K89: 2018-10-09 | L89: 1680 | M89: INE346W01013
A90: APLAPOLLO | B90: EQ | C90: 1231.95 | D90: 1244 | E90: 1160.6 | F90: 1195 | G90: 1166.75 | H90: 1222.15 | I90: 58631 | J90: 71367494.35 | K90: 2018-10-09 | L90: 1985 | M90: INE702C01019
A91: APLLTD | B91: EQ | C91: 559.7 | D91: 575 | E91: 550.15 | F91: 570.55 | G91: 572 | H91: 554.35 | I91: 55924 | J91: 31594926.35 | K91: 2018-10-09 | L91: 4211 | M91: INE901L01018
A92: APOLLO | B92: EQ | C92: 109 | D92: 110.5 | E92: 100.3 | F92: 101.55 | G92: 101.35 | H92: 109 | I92: 54639 | J92: 5690835.05 | K92: 2018-10-09 | L92: 1317 | M92: INE713T01010
A93: APOLLOHOSP | B93: EQ | C93: 1082 | D93: 1110.1 | E93: 1065.3 | F93: 1098.7 | G93: 1097 | H93: 1081.9 | I93: 509541 | J93: 556086314.6 | K93: 2018-10-09 | L93: 20380 | M93: INE437A01024
A94: APOLLOTYRE | B94: EQ | C94: 206.2 | D94: 208 | E94: 199.65 | F94: 201.4 | G94: 202 | H94: 205.25 | I94: 3482398 | J94: 712600171.6 | K94: 2018-10-09 | L94: 35092 | M94: INE438A01022
A95: APOLSINHOT | B95: EQ | C95: 1209.95 | D95: 1209.95 | E95: 1100.1 | F95: 1195.6 | G95: 1195 | H95: 1150 | I95: 180 | J95: 208016.05 | K95: 2018-10-09 | L95: 47 | M95: INE451F01016
A96: APTECHT | B96: EQ | C96: 127 | D96: 137.9 | E96: 126.8 | F96: 132.4 | G96: 131.4 | H96: 126.15 | I96: 367507 | J96: 48796069.7 | K96: 2018-10-09 | L96: 6362 | M96: INE266F01018
A97: ARCHIDPLY | B97: EQ | C97: 40.95 | D97: 40.95 | E97: 37.05 | F97: 38.25 | G97: 38.1 | H97: 39.35 | I97: 16186 | J97: 618238.1 | K97: 2018-10-09 | L97: 262 | M97: INE877I01016
A98: ARCHIES | B98: EQ | C98: 25.5 | D98: 25.5 | E98: 25 | F98: 25.1 | G98: 25 | H98: 24.9 | I98: 58280 | J98: 1461151.35 | K98: 2018-10-09 | L98: 208 | M98: INE731A01020
A99: ARCOTECH | B99: BE | C99: 7.75 | D99: 7.75 | E99: 7.75 | F99: 7.75 | G99: 7.75 | H99: 8.15 | I99: 29539 | J99: 228927.25 | K99: 2018-10-09 | L99: 83 | M99: INE574I01035
A100: ARIES | B100: EQ | C100: 89.1 | D100: 92.05 | E100: 85.55 | F100: 87.3 | G100: 86.05 | H100: 91.85 | I100: 37613 | J100: 3361638.55 | K100: 2018-10-09 | L100: 999 | M100: INE298I01015
A101: ARIHANT | B101: EQ | C101: 30.05 | D101: 34.65 | E101: 28.05 | F101: 29.05 | G101: 28.75 | H101: 31.3 | I101: 2602 | J101: 75889.95 | K101: 2018-10-09 | L101: 25 | M101: INE413D01011
A102: ARIHANTSUP | B102: EQ | C102: 48.05 | D102: 55.55 | E102: 48.05 | F102: 51.15 | G102: 52 | H102: 50.65 | I102: 17582 | J102: 919245.65 | K102: 2018-10-09 | L102: 1022 | M102: INE643K01018
A103: ARMANFIN | B103: EQ | C103: 300 | D103: 313.8 | E103: 282.1 | F103: 284.3 | G103: 283 | H103: 296.3 | I103: 3816 | J103: 1113218.15 | K103: 2018-10-09 | L103: 103 | M103: INE109C01017
A104: AROGRANITE | B104: EQ | C104: 51.95 | D104: 51.95 | E104: 48.05 | F104: 49.75 | G104: 49.5 | H104: 50.3 | I104: 10661 | J104: 534931.15 | K104: 2018-10-09 | L104: 140 | M104: INE210C01013
A105: ARROWGREEN | B105: EQ | C105: 108.95 | D105: 109.3 | E105: 105 | F105: 108.95 | G105: 108.75 | H105: 104.1 | I105: 43958 | J105: 4794865.4 | K105: 2018-10-09 | L105: 565 | M105: INE570D01018
A106: ARROWTEX | B106: EQ | C106: 27.9 | D106: 27.9 | E106: 24.15 | F106: 25.5 | G106: 25.6 | H106: 26.4 | I106: 7289 | J106: 183167.2 | K106: 2018-10-09 | L106: 129 | M106: INE933J01015
A107: ARSHIYA | B107: EQ | C107: 30.8 | D107: 33.4 | E107: 27.65 | F107: 28.9 | G107: 28.55 | H107: 30.8 | I107: 417599 | J107: 12337075.95 | K107: 2018-10-09 | L107: 1057 | M107: INE968D01022
A108: ARSSINFRA | B108: EQ | C108: 19.9 | D108: 23.35 | E108: 19.9 | F108: 21.8 | G108: 21.9 | H108: 21.85 | I108: 12615 | J108: 280191.65 | K108: 2018-10-09 | L108: 53 | M108: INE267I01010
A109: ARVIND | B109: EQ | C109: 305 | D109: 306.8 | E109: 289.05 | F109: 300.05 | G109: 299.65 | H109: 300.75 | I109: 2112741 | J109: 629653812.8 | K109: 2018-10-09 | L109: 26588 | M109: INE034A01011
A110: ARVSMART | B110: EQ | C110: 105.05 | D110: 111.75 | E110: 105.05 | F110: 108.85 | G110: 109 | H110: 108.1 | I110: 7510 | J110: 810498.3 | K110: 2018-10-09 | L110: 248 | M110: INE034S01021
A111: ASAHIINDIA | B111: EQ | C111: 300.2 | D111: 304.35 | E111: 293.15 | F111: 295.1 | G111: 293.6 | H111: 300.05 | I111: 35277 | J111: 10427048 | K111: 2018-10-09 | L111: 438 | M111: INE439A01020
A112: ASAHISONG | B112: EQ | C112: 232 | D112: 257 | E112: 232 | F112: 233.6 | G112: 236 | H112: 233.6 | I112: 2450 | J112: 573356.25 | K112: 2018-10-09 | L112: 105 | M112: INE228I01012
A113: ASAL | B113: EQ | C113: 44.15 | D113: 44.15 | E113: 38.75 | F113: 39.15 | G113: 39.15 | H113: 42.9 | I113: 17864 | J113: 710655.25 | K113: 2018-10-09 | L113: 311 | M113: INE900C01027
A114: ASHAPURMIN | B114: EQ | C114: 28.6 | D114: 29.5 | E114: 26.75 | F114: 26.95 | G114: 26.8 | H114: 28.45 | I114: 59714 | J114: 1638931.05 | K114: 2018-10-09 | L114: 432 | M114: INE348A01023
A115: ASHIANA | B115: EQ | C115: 117.45 | D115: 123 | E115: 115.95 | F115: 120.6 | G115: 120 | H115: 118.35 | I115: 40512 | J115: 4807756.3 | K115: 2018-10-09 | L115: 1016 | M115: INE365D01021
A116: ASHIMASYN | B116: EQ | C116: 14 | D116: 14.95 | E116: 13.35 | F116: 13.75 | G116: 13.75 | H116: 14.2 | I116: 181208 | J116: 2509953.45 | K116: 2018-10-09 | L116: 409 | M116: INE440A01010
A117: ASHOKA | B117: EQ | C117: 100.9 | D117: 112 | E117: 97.05 | F117: 106.55 | G117: 111.3 | H117: 97.55 | I117: 338593 | J117: 34870634.25 | K117: 2018-10-09 | L117: 4752 | M117: INE442H01029
A118: ASHOKLEY | B118: EQ | C118: 110 | D118: 111.65 | E118: 107.3 | F118: 110.85 | G118: 110.4 | H118: 109.15 | I118: 22219546 | J118: 2442274062 | K118: 2018-10-09 | L118: 96883 | M118: INE208A01029
A119: ASIANHOTNR | B119: EQ | C119: 179.4 | D119: 189.35 | E119: 168 | F119: 171.1 | G119: 171.1 | H119: 179.4 | I119: 692 | J119: 127386 | K119: 2018-10-09 | L119: 7 | M119: INE363A01022
A120: ASIANPAINT | B120: EQ | C120: 1254 | D120: 1255.9 | E120: 1191 | F120: 1201.4 | G120: 1203.4 | H120: 1247.8 | I120: 1088738 | J120: 1321305718 | K120: 2018-10-09 | L120: 35721 | M120: INE021A01026
A121: ASIANTILES | B121: EQ | C121: 165.8 | D121: 166.8 | E121: 156.05 | F121: 161.45 | G121: 159.8 | H121: 164.1 | I121: 96237 | J121: 15392972.2 | K121: 2018-10-09 | L121: 2724 | M121: INE022I01019
A122: ASPINWALL | B122: EQ | C122: 175 | D122: 175 | E122: 168.6 | F122: 169.9 | G122: 169 | H122: 169.6 | I122: 1432 | J122: 244296.25 | K122: 2018-10-09 | L122: 54 | M122: INE991I01015
A123: ASSAMCO | B123: BE | C123: 2.55 | D123: 2.55 | E123: 2.55 | F123: 2.55 | G123: 2.55 | H123: 2.65 | I123: 160158 | J123: 408402.9 | K123: 2018-10-09 | L123: 55 | M123: INE442A01024
A124: ASTEC | B124: EQ | C124: 538 | D124: 544.05 | E124: 520.2 | F124: 525.55 | G124: 521 | H124: 528.05 | I124: 5921 | J124: 3147543.5 | K124: 2018-10-09 | L124: 537 | M124: INE563J01010
A125: ASTERDM | B125: EQ | C125: 155.75 | D125: 159.35 | E125: 154.2 | F125: 156 | G125: 156 | H125: 158.15 | I125: 29548 | J125: 4611010.45 | K125: 2018-10-09 | L125: 1374 | M125: INE914M01019
A126: ASTRAL | B126: EQ | C126: 834 | D126: 860.75 | E126: 825.05 | F126: 849.4 | G126: 843 | H126: 828.3 | I126: 53475 | J126: 45169483.3 | K126: 2018-10-09 | L126: 5081 | M126: INE006I01046
A127: ASTRAMICRO | B127: EQ | C127: 79.5 | D127: 81.4 | E127: 77.5 | F127: 80.2 | G127: 80.4 | H127: 78.4 | I127: 164246 | J127: 13133409.85 | K127: 2018-10-09 | L127: 1877 | M127: INE386C01029
A128: ASTRAZEN | B128: EQ | C128: 1565.15 | D128: 1590 | E128: 1525 | F128: 1555.95 | G128: 1531 | H128: 1558.2 | I128: 11480 | J128: 17939467.15 | K128: 2018-10-09 | L128: 1159 | M128: INE203A01020
A129: ASTRON | B129: EQ | C129: 114.4 | D129: 118.5 | E129: 112.05 | F129: 115.1 | G129: 116.9 | H129: 113.15 | I129: 162880 | J129: 18656173.3 | K129: 2018-10-09 | L129: 1774 | M129: INE646X01014
A130: ATFL | B130: EQ | C130: 485.05 | D130: 498.5 | E130: 485.05 | F130: 490.3 | G130: 492 | H130: 488.55 | I130: 6336 | J130: 3112729.6 | K130: 2018-10-09 | L130: 539 | M130: INE209A01019
A131: ATLANTA | B131: EQ | C131: 21.6 | D131: 21.6 | E131: 20.8 | F131: 20.8 | G131: 20.8 | H131: 21.85 | I131: 26097 | J131: 544180.6 | K131: 2018-10-09 | L131: 242 | M131: INE285H01022
A132: ATUL | B132: EQ | C132: 3003 | D132: 3144.95 | E132: 2938 | F132: 3045.4 | G132: 3049.9 | H132: 3006.8 | I132: 25521 | J132: 77293646.6 | K132: 2018-10-09 | L132: 2417 | M132: INE100A01010
A133: ATULAUTO | B133: EQ | C133: 274 | D133: 279 | E133: 269 | F133: 274.95 | G133: 274 | H133: 273.25 | I133: 9777 | J133: 2673931.4 | K133: 2018-10-09 | L133: 706 | M133: INE951D01028
A134: AUBANK | B134: EQ | C134: 568.7 | D134: 575 | E134: 545.5 | F134: 569.6 | G134: 573 | H134: 564.15 | I134: 134982 | J134: 75933588.4 | K134: 2018-10-09 | L134: 9216 | M134: INE949L01017
A135: AURIONPRO | B135: EQ | C135: 145 | D135: 154 | E135: 144.9 | F135: 145.4 | G135: 145 | H135: 143.85 | I135: 4100 | J135: 599542.45 | K135: 2018-10-09 | L135: 138 | M135: INE132H01018
A136: AUROPHARMA | B136: EQ | C136: 737 | D136: 771.65 | E136: 737 | F136: 766.75 | G136: 767 | H136: 736.4 | I136: 4555970 | J136: 3435888464 | K136: 2018-10-09 | L136: 75185 | M136: INE406A01037
A137: AUSOMENT | B137: EQ | C137: 53.85 | D137: 56.9 | E137: 52.1 | F137: 52.3 | G137: 52.1 | H137: 55 | I137: 3651 | J137: 196050.9 | K137: 2018-10-09 | L137: 117 | M137: INE218C01016
A138: AUTOAXLES | B138: EQ | C138: 1170.05 | D138: 1194 | E138: 1142.3 | F138: 1156.45 | G138: 1157.5 | H138: 1185.15 | I138: 7728 | J138: 9038483.65 | K138: 2018-10-09 | L138: 906 | M138: INE449A01011
A139: AUTOIND | B139: EQ | C139: 59.4 | D139: 62 | E139: 58 | F139: 59.8 | G139: 60.5 | H139: 60.2 | I139: 15990 | J139: 954823.7 | K139: 2018-10-09 | L139: 408 | M139: INE718H01014
A140: AUTOLITIND | B140: EQ | C140: 41.65 | D140: 41.65 | E140: 38.8 | F140: 39.1 | G140: 39 | H140: 40.8 | I140: 5274 | J140: 209549.9 | K140: 2018-10-09 | L140: 112 | M140: INE448A01013
A141: AVADHSUGAR | B141: EQ | C141: 398.9 | D141: 408.35 | E141: 398.85 | F141: 408.35 | G141: 408.35 | H141: 388.95 | I141: 38589 | J141: 15728762.85 | K141: 2018-10-09 | L141: 562 | M141: INE349W01017
A142: AVANTIFEED | B142: EQ | C142: 382 | D142: 382.45 | E142: 365 | F142: 366.25 | G142: 365.65 | H142: 375.75 | I142: 248340 | J142: 92216133.9 | K142: 2018-10-09 | L142: 7281 | M142: INE871C01038
A143: AVTNPL | B143: EQ | C143: 26.25 | D143: 26.75 | E143: 25.75 | F143: 26.35 | G143: 26.3 | H143: 26.2 | I143: 86157 | J143: 2254342.9 | K143: 2018-10-09 | L143: 261 | M143: INE488D01021
A144: AXISBANK | B144: EQ | C144: 561.9 | D144: 563.9 | E144: 549.15 | F144: 552.85 | G144: 549.8 | H144: 556.55 | I144: 8053297 | J144: 4488816245 | K144: 2018-10-09 | L144: 137447 | M144: INE238A01034
A145: AXISCADES | B145: EQ | C145: 69.1 | D145: 70.2 | E145: 63.75 | F145: 65.7 | G145: 65 | H145: 69.1 | I145: 48259 | J145: 3204314.95 | K145: 2018-10-09 | L145: 1141 | M145: INE555B01013
A146: AXISGOLD | B146: EQ | C146: 2765 | D146: 2780 | E146: 2732 | F146: 2771.5 | G146: 2780 | H146: 2749.1 | I146: 134 | J146: 370771.2 | K146: 2018-10-09 | L146: 25 | M146: INF846K01347
A147: AXISNIFTY | B147: EQ | C147: 1055.5 | D147: 1055.5 | E147: 1052.2 | F147: 1052.2 | G147: 1052.2 | H147: 1051.13 | I147: 80 | J147: 84219.1 | K147: 2018-10-09 | L147: 6 | M147: INF846K01ZL0
A148: AYMSYNTEX | B148: EQ | C148: 30.3 | D148: 31 | E148: 28.3 | F148: 28.8 | G148: 28.5 | H148: 29.9 | I148: 26773 | J148: 792075.3 | K148: 2018-10-09 | L148: 112 | M148: INE193B01039
A149: BAFNAPHARM | B149: EQ | C149: 11.25 | D149: 11.65 | E149: 11 | F149: 11.5 | G149: 11.5 | H149: 10.85 | I149: 7927 | J149: 89263.1 | K149: 2018-10-09 | L149: 58 | M149: INE878I01014
A150: BAGFILMS | B150: BE | C150: 4 | D150: 4.2 | E150: 4 | F150: 4.05 | G150: 4.1 | H150: 4.2 | I150: 95919 | J150: 388344.95 | K150: 2018-10-09 | L150: 191 | M150: INE116D01028
A151: BAJAJ-AUTO | B151: EQ | C151: 2590 | D151: 2590.05 | E151: 2530.3 | F151: 2548.85 | G151: 2546 | H151: 2584.1 | I151: 309578 | J151: 790786072 | K151: 2018-10-09 | L151: 28365 | M151: INE917I01010
A152: BAJAJCORP | B152: EQ | C152: 385.8 | D152: 390.25 | E152: 381 | F152: 386.65 | G152: 383.45 | H152: 388.2 | I152: 8617 | J152: 3332392.7 | K152: 2018-10-09 | L152: 718 | M152: INE933K01021
A153: BAJAJELEC | B153: EQ | C153: 480.5 | D153: 499.9 | E153: 477.55 | F153: 495.1 | G153: 497 | H153: 477.55 | I153: 224549 | J153: 110556736 | K153: 2018-10-09 | L153: 8195 | M153: INE193E01025
A154: BAJAJFINSV | B154: EQ | C154: 5412 | D154: 5580 | E154: 5275.3 | F154: 5429.1 | G154: 5405 | H154: 5395.55 | I154: 216160 | J154: 1170165196 | K154: 2018-10-09 | L154: 22949 | M154: INE918I01018
A155: BAJAJHIND | B155: EQ | C155: 8.85 | D155: 9.9 | E155: 8.8 | F155: 9.55 | G155: 9.55 | H155: 8.65 | I155: 12852823 | J155: 121229228 | K155: 2018-10-09 | L155: 12400 | M155: INE306A01021
A156: BAJAJHLDNG | B156: EQ | C156: 2491.15 | D156: 2596 | E156: 2482.45 | F156: 2512.05 | G156: 2570 | H156: 2520.05 | I156: 33174 | J156: 83256839.25 | K156: 2018-10-09 | L156: 3525 | M156: INE118A01012
A157: BAJFINANCE | B157: EQ | C157: 1975 | D157: 2115.85 | E157: 1947.65 | F157: 2060.85 | G157: 2061 | H157: 1974.85 | I157: 4859016 | J157: 9869025594 | K157: 2018-10-09 | L157: 172851 | M157: INE296A01024
A158: BALAJITELE | B158: EQ | C158: 105.8 | D158: 105.9 | E158: 105 | F158: 105 | G158: 105 | H158: 105.9 | I158: 21586 | J158: 2267728.15 | K158: 2018-10-09 | L158: 203 | M158: INE794B01026
A159: BALAMINES | B159: EQ | C159: 446.5 | D159: 475 | E159: 435 | F159: 447.2 | G159: 450 | H159: 442 | I159: 15957 | J159: 7168705.95 | K159: 2018-10-09 | L159: 1048 | M159: INE050E01027
A160: BALKRISHNA | B160: EQ | C160: 44.8 | D160: 46.45 | E160: 44 | F160: 44.45 | G160: 44.1 | H160: 44.8 | I160: 13944 | J160: 626385 | K160: 2018-10-09 | L160: 204 | M160: INE875R01011
A161: BALKRISIND | B161: EQ | C161: 975 | D161: 1004.95 | E161: 972 | F161: 982.1 | G161: 979.95 | H161: 981.4 | I161: 637268 | J161: 628865905 | K161: 2018-10-09 | L161: 24796 | M161: INE787D01026
A162: BALLARPUR | B162: EQ | C162: 6.55 | D162: 6.65 | E162: 6.4 | F162: 6.45 | G162: 6.5 | H162: 6.5 | I162: 223779 | J162: 1454264.5 | K162: 2018-10-09 | L162: 352 | M162: INE294A01037
A163: BALMLAWRIE | B163: EQ | C163: 180.5 | D163: 184 | E163: 177.65 | F163: 182.4 | G163: 183 | H163: 180.4 | I163: 38426 | J163: 6913770.1 | K163: 2018-10-09 | L163: 1261 | M163: INE164A01016
A164: BALPHARMA | B164: EQ | C164: 74.3 | D164: 76.45 | E164: 73 | F164: 74.5 | G164: 74.05 | H164: 75.05 | I164: 18692 | J164: 1401301.6 | K164: 2018-10-09 | L164: 559 | M164: INE083D01012
A165: BALRAMCHIN | B165: EQ | C165: 80.75 | D165: 86.95 | E165: 80.1 | F165: 85 | G165: 84.45 | H165: 78.05 | I165: 15487193 | J165: 1291311308 | K165: 2018-10-09 | L165: 63866 | M165: INE119A01028
A166: BANARBEADS | B166: EQ | C166: 49 | D166: 49.5 | E166: 49 | F166: 49.05 | G166: 49.05 | H166: 48.3 | I166: 3697 | J166: 181678.25 | K166: 2018-10-09 | L166: 14 | M166: INE655B01011
A167: BANARISUG | B167: EQ | C167: 1499.95 | D167: 1544.95 | E167: 1476 | F167: 1518.1 | G167: 1520 | H167: 1440.75 | I167: 1888 | J167: 2871802.2 | K167: 2018-10-09 | L167: 316 | M167: INE459A01010
A168: BANCOINDIA | B168: EQ | C168: 178.6 | D168: 183.85 | E168: 174.1 | F168: 176.7 | G168: 177.55 | H168: 178.85 | I168: 23578 | J168: 4215454.45 | K168: 2018-10-09 | L168: 1764 | M168: INE213C01025
A169: BANDHANBNK | B169: EQ | C169: 476.4 | D169: 492 | E169: 476.4 | F169: 486.85 | G169: 492 | H169: 471.2 | I169: 1134177 | J169: 547898893.6 | K169: 2018-10-09 | L169: 28573 | M169: INE545U01014
A170: BANG | B170: EQ | C170: 50.3 | D170: 50.95 | E170: 48.45 | F170: 49.45 | G170: 49.4 | H170: 49.25 | I170: 7122 | J170: 356188.3 | K170: 2018-10-09 | L170: 71 | M170: INE863I01016
A171: BANKBARODA | B171: EQ | C171: 98.9 | D171: 99.1 | E171: 92.65 | F171: 93.25 | G171: 92.9 | H171: 97.5 | I171: 24069650 | J171: 2298164028 | K171: 2018-10-09 | L171: 90069 | M171: INE028A01039
A172: BANKBEES | B172: EQ | C172: 2520 | D172: 2523.05 | E172: 2489.23 | F172: 2492.69 | G172: 2504.27 | H172: 2517.24 | I172: 10794 | J172: 26948689.87 | K172: 2018-10-09 | L172: 208 | M172: INF732E01078
A173: BANKINDIA | B173: EQ | C173: 76.7 | D173: 77 | E173: 73.55 | F173: 75.4 | G173: 74.5 | H173: 76 | I173: 7103320 | J173: 535620969.4 | K173: 2018-10-09 | L173: 20860 | M173: INE084A01016
A174: BANSWRAS | B174: EQ | C174: 65.4 | D174: 68.45 | E174: 63.45 | F174: 66.7 | G174: 68.45 | H174: 64.75 | I174: 934 | J174: 61529.95 | K174: 2018-10-09 | L174: 40 | M174: INE629D01012
A175: BARTRONICS | B175: EQ | C175: 8.15 | D175: 8.15 | E175: 6.8 | F175: 6.9 | G175: 6.9 | H175: 7 | I175: 38783 | J175: 277229.6 | K175: 2018-10-09 | L175: 163 | M175: INE855F01034
A176: BASF | B176: EQ | C176: 1620 | D176: 1640 | E176: 1592.05 | F176: 1630.8 | G176: 1625.3 | H176: 1613.2 | I176: 3763 | J176: 6071455.95 | K176: 2018-10-09 | L176: 577 | M176: INE373A01013
A177: BASML | B177: EQ | C177: 194.75 | D177: 194.75 | E177: 191.1 | F177: 191.1 | G177: 191.1 | H177: 191.15 | I177: 9 | J177: 1723.75 | K177: 2018-10-09 | L177: 3 | M177: INE186H01014
A178: BATAINDIA | B178: EQ | C178: 905 | D178: 909.95 | E178: 860.5 | F178: 865.85 | G178: 862 | H178: 893.8 | I178: 1609266 | J178: 1420978948 | K178: 2018-10-09 | L178: 38146 | M178: INE176A01028
A179: BAYERCROP | B179: EQ | C179: 4229.95 | D179: 4380 | E179: 4201.35 | F179: 4308.85 | G179: 4315 | H179: 4272.4 | I179: 5766 | J179: 24607015.9 | K179: 2018-10-09 | L179: 2488 | M179: INE462A01022
A180: BBL | B180: EQ | C180: 1080.95 | D180: 1156.3 | E180: 1040 | F180: 1062.5 | G180: 1059.2 | H180: 1073.45 | I180: 7683 | J180: 8165380.45 | K180: 2018-10-09 | L180: 1231 | M180: INE464A01028
A181: BBTC | B181: EQ | C181: 1286.85 | D181: 1294 | E181: 1221.35 | F181: 1237.5 | G181: 1230.7 | H181: 1214.85 | I181: 278828 | J181: 350206603.6 | K181: 2018-10-09 | L181: 15349 | M181: INE050A01025
A182: BCG | B182: EQ | C182: 3.65 | D182: 4 | E182: 3.55 | F182: 3.95 | G182: 3.95 | H182: 3.55 | I182: 731517 | J182: 2792312.3 | K182: 2018-10-09 | L182: 574 | M182: INE425B01027
A183: BDL | B183: EQ | C183: 281 | D183: 281 | E183: 265 | F183: 269.35 | G183: 267 | H183: 274.45 | I183: 24268 | J183: 6526219.8 | K183: 2018-10-09 | L183: 1594 | M183: INE171Z01018
A184: BEARDSELL | B184: EQ | C184: 26 | D184: 26.8 | E184: 25 | F184: 25.95 | G184: 25.3 | H184: 26.2 | I184: 342 | J184: 8894.05 | K184: 2018-10-09 | L184: 22 | M184: INE520H01022
A185: BEDMUTHA | B185: BE | C185: 21.75 | D185: 21.75 | E185: 20.9 | F185: 21.2 | G185: 21.2 | H185: 20.95 | I185: 8870 | J185: 188959.6 | K185: 2018-10-09 | L185: 20 | M185: INE844K01012
A186: BEL | B186: EQ | C186: 77.15 | D186: 78.75 | E186: 74.8 | F186: 75.9 | G186: 75.7 | H186: 77.15 | I186: 9432031 | J186: 726208811.6 | K186: 2018-10-09 | L186: 63198 | M186: INE263A01024
A187: BEML | B187: EQ | C187: 560 | D187: 568 | E187: 534.05 | F187: 545.45 | G187: 542.9 | H187: 560.65 | I187: 1010681 | J187: 556396114.3 | K187: 2018-10-09 | L187: 22712 | M187: INE258A01016
A188: BEPL | B188: EQ | C188: 128.1 | D188: 133 | E188: 126.1 | F188: 130.25 | G188: 130.05 | H188: 128.1 | I188: 536913 | J188: 69893499.9 | K188: 2018-10-09 | L188: 5167 | M188: INE922A01025
A189: BERGEPAINT | B189: EQ | C189: 272.25 | D189: 275.9 | E189: 266.85 | F189: 272.7 | G189: 272.15 | H189: 275.35 | I189: 791150 | J189: 214869689.2 | K189: 2018-10-09 | L189: 10444 | M189: INE463A01038
A190: BFINVEST | B190: EQ | C190: 232.4 | D190: 232.5 | E190: 213.4 | F190: 220 | G190: 218.25 | H190: 225.05 | I190: 100926 | J190: 22437313 | K190: 2018-10-09 | L190: 3545 | M190: INE878K01010
A191: BFUTILITIE | B191: EQ | C191: 195 | D191: 201.8 | E191: 188.45 | F191: 192.95 | G191: 192.35 | H191: 196.3 | I191: 319599 | J191: 62370394.05 | K191: 2018-10-09 | L191: 13157 | M191: INE243D01012
A192: BGLOBAL | B192: BE | C192: 2.45 | D192: 2.45 | E192: 2.35 | F192: 2.35 | G192: 2.35 | H192: 2.45 | I192: 7454 | J192: 17766.9 | K192: 2018-10-09 | L192: 10 | M192: INE224M01013
A193: BGRENERGY | B193: EQ | C193: 51.75 | D193: 53.65 | E193: 50.1 | F193: 51.25 | G193: 51.1 | H193: 52.7 | I193: 62978 | J193: 3239130.55 | K193: 2018-10-09 | L193: 940 | M193: INE661I01014
A194: BHAGERIA | B194: EQ | C194: 218.3 | D194: 230.9 | E194: 218.3 | F194: 226.65 | G194: 226.6 | H194: 223.85 | I194: 2954 | J194: 666903.25 | K194: 2018-10-09 | L194: 194 | M194: INE354C01027
A195: BHAGYANGR | B195: BE | C195: 26.55 | D195: 28.7 | E195: 26.55 | F195: 28 | G195: 27.5 | H195: 27.7 | I195: 19659 | J195: 534685.85 | K195: 2018-10-09 | L195: 81 | M195: INE458B01036
A196: BHAGYAPROP | B196: EQ | C196: 21 | D196: 21.5 | E196: 20.75 | F196: 21.5 | G196: 21.5 | H196: 22.05 | I196: 926 | J196: 19807 | K196: 2018-10-09 | L196: 8 | M196: INE363W01018
A197: BHANDARI | B197: EQ | C197: 1.8 | D197: 1.85 | E197: 1.7 | F197: 1.8 | G197: 1.8 | H197: 1.8 | I197: 190996 | J197: 334557.4 | K197: 2018-10-09 | L197: 150 | M197: INE474E01029
A198: BHARATFIN | B198: EQ | C198: 987.1 | D198: 1003 | E198: 981.1 | F198: 996.45 | G198: 995 | H198: 988.4 | I198: 715116 | J198: 709192032.6 | K198: 2018-10-09 | L198: 18442 | M198: INE180K01011
A199: BHARATFORG | B199: EQ | C199: 567.5 | D199: 569.7 | E199: 552 | F199: 564.8 | G199: 566.95 | H199: 566.1 | I199: 1564823 | J199: 877376300.5 | K199: 2018-10-09 | L199: 72078 | M199: INE465A01025
A200: BHARATGEAR | B200: EQ | C200: 151.3 | D200: 154.95 | E200: 146.1 | F200: 150.3 | G200: 151 | H200: 150.4 | I200: 13992 | J200: 2108343.25 | K200: 2018-10-09 | L200: 618 | M200: INE561C01019
... 1436 more rows
